Workbook

Sheet Main
A1: Company Name | G1: Created by StatWizards® | L1: $H$18 | CA1: Attribute translation table
A2: Market Simulator | G2: Simulator version: 18.9 | CC2: =H11 -> Your prod. | CD2: =I11 -> B | CE2: C | CF2: D
A3: Directions: | B3: 1. Enter assumptions in the blue input areas. To copy and paste, paste Values only. | CA3: =IF(FIND(":",$G$13)>0,LEFT($G$13,LEN($G$13)-1),$G$13) -> Fashion | CB3: Traditional | CC3: =IF(H$13=$CB3,1,0) -> 1 | CD3: =IF(I$13=$CB3,1,0) -> 0 | CE3: 1 | CF3: 0
B4: 2. In the Product Marketplace, describe the packages you want to simulate. | CB4: Modern | CC4: =IF(H$13=$CB4,1,0) -> 0 | CD4: 1 | CE4: 0 | CF4: 0
B5: 3. View results in the pie chart and summary cells. | CA5: =IF(FIND(":",$G$14)>0,LEFT($G$14,LEN($G$14)-1),$G$14) -> Quality | CB5: Standard | CC5: =IF(H$14=$CB5,1,0) -> 0 | CD5: =IF(I$14=$CB5,1,0) -> 1 | CE5: 1 | CF5: 0
B6: 4. For help on a topic, move mouse over a cell with a red triangle in the corner. | CB6: High | CC6: =IF(H$14=$CB6,1,0) -> 1 | CD6: 0 | CE6: 0 | CF6: 0
B7: 5. For online help using the simulator's features, click | G7: here. | CB7: Price | CC7: =H$15 -> 99 | CD7: =I$15 -> 125 | CE7: 25 | CF7: 0
A9: Scenario Name
A10: Basic
G11: Product Marketplace | H11: Your prod. | I11: B | J11: C | K11: D
A12: Assumptions | G12: Package name: | H12: High-end | I12: Stylish | J12: Basic | L12: None
A13: Target market size (000): | B13: =Assumptions!$R$62 -> 226754 | G13: Fashion: | H13: Traditional | I13: Modern | J13: Traditional
A14: Units: | B14: =$B$166 -> Persons | G14: Quality: | H14: High | I14: Standard | J14: Standard
G15: Price: | H15: 99 | I15: 125 | J15: 25
A16: Calculations | C16: <-- % of target market | G16: Adjustment factor:
A17: Number of alternatives: | B17: =$CF$149 -> 3 | G17: Potential market share: | H17: =CR555*K148 -> 0.2816018733 | I17: =CS555*L148 -> 0.1957181561 | J17: 0.1777828552 | K17: 0 | L17: 0.3448971155
A18: Total market potential: | B18: =SUM($H$21:$K$21)/1000 -> 148.5471995
A19: Total market share: | B19: =SUM($H$17:$K$17) -> 0.6551028845
A20: Total potential revenue: | B20: =SUM($H$22:$K$22)/1000 -> 12.87688945
A21: Number of filtered respondents: | B21: =NSelected -> 400 | G21: Potential market (000): | H21: =CR554 -> 63854.35118 | I21: =CS554 -> 44379.87476 | J21: 40312.97354 | K21: 0
G22: Potential revenue ($MM): | H22: =H15*H21/1000 -> 6321.580767 | I22: =I15*I21/1000 -> 5547.484345 | J22: 1007.824339 | K22: 0
A24: Segment Inclusion Table | C24: =BX554 -> 1
A25: Customer segments ***
A26: High fashion: | B26: All | C26: =SUMPRODUCT($AW154:$AW553,SegmentInclusionPct) -> 0.3266523595
A27: Traditional: | B27: All | C27: =SUMPRODUCT($AX154:$AX553,SegmentInclusionPct) -> 0.3639757517
A28: Men's shoes: | B28: All | C28: =SUMPRODUCT($AY154:$AY553,SegmentInclusionPct) -> 0.3093718887
A29: Age ***
A30: < 25: | B30: All | C30: =SUMPRODUCT($AK154:$AK553,SegmentInclusionPct) -> 0.1208005151
A31: 25 - 39: | B31: All | C31: =SUMPRODUCT($AL154:$AL553,SegmentInclusionPct) -> 0.2550340898
A32: 40+: | B32: All | C32: =SUMPRODUCT($AM154:$AM553,SegmentInclusionPct) -> 0.6241653951
A33: Gender ***
A34: Male: | B34: All | C34: =SUMPRODUCT($AN154:$AN553,SegmentInclusionPct) -> 0.4953253305
A35: Female: | B35: All | C35: =SUMPRODUCT($AO154:$AO553,SegmentInclusionPct) -> 0.5046746695
B103: Choose calibration technique | G103: Calibration types
B104: Adjustment factors | G104: Adjustment factors
G105: Shares adjustment
A106: Calibration step: | B106: 1 | G106: Weights adjustment | T106: Variable | U106: Census | V106: Census
A107: Chosen: | T107: types | U107: tables | V107: variables | W107: AgeValidation | X107: IncomeValidation | Y107: GenderValidation
T108: Alternative | U108: HH age income | V108: Age | W108: to | X108: to | Y108: Male
T109: Binary | U109: Persons age sex | V109: Income | W109: 15-24 | X109: 0-$2,499 | Y109: Female
T110: Census | U110: Persons age sex income | V110: Gender | W110: 25-29 | X110: $2,500-$4,999
T111: Composite | U111: Persons age sex education | V111: Children | W111: 30-34 | X111: $5,000-$7,499
T112: Constant | U112: Families marital children educa | V112: Marital | W112: 35-39 | X112: $7,500-$9,999
T113: Discrete | U113: Families marital age | V113: Education | W113: 40-44 | X113: $10,000-$12,499
T114: Continuous | U114: Business revenue | V114: Revenue | W114: 45-49 | X114: $12,500-$14,999
U115: Business employees | V115: Employees | W115: 50-54 | X115: $15,000-$17,499
U116: UK persons age sex | V116: UKAge | W116: 55-59 | X116: $17,500-$19,999
U117: UK HH children SEL | V117: UKGender | W117: 60-64 | X117: $20,000-$22,499
U118: Australia persons age sex | W118: 65-69 | X118: $22,500-$24,999
U119: France persons age sex | W119: 70-74 | X119: $25,000-$27,499
U120: Germany persons age sex | W120: 75+ | X120: $27,500-$29,999
U121: Italy persons age sex | W121: Ignore | X121: $30,000-$32,499
U122: Spain persons age sex | X122: $32,500-$34,999
X123: $35,000-$37,499
X124: $37,500-$39,999
X125: $40,000-$42,499
X126: $42,500-$44,999
X127: $45,000-$47,499
X128: $47,500-$49,999
X129: $50,000-$52,499
X130: $52,500-$54,999
X131: $55,000-$57,499
X132: $57,500-$59,999
X133: $60,000-$62,499
X134: $62,500-$64,999
X135: $65,000-$67,499
I136: Tracking Formulas | X136: $67,500-$69,999
X137: $70,000-$72,499
J138: Share from base scenario: | X138: $72,500-$74,999
J139: Change in share: | K139: =K137-K138 -> 0 | L139: =L137-L138 -> 0 | M139: 0 | N139: 0 | O139: 0 | X139: $75,000-$77,499
X140: $77,500-$79,999
X141: $80,000-$82,499
I142: Calibration Formulas | X142: $82,500-$84,999
X143: $85,000-$87,499 | CA143: Common representative value:
J144: Target market share: | P144: =SUM(K144:O144) -> 0 | X144: $87,500-$89,999
J145: Absolute difference: | K145: =ABS(K143-K144) -> 0 | L145: =ABS(L143-L144) -> 0 | M145: 0 | N145: 0 | O145: 0 | X145: $90,000-$92,499
J146: Sum of squared differences: | K146: =SUMPRODUCT(K145:O145,K145:O145) -> 0 | X146: $92,500-$94,999
X147: $95,000-$97,499 | AJ147: All | AK147: Any age: | AL147: =PRODUCT($AK$149:$AM$149) -> 1 | AN147: Any gender: | AO147: =PRODUCT($AN$149:$AO$149) -> 1 | AW147: Any class: | AX147: =PRODUCT($AW$149:$AY$149) -> 1
J148: Share adjustment ratios: | K148: 1 | L148: 1 | M148: 1 | N148: 1 | O148: 1 | X148: $97,500-$99,999 | AJ148: Only | AK148: =IF(B30=AJ149,0,1) -> 1 | AL148: =IF(B31=AJ149,0,1) -> 1 | AM148: =IF(B32=AJ149,0,1) -> 1 | AN148: =IF(B34=AJ149,0,1) -> 1 | AO148: =IF(B35=AJ149,0,1) -> 1 | AW148: =IF(B26=AJ149,0,1) -> 1 | AX148: =IF(B27=AJ149,0,1) -> 1 | AY148: =IF(B28=AJ149,0,1) -> 1 | CB148: =(H11) -> Your prod. | CC148: =(I11) -> B | CD148: C | CE148: D | CF148: Total | CG148: Any? | CI148: Overflow trigger
X149: $100,000+ | AJ149: Exclude | AK149: =IF(B30=AJ148,0,1) -> 1 | AL149: =IF(B31=AJ148,0,1) -> 1 | AM149: =IF(B32=AJ148,0,1) -> 1 | AN149: =IF(B34=AJ148,0,1) -> 1 | AO149: =IF(B35=AJ148,0,1) -> 1 | AW149: =IF(B26=AJ148,0,1) -> 1 | AX149: =IF(B27=AJ148,0,1) -> 1 | AY149: =IF(B28=AJ148,0,1) -> 1 | CA149: Alternative: | CB149: =IF(H12="",0,1) -> 1 | CC149: =IF(I12="",0,1) -> 1 | CD149: 1 | CE149: 0 | CF149: =SUM($CB$149:$CE$149) -> 3 | CG149: =IF(OR($CB$149:$CE$149),1,0) -> 1 | CI149: 700
X150: Ignore | AK150: Landing zone for demographic data
AJ151: Category: | AK151: Age | AL151: Age | AM151: Age | AN151: Gender | AO151: Gender | AW151: Class | AX151: Class | AY151: Class | BB151: Reweightings to known age and gender distributions | BW151: Segment | BX151: Segment
K152: Coefficients | AC152: Coefficients | AJ152: Census: | AK152: Age | AL152: Age | AM152: Age | AN152: Gender | AO152: Gender | AS152: Posterior probability | AW152: Modal membership | BB152: Sample | BC152: Population | BE152: Revised | BN152: Segment translation table | BW152: inclusion | BX152: inclusion | CB152: Individual representative value | CG152: Numerator | CL152: Denom- | CM152: Purchase probability | CR152: Potential market
A153: Parameters | J153: Variable | K153: Class 1 | L153: Class 2 | M153: Class 3 | N153: Wald | O153: P value | P153: Wald(=) | Q153: P value | R153: Source | S153: Sheet | T153: Var type | U153: Long name | V153: Census name | W153: Based on (1) | X153: Based on (2) | Y153: Based on (3) | Z153: Based on (4) | AA153: Based on (5) | AC153: ID | AD153: Fashion: Traditional | AE153: Fashion: Modern | AF153: Quality: Standard | AG153: Quality: High | AH153: Price | AI153: None | AJ153: ID | AK153: < 25 | AL153: 25 - 39 | AM153: 40+ | AN153: Male | AO153: Female | AP153: Count | AQ153: Percentage | AS153: Modal | AT153: Class 1 | AU153: Class 2 | AV153: Class 3 | AW153: Class1 | AX153: Class2 | AY153: Class3 | BB153: percentage | BC153: percentage | BD153: Ratio | BE153: percentage | BN153: =AK153 -> < 25 | BO153: =AL153 -> 25 - 39 | BP153: 40+ | BQ153: Male | BR153: Female | BS153: =AW153 -> Class1 | BT153: =AX153 -> Class2 | BU153: Class3 | BW153: flags | BX153: percentage | CB153: =CB148 -> Your prod. | CC153: =CC148 -> B | CD153: C | CE153: D | CF153: None | CG153: =CB153 -> Your prod. | CH153: =CC153 -> B | CI153: C | CJ153: D | CK153: None | CL153: inator | CM153: =CG153 -> Your prod. | CN153: =CH153 -> B | CO153: C | CP153: D | CQ153: None | CR153: =CM153 -> Your prod. | CS153: =CN153 -> B | CT153: C | CU153: D | CV153: None
A154: Steps Completed: | B154: 7 | J154: None | K154: -0.2985 | L154: -1.2811 | M154: -1.2484 | N154: 149.0503 | O154: 4.2e-32 | P154: 86.4857 | Q154: 1.7e-19 | R154: Design | S154: Summary | T154: None | U154: None | W154: None | AC154: 6 | AD154: -1.008804209 | AE154: 1.008804209 | AF154: 0.01667672288 | AG154: -0.01667672288 | AH154: -0.01480418626 | AI154: -0.5578075592 | AJ154: 6 | AK154: 1 | AL154: 0 | AM154: 0 | AN154: 1 | AO154: 0 | AP154: 1 | AQ154: =AP154/$AP$554 -> 0.0025 | AS154: 1 | AT154: 0.6703536813 | AU154: 0.0001180977917 | AV154: 0.3295282208 | AW154: =IF($AS154= 1,1,0) -> 1 | AX154: =IF($AS154= 2,1,0) -> 0 | AY154: =IF($AS154= 3,1,0) -> 0 | BB154: =SUM($AQ$154:$AQ$221) -> 0.17 | BC154: =Assumptions!S56 -> 0.06154687459 | BD154: =$BC$154/$BB$154 -> 0.3620404387 | BE154: =AQ154*BD154 -> 0.0009051010969 | BN154: =INDEX(AK$148:AK$149,2-AK154) -> 1 | BO154: =INDEX(AL$148:AL$149,2-AL154) -> 1 | BP154: =INDEX(AM$148:AM$149,2-AM154) -> 1 | BQ154: =INDEX(AN$148:AN$149,2-AN154) -> 1 | BR154: =INDEX(AO$148:AO$149,2-AO154) -> 1 | BS154: =INDEX(AW$148:AW$149,2-AW154) -> 1 | BT154: =INDEX(AX$148:AX$149,2-AX154) -> 1 | BU154: =INDEX(AY$148:AY$149,2-AY154) -> 1 | BW154: =IF(AND(BN154:BU154),1,0) -> 1 | BX154: =BE154*BW154 -> 0.0009051010969 | CB154: =CB$149*(H$16+($BW154*MMULT($AD154:$AH154,CC$3:CC$7))) -> -2.491095372 | CC154: =CC$149*(I$16+($BW154*MMULT($AD154:$AH154,CD$3:CD$7))) -> -0.8250423514 | CD154: -1.362232143 | CE154: 0 | CF154: =IF($CG$149=0,0,$L$16+$AI154) -> -0.5578075592 | CG154: =$BW154*IF(CB$149=0,0,IF(ABS(CB154)>OverflowTrigger,OverflowTrigger,EXP(CB154))) -> 0.08281919905 | CH154: =$BW154*IF(CC$149=0,0,IF(ABS(CC154)>OverflowTrigger,OverflowTrigger,EXP(CC154))) -> 0.438216433 | CI154: =$BW154*IF(CD$149=0,0,IF(ABS(CD154)>OverflowTrigger,OverflowTrigger,EXP(CD154))) -> 0.2560885124 | CJ154: =$BW154*IF(CE$149=0,0,IF(ABS(CE154)>OverflowTrigger,OverflowTrigger,EXP(CE154))) -> 0 | CK154: =IF(L$12="",0,$BW154*IF($CG$149=0,0,IF(ABS(CF154)>OverflowTrigger,OverflowTrigger,EXP(CF154)))) -> 0.5724627798 | CL154: =IF($CG$149=0,0,SUM(CG154:CK154)) -> 1.349586924 | CM154: =IF($CL154=0,0,CG154/$CL154) -> 0.06136633184 | CN154: =IF($CL154=0,0,CH154/$CL154) -> 0.3247041188 | CO154: =IF($CL154=0,0,CI154/$CL154) -> 0.1897532555 | CP154: =IF($CL154=0,0,CJ154/$CL154) -> 0 | CQ154: =IF($CL154=0,0,CK154/$CL154) -> 0.4241762939 | CR154: =CM154*$BX154*TargetMarketSize -> 12.59453716 | CS154: =CN154*$BX154*TargetMarketSize -> 66.64074533 | CT154: =CO154*$BX154*TargetMarketSize -> 38.9440652 | CU154: =CP154*$BX154*TargetMarketSize -> 0 | CV154: =CQ154*$BX154*TargetMarketSize -> 87.05594643
A155: Stat File Path: | B155: C:\Users\George\Documents\StatWizards\Simulator Wizard\Tutorial files\Latent GOLD tutorial | J155: Traditional | K155: -1.5458 | L155: 0.0232 | M155: -0.5218 | N155: 592.0871 | O155: 5.2e-128 | P155: 377.3953 | Q155: 1.1e-82 | R155: Design | S155: Summary | T155: Discrete | U155: Fashion: Traditional | W155: Fashion | X155: Fashion | AC155: 8 | AD155: -0.0005576210854 | AE155: 0.0005576210854 | AF155: -1.231517173 | AG155: 1.231517173 | AH155: -0.01480418626 | AI155: -1.132037143 | AJ155: 8 | AK155: 1 | AL155: 0 | AM155: 0 | AN155: 1 | AO155: 0 | AP155: 1 | AQ155: =AP155/$AP$554 -> 0.0025 | AS155: 2 | AT155: 2.630949594e-07 | AU155: 0.9781222821 | AV155: 0.02187745475 | AW155: 0 | AX155: 1 | AY155: 0 | BD155: 0.3620404387 | BE155: 0.0009051010969 | BN155: 1 | BO155: 1 | BP155: 1 | BQ155: 1 | BR155: 1 | BS155: 1 | BT155: 1 | BU155: 1 | BW155: =IF(AND(BN155:BU155),1,0) -> 1 | BX155: =BE155*BW155 -> 0.0009051010969 | CB155: =CB$149*(H$16+($BW155*MMULT($AD155:$AH155,CC$3:CC$7))) -> -0.2346548888 | CC155: -3.081482835 | CD155: -1.60217945 | CE155: 0 | CF155: =IF($CG$149=0,0,$L$16+$AI155) -> -1.132037143 | CG155: 0.7908437316 | CH155: 0.04589115718 | CI155: 0.2014569737 | CJ155: 0 | CK155: 0.3223758614 | CL155: =IF($CG$149=0,0,SUM(CG155:CK155)) -> 1.360567724 | CM155: =IF($CL155=0,0,CG155/$CL155) -> 0.5812601003 | CN155: 0.03372941778 | CO155: 0.1480683175 | CP155: 0 | CQ155: 0.2369421644 | CR155: 119.2950876 | CS155: 6.922466979 | CT155: 30.38884469 | CU155: 0 | CV155: 48.62889481
A156: Stat File: | B156: Latent GOLD shoe model processed by Format Wizard.xlsm | J156: Modern | K156: 1.5458 | L156: -0.0232 | M156: 0.5218 | R156: Design | S156: Summary | T156: Discrete | U156: Fashion: Modern | W156: Fashion | X156: Fashion | AC156: 37 | AD156: -0.003736064346 | AE156: 0.003736064346 | AF156: -1.223395701 | AG156: 1.223395701 | AH156: -0.01480418626 | AI156: -1.131309223 | AJ156: 37 | AK156: 1 | AL156: 0 | AM156: 0 | AN156: 1 | AO156: 0 | AP156: 1 | AQ156: 0.0025 | AS156: 2 | AT156: 0.0001193535475 | AU156: 0.8347537483 | AV156: 0.1651268981 | AW156: 0 | AX156: 1 | AY156: 0 | BD156: 0.3620404387 | BE156: 0.0009051010969 | BN156: 1 | BO156: 1 | BP156: 1 | BQ156: 1 | BR156: 1 | BS156: 1 | BT156: 1 | BU156: 1 | BW156: 1 | BX156: 0.0009051010969 | CB156: =CB$149*(H$16+($BW156*MMULT($AD156:$AH156,CC$3:CC$7))) -> -0.2459548037 | CC156: -3.07018292 | CD156: -1.597236422 | CE156: 0 | CF156: -1.131309223 | CG156: 0.7819575657 | CH156: 0.0464126643 | CI156: 0.2024552465 | CJ156: 0 | CK156: 0.3226106104 | CL156: 1.353436087 | CM156: 0.5777572899 | CN156: 0.03429246844 | CO156: 0.1495861153 | CP156: 0 | CQ156: 0.2383641264 | CR156: 118.5761873 | CS156: 7.038024846 | CT156: 30.70035036 | CU156: 0 | CV156: 48.92073158
A157: Stat File Type: | B157: LatentGOLDChoice | J157: Standard | K157: 0.0125 | L157: -1.3901 | M157: -0.4683 | N157: 310.2862 | O157: 5.9e-67 | P157: 245.1127 | Q157: 5.9e-54 | R157: Design | S157: Summary | T157: Discrete | U157: Quality: Standard | W157: Quality | X157: Quality | AC157: 39 | AD157: -0.0001211702627 | AE157: 0.0001211702627 | AF157: -1.23266942 | AG157: 1.23266942 | AH157: -0.01480418626 | AI157: -1.132127522 | AJ157: 39 | AK157: 1 | AL157: 0 | AM157: 0 | AN157: 1 | AO157: 0 | AP157: 1 | AQ157: 0.0025 | AS157: 2 | AT157: 3.712305877e-07 | AU157: 0.9895836482 | AV157: 0.01041598046 | AW157: 0 | AX157: 1 | AY157: 0 | BD157: 0.3620404387 | BE157: 0.0009051010969 | BN157: 1 | BO157: 1 | BP157: 1 | BQ157: 1 | BR157: 1 | BS157: 1 | BT157: 1 | BU157: 1 | BW157: 1 | BX157: 0.0009051010969 | CB157: =CB$149*(H$16+($BW157*MMULT($AD157:$AH157,CC$3:CC$7))) -> -0.2330661904 | CC157: -3.083071533 | CD157: -1.602895247 | CE157: 0 | CF157: -1.132127522 | CG157: 0.7921011423 | CH157: 0.04581830785 | CI157: 0.2013128231 | CJ157: 0 | CK157: 0.3223467266 | CL157: 1.361579 | CM157: 0.5817518796 | CN157: 0.03365086261 | CO157: 0.1478524736 | CP157: 0 | CQ157: 0.2367447843 | CR157: 119.3960181 | CS157: 6.906344685 | CT157: 30.3445459 | CU157: 0 | CV157: 48.58838543
A158: Data Path: | J158: High | K158: -0.0125 | L158: 1.3901 | M158: 0.4683 | R158: Design | S158: Summary | T158: Discrete | U158: Quality: High | W158: Quality | X158: Quality | AC158: 62 | AD158: -0.008729099767 | AE158: 0.008729099767 | AF158: -1.210523852 | AG158: 1.210523852 | AH158: -0.01480418626 | AI158: -1.130195145 | AJ158: 62 | AK158: 1 | AL158: 0 | AM158: 0 | AN158: 1 | AO158: 0 | AP158: 1 | AQ158: 0.0025 | AS158: 2 | AT158: 0.0002491410438 | AU158: 0.7702478286 | AV158: 0.2295030302 | AW158: 0 | AX158: 1 | AY158: 0 | BD158: 0.3620404387 | BE158: 0.0009051010969 | BN158: 1 | BO158: 1 | BP158: 1 | BQ158: 1 | BR158: 1 | BS158: 1 | BT158: 1 | BU158: 1 | BW158: 1 | BX158: 0.0009051010969 | CB158: =CB$149*(H$16+($BW158*MMULT($AD158:$AH158,CC$3:CC$7))) -> -0.2638196881 | CC158: -3.052318035 | CD158: -1.589357608 | CE158: 0 | CF158: -1.130195145 | CG158: 0.7681120269 | CH158: 0.04724927187 | CI158: 0.2040566539 | CJ158: 0 | CK158: 0.3229702243 | CL158: 1.342388177 | CM158: 0.5721981466 | CN158: 0.03519792016 | CO158: 0.1520101692 | CP158: 0 | CQ158: 0.240593764 | CR158: 117.4352549 | CS158: 7.223855496 | CT158: 31.19785179 | CU158: 0 | CV158: 49.37833193
A159: Data Workbook: | J159: Price | K159: -0.0173 | L159: -0.0173 | M159: -0.0173 | N159: 144.2048 | O159: 3.2e-33 | P159: 0 | R159: Design | S159: Summary | T159: Continuous | U159: Price | W159: Price | Z159: Price | AC159: 64 | AD159: -0.007873555799 | AE159: 0.007873555799 | AF159: -1.21226954 | AG159: 1.21226954 | AH159: -0.01480418626 | AI159: -1.130504924 | AJ159: 64 | AK159: 1 | AL159: 0 | AM159: 0 | AN159: 1 | AO159: 0 | AP159: 1 | AQ159: 0.0025 | AS159: 2 | AT159: 2.757522925e-05 | AU159: 0.8688509521 | AV159: 0.1311214726 | AW159: 0 | AX159: 1 | AY159: 0 | BD159: 0.3620404387 | BE159: 0.0009051010969 | BN159: 1 | BO159: 1 | BP159: 1 | BQ159: 1 | BR159: 1 | BS159: 1 | BT159: 1 | BU159: 1 | BW159: 1 | BX159: 0.0009051010969 | CB159: =CB$149*(H$16+($BW159*MMULT($AD159:$AH159,CC$3:CC$7))) -> -0.2612184561 | CC159: -3.054919267 | CD159: -1.590247752 | CE159: 0 | CF159: -1.130504924 | CG159: 0.7701126655 | CH159: 0.04712652527 | CI159: 0.2038750949 | CJ159: 0 | CK159: 0.3228701905 | CL159: 1.343984476 | CM159: 0.5730071137 | CN159: 0.03506478394 | CO159: 0.1516945311 | CP159: 0 | CQ159: 0.2402335713 | CR159: 117.6012835 | CS159: 7.196531244 | CT159: 31.13307171 | CU159: 0 | CV159: 49.30440766
A160: Design Type: | B160: Internal | J160: Intercept | K160: 0.3659 | L160: 0.0566 | M160: -0.4224 | N160: 7.5361 | O160: 0.023 | R160: Model | S160: Parameters | T160: Intercept | U160: Intercept | W160: Intercept | AC160: 72 | AD160: -0.008729099767 | AE160: 0.008729099767 | AF160: -1.210523852 | AG160: 1.210523852 | AH160: -0.01480418626 | AI160: -1.130195145 | AJ160: 72 | AK160: 1 | AL160: 0 | AM160: 0 | AN160: 1 | AO160: 0 | AP160: 1 | AQ160: 0.0025 | AS160: 2 | AT160: 0.0002491410438 | AU160: 0.7702478286 | AV160: 0.2295030302 | AW160: 0 | AX160: 1 | AY160: 0 | BD160: 0.3620404387 | BE160: 0.0009051010969 | BN160: 1 | BO160: 1 | BP160: 1 | BQ160: 1 | BR160: 1 | BS160: 1 | BT160: 1 | BU160: 1 | BW160: 1 | BX160: 0.0009051010969 | CB160: =CB$149*(H$16+($BW160*MMULT($AD160:$AH160,CC$3:CC$7))) -> -0.2638196881 | CC160: -3.052318035 | CD160: -1.589357608 | CE160: 0 | CF160: -1.130195145 | CG160: 0.7681120269 | CH160: 0.04724927187 | CI160: 0.2040566539 | CJ160: 0 | CK160: 0.3229702243 | CL160: 1.342388177 | CM160: 0.5721981466 | CN160: 0.03519792016 | CO160: 0.1520101692 | CP160: 0 | CQ160: 0.240593764 | CR160: 117.4352549 | CS160: 7.223855496 | CT160: 31.19785179 | CU160: 0 | CV160: 49.37833193
A161: Design Path: | J161: Male | K161: -0.7031 | L161: -0.3441 | M161: 1.0472 | N161: 24.7792 | O161: 4.2e-06 | R161: Data | S161: Parameters | T161: Census | U161: Gender: Male | V161: Gender | W161: Gender | X161: Male | AC161: 77 | AD161: -1.861368922e-05 | AE161: 1.861368922e-05 | AF161: -1.232939036 | AG161: 1.232939036 | AH161: -0.01480418626 | AI161: -1.132149054 | AJ161: 77 | AK161: 1 | AL161: 0 | AM161: 0 | AN161: 1 | AO161: 0 | AP161: 1 | AQ161: 0.0025 | AS161: 2 | AT161: 7.048831136e-10 | AU161: 0.9988112909 | AV161: 0.001188708276 | AW161: 0 | AX161: 1 | AY161: 0 | BD161: 0.3620404387 | BE161: 0.0009051010969 | BN161: 1 | BO161: 1 | BP161: 1 | BQ161: 1 | BR161: 1 | BS161: 1 | BT161: 1 | BU161: 1 | BW161: 1 | BX161: 0.0009051010969 | CB161: =CB$149*(H$16+($BW161*MMULT($AD161:$AH161,CC$3:CC$7))) -> -0.2326940178 | CC161: -3.083443705 | CD161: -1.603062306 | CE161: 0 | CF161: -1.132149054 | CG161: 0.7923959955 | CH161: 0.04580125871 | CI161: 0.2012791947 | CJ161: 0 | CK161: 0.3223397861 | CL161: 1.361816235 | CM161: 0.5818670501 | CN161: 0.03363248105 | CO161: 0.1478020232 | CP161: 0 | CQ161: 0.2366984457 | CR161: 119.4196552 | CS161: 6.902572139 | CT161: 30.33419169 | CU161: 0 | CV161: 48.57887511
A162: Design File: | J162: Female | K162: 0.7031 | L162: 0.3441 | M162: -1.0472 | R162: Data | S162: Parameters | T162: Census | U162: Gender: Female | V162: Gender | W162: Gender | X162: Female | AC162: 78 | AD162: -0.03670732961 | AE162: 0.03670732961 | AF162: -1.13644362 | AG162: 1.13644362 | AH162: -0.01480418626 | AI162: -1.124457461 | AJ162: 78 | AK162: 1 | AL162: 0 | AM162: 0 | AN162: 1 | AO162: 0 | AP162: 1 | AQ162: 0.0025 | AS162: 2 | AT162: 0.0001419882299 | AU162: 0.6122226818 | AV162: 0.3876353298 | AW162: 0 | AX162: 1 | AY162: 0 | BD162: 0.3620404387 | BE162: 0.0009051010969 | BN162: 1 | BO162: 1 | BP162: 1 | BQ162: 1 | BR162: 1 | BS162: 1 | BT162: 1 | BU162: 1 | BW162: 1 | BX162: 0.0009051010969 | CB162: =CB$149*(H$16+($BW162*MMULT($AD162:$AH162,CC$3:CC$7))) -> -0.3658781496 | CC162: -2.950259574 | CD162: -1.543255606 | CE162: 0 | CF162: -1.124457461 | CG162: 0.69358731 | CH162: 0.0523261217 | CI162: 0.2136842958 | CJ162: 0 | CK162: 0.3248286519 | CL162: 1.284426379 | CM162: 0.539997715 | CN162: 0.04073890301 | CO162: 0.1663655459 | CP162: 0 | CQ162: 0.252897836 | CR162: 110.8265899 | CS162: 8.361060742 | CT162: 34.14408175 | CU162: 0 | CV162: 51.90356176
A163: Created By: | B163: Simulator Builder | J163: < 25 | K163: 1.0463 | L163: -0.1637 | M163: -0.8827 | N163: 63.3894 | O163: 5.6e-13 | R163: Data | S163: Parameters | T163: Census | U163: Age: < 25 | V163: Age | W163: Age | X163: 15-24 | AC163: 93 | AD163: -0.0002868837248 | AE163: 0.0002868837248 | AF163: -1.232233299 | AG163: 1.232233299 | AH163: -0.01480418626 | AI163: -1.132092853 | AJ163: 93 | AK163: 1 | AL163: 0 | AM163: 0 | AN163: 1 | AO163: 0 | AP163: 1 | AQ163: 0.0025 | AS163: 2 | AT163: 8.354054683e-07 | AU163: 0.9843923463 | AV163: 0.01560681819 | AW163: 0 | AX163: 1 | AY163: 0 | BD163: 0.3620404387 | BE163: 0.0009051010969 | BN163: 1 | BO163: 1 | BP163: 1 | BQ163: 1 | BR163: 1 | BS163: 1 | BT163: 1 | BU163: 1 | BW163: 1 | BX163: 0.0009051010969 | CB163: =CB$149*(H$16+($BW163*MMULT($AD163:$AH163,CC$3:CC$7))) -> -0.2336680245 | CC163: -3.082469699 | CD163: -1.60262484 | CE163: 0 | CF163: -1.132092853 | CG163: 0.7916245722 | CH163: 0.04584589117 | CI163: 0.2013672669 | CJ163: 0 | CK163: 0.3223579024 | CL163: 1.361195633 | CM163: 0.5815656128 | CN163: 0.03368060408 | CO163: 0.1479341118 | CP163: 0 | CQ163: 0.2368196714 | CR163: 119.3577896 | CS163: 6.912448683 | CT163: 30.36130094 | CU163: 0 | CV163: 48.6037549
A164: Version: | B164: 18.9 | J164: 25 - 39 | K164: -0.6014 | L164: -0.3352 | M164: 0.9367 | R164: Data | S164: Parameters | T164: Census | U164: Age: 25 - 39 | V164: Age | W164: Age | X164: 25-29 | Y164: 30-34 | Z164: 35-39 | AC164: 98 | AD164: -0.4740364525 | AE164: 0.4740364525 | AF164: -0.01649997641 | AG164: 0.01649997641 | AH164: -0.01480418626 | AI164: -1.02494567 | AJ164: 98 | AK164: 1 | AL164: 0 | AM164: 0 | AN164: 1 | AO164: 0 | AP164: 1 | AQ164: 0.0025 | AS164: 3 | AT164: 0.02811655295 | AU164: 0.008505281057 | AV164: 0.9633781659 | AW164: 0 | AX164: 0 | AY164: 1 | BD164: 0.3620404387 | BE164: 0.0009051010969 | BN164: 1 | BO164: 1 | BP164: 1 | BQ164: 1 | BR164: 1 | BS164: 1 | BT164: 1 | BU164: 1 | BW164: 1 | BX164: 0.0009051010969 | CB164: =CB$149*(H$16+($BW164*MMULT($AD164:$AH164,CC$3:CC$7))) -> -1.923150916 | CC164: -1.392986807 | CD164: -0.8606410855 | CE164: 0 | CF164: -1.02494567 | CG164: 0.1461457429 | CH164: 0.2483324747 | CI164: 0.4228908862 | CJ164: 0 | CK164: 0.3588159594 | CL164: 1.176185063 | CM164: 0.1242540375 | CN164: 0.2111338449 | CO164: 0.3595445134 | CP164: 0 | CQ164: 0.3050676043 | CR164: 25.50131392 | CS164: 43.33211675 | CT164: 73.79122396 | CU164: 0 | CV164: 62.61063949
A165: Alternative Count: | B165: 4 | J165: 40+ | K165: -0.4449 | L165: 0.4989 | M165: -0.054 | R165: Data | S165: Parameters | T165: Census | U165: Age: 40+ | V165: Age | W165: Age | X165: 40-44 | Y165: 45-49 | Z165: to | AA165: 75+ | AC165: 103 | AD165: -0.1524051482 | AE165: 0.1524051482 | AF165: -0.8442821073 | AG165: 0.8442821073 | AH165: -0.01480418626 | AI165: -1.097064502 | AJ165: 103 | AK165: 1 | AL165: 0 | AM165: 0 | AN165: 1 | AO165: 0 | AP165: 1 | AQ165: 0.0025 | AS165: 3 | AT165: 0.002758258904 | AU165: 0.1596916004 | AV165: 0.8375501406 | AW165: 0 | AX165: 0 | AY165: 1 | BD165: 0.3620404387 | BE165: 0.0009051010969 | BN165: 1 | BO165: 1 | BP165: 1 | BQ165: 1 | BR165: 1 | BS165: 1 | BT165: 1 | BU165: 1 | BW165: 1 | BX165: 0.0009051010969 | CB165: =CB$149*(H$16+($BW165*MMULT($AD165:$AH165,CC$3:CC$7))) -> -0.7737374811 | CC165: -2.542400242 | CD165: -1.366791912 | CE165: 0 | CF165: -1.097064502 | CG165: 0.4612857956 | CH165: 0.07867732833 | CI165: 0.254923466 | CJ165: 0 | CK165: 0.3338496617 | CL165: 1.128736252 | CM165: 0.408674564 | CN165: 0.06970390843 | CO165: 0.225848568 | CP165: 0 | CQ165: 0.2957729596 | CR165: 83.87444435 | CS165: 14.30570215 | CT165: 46.35209727 | CU165: 0 | CV165: 60.70305035
A166: Unit Of Measurement: | B166: =IF(CensusTable="","Persons",IF(ISERR(FIND("ersons",CensusTable)),IF(ISERR(FIND("HH",CensusTable)),IF(ISERR(FIND("Families",CensusTable)),IF(ISERR(FIND("Business",CensusTable)),"","Businesses"),"Families"),"Households"),"Persons")) -> Persons | AC166: 105 | AD166: -1.48983982 | AE166: 1.48983982 | AF166: 0.03254095115 | AG166: -0.03254095115 | AH166: -0.01480418626 | AI166: -0.1339925375 | AJ166: 105 | AK166: 1 | AL166: 0 | AM166: 0 | AN166: 1 | AO166: 0 | AP166: 1 | AQ166: 0.0025 | AS166: 1 | AT166: 0.9757722912 | AU166: 1.726898607e-05 | AV166: 0.02421043973 | AW166: 1 | AX166: 0 | AY166: 0 | BD166: 0.3620404387 | BE166: 0.0009051010969 | BN166: 1 | BO166: 1 | BP166: 1 | BQ166: 1 | BR166: 1 | BS166: 1 | BT166: 1 | BU166: 1 | BW166: 1 | BX166: 0.0009051010969 | CB166: =CB$149*(H$16+($BW166*MMULT($AD166:$AH166,CC$3:CC$7))) -> -2.987995211 | CC166: -0.328142512 | CD166: -1.827403525 | CE166: 0 | CF166: -0.1339925375 | CG166: 0.05038835353 | CH166: 0.7202603666 | CI166: 0.1608306187 | CJ166: 0 | CK166: 0.8745965913 | CL166: 1.80607593 | CM166: 0.027899355 | CN166: 0.3987984971 | CO166: 0.0890497548 | CP166: 0 | CQ166: 0.4842523931 | CR166: 5.725932329 | CS166: 81.84752685 | CT166: 18.27615262 | CU166: 0 | CV166: 99.38568232
A167: Census Table: | B167: Persons age sex | J167: Other Composite Vars | K167: Class 1 | L167: Class 2 | M167: Class 3 | N167: Wald | O167: P value | P167: Wald(=) | Q167: P value | R167: Source | S167: Sheet | T167: Var type | U167: Long name | V167: Census name | W167: Based on (1) | X167: Based on (2) | Y167: Based on (3) | Z167: Based on (4) | AA167: Based on (5) | AC167: 107 | AD167: -1.48418392 | AE167: 1.48418392 | AF167: 0.03220640623 | AG167: -0.03220640623 | AH167: -0.01480418626 | AI167: -0.1389373871 | AJ167: 107 | AK167: 1 | AL167: 0 | AM167: 0 | AN167: 1 | AO167: 0 | AP167: 1 | AQ167: 0.0025 | AS167: 1 | AT167: 0.9719768817 | AU167: 5.556553879e-05 | AV167: 0.02796755264 | AW167: 1 | AX167: 0 | AY167: 0 | BD167: 0.3620404387 | BE167: 0.0009051010969 | BN167: 1 | BO167: 1 | BP167: 1 | BQ167: 1 | BR167: 1 | BS167: 1 | BT167: 1 | BU167: 1 | BW167: 1 | BX167: 0.0009051010969 | CB167: =CB$149*(H$16+($BW167*MMULT($AD167:$AH167,CC$3:CC$7))) -> -2.982004766 | CC167: -0.3341329573 | CD167: -1.82208217 | CE167: 0 | CF167: -0.1389373871 | CG167: 0.05069110812 | CH167: 0.715958584 | CI167: 0.1616887368 | CJ167: 0 | CK167: 0.8702825176 | CL167: 1.798620946 | CM167: 0.02818331913 | CN167: 0.3980597387 | CO167: 0.08989594894 | CP167: 0 | CQ167: 0.4838609932 | CR167: 5.78421179 | CS167: 81.69590755 | CT167: 18.44982152 | CU167: 0 | CV167: 99.30535326
A168: Currency Symbol: | B168: =IF(ISERR(FIND("UK",CensusTable)),IF(ISERR(FIND("Germany",CensusTable)),IF(ISERR(FIND("France",CensusTable)),IF(ISERR(FIND("Italy",CensusTable)),IF(ISERR(FIND("Spain",CensusTable)),"$","€"),"€"),"€"),"€"),"£") -> $ | AC168: 110 | AD168: -0.9859883659 | AE168: 0.9859883659 | AF168: 0.009209856291 | AG168: -0.009209856291 | AH168: -0.01480418626 | AI168: -0.5761736015 | AJ168: 110 | AK168: 1 | AL168: 0 | AM168: 0 | AN168: 1 | AO168: 0 | AP168: 1 | AQ168: 0.0025 | AS168: 3 | AT168: 0.4369053008 | AU168: 0.001272424475 | AV168: 0.5618222746 | AW168: 0 | AX168: 0 | AY168: 1 | BD168: 0.3620404387 | BE168: 0.0009051010969 | BN168: 1 | BO168: 1 | BP168: 1 | BQ168: 1 | BR168: 1 | BS168: 1 | BT168: 1 | BU168: 1 | BW168: 1 | BX168: 0.0009051010969 | CB168: =CB$149*(H$16+($BW168*MMULT($AD168:$AH168,CC$3:CC$7))) -> -2.460812662 | CC168: -0.8553250609 | CD168: -1.346883166 | CE168: 0 | CF168: -0.5761736015 | CG168: 0.08536554939 | CH168: 0.4251449706 | CI168: 0.26004953 | CJ168: 0 | CK168: 0.5620448649 | CL168: 1.332604915 | CM168: 0.06405915845 | CN168: 0.3190330201 | CO168: 0.1951437572 | CP168: 0 | CQ168: 0.4217640642 | CR168: 13.14720023 | CS168: 65.47683572 | CT168: 40.0503864 | CU168: 0 | CV168: 86.56087177
A169: None Alternative: | B169: TRUE | AC169: 111 | AD169: -1.416778994 | AE169: 1.416778994 | AF169: 0.03029278154 | AG169: -0.03029278154 | AH169: -0.01480418626 | AI169: -0.1984042705 | AJ169: 111 | AK169: 1 | AL169: 0 | AM169: 0 | AN169: 1 | AO169: 0 | AP169: 1 | AQ169: 0.0025 | AS169: 1 | AT169: 0.9648733421 | AU169: 1.008928098e-06 | AV169: 0.03512564888 | AW169: 1 | AX169: 0 | AY169: 0 | BD169: 0.3620404387 | BE169: 0.0009051010969 | BN169: 1 | BO169: 1 | BP169: 1 | BQ169: 1 | BR169: 1 | BS169: 1 | BT169: 1 | BU169: 1 | BW169: 1 | BX169: 0.0009051010969 | CB169: =CB$149*(H$16+($BW169*MMULT($AD169:$AH169,CC$3:CC$7))) -> -2.912686216 | CC169: -0.4034515073 | CD169: -1.756590869 | CE169: 0 | CF169: -0.1984042705 | CG169: 0.05432959266 | CH169: 0.6680104197 | CI169: 0.1726323881 | CJ169: 0 | CK169: 0.8200382688 | CL169: 1.715010669 | CM169: 0.03167886569 | CN169: 0.3895080256 | CO169: 0.1006596584 | CP169: 0 | CQ169: 0.4781534503 | CR169: 6.501621318 | CS169: 79.94079419 | CT169: 20.6589146 | CU169: 0 | CV169: 98.13396401
A170: None Count: | B170: 1 | AC170: 114 | AD170: -1.493888531 | AE170: 1.493888531 | AF170: 0.0327610469 | AG170: -0.0327610469 | AH170: -0.01480418626 | AI170: -0.130447813 | AJ170: 114 | AK170: 1 | AL170: 0 | AM170: 0 | AN170: 1 | AO170: 0 | AP170: 1 | AQ170: 0.0025 | AS170: 1 | AT170: 0.9945837272 | AU170: 1.457081035e-07 | AV170: 0.005416127031 | AW170: 1 | AX170: 0 | AY170: 0 | BD170: 0.3620404387 | BE170: 0.0009051010969 | BN170: 1 | BO170: 1 | BP170: 1 | BQ170: 1 | BR170: 1 | BS170: 1 | BT170: 1 | BU170: 1 | BW170: 1 | BX170: 0.0009051010969 | CB170: =CB$149*(H$16+($BW170*MMULT($AD170:$AH170,CC$3:CC$7))) -> -2.992264018 | CC170: -0.3238737055 | CD170: -1.83123214 | CE170: 0 | CF170: -0.130447813 | CG170: 0.05017371385 | CH170: 0.7233415907 | CI170: 0.1602160374 | CJ170: 0 | CK170: 0.8777022964 | CL170: 1.811433638 | CM170: 0.027698345 | CN170: 0.3993199504 | CO170: 0.08844709188 | CP170: 0 | CQ170: 0.4845346127 | CR170: 5.684677982 | CS170: 81.95454747 | CT170: 18.15246492 | CU170: 0 | CV170: 99.44360375
A171: Latent Classes: | B171: 3 | AC171: 116 | AD171: -1.491404281 | AE171: 1.491404281 | AF171: 0.03248323911 | AG171: -0.03248323911 | AH171: -0.01480418626 | AI171: -0.1325859162 | AJ171: 116 | AK171: 1 | AL171: 0 | AM171: 0 | AN171: 1 | AO171: 0 | AP171: 1 | AQ171: 0.0025 | AS171: 1 | AT171: 0.9640371848 | AU171: 3.859668331e-05 | AV171: 0.03592421842 | AW171: 1 | AX171: 0 | AY171: 0 | BD171: 0.3620404387 | BE171: 0.0009051010969 | BN171: 1 | BO171: 1 | BP171: 1 | BQ171: 1 | BR171: 1 | BS171: 1 | BT171: 1 | BU171: 1 | BW171: 1 | BX171: 0.0009051010969 | CB171: =CB$149*(H$16+($BW171*MMULT($AD171:$AH171,CC$3:CC$7))) -> -2.98950196 | CC171: -0.3266357632 | CD171: -1.829025698 | CE171: 0 | CF171: -0.1325859162 | CG171: 0.05031248811 | CH171: 0.7213464361 | CI171: 0.1605699351 | CJ171: 0 | CK171: 0.8758276831 | CL171: 1.808056542 | CM171: 0.02782683336 | CN171: 0.3989623218 | CO171: 0.0888080275 | CP171: 0 | CQ171: 0.4844028174 | CR171: 5.711048329 | CS171: 81.88114945 | CT171: 18.22654164 | CU171: 0 | CV171: 99.41655469
A172: A S Constants Used: | B172: FALSE | AC172: 121 | AD172: -0.9855164424 | AE172: 0.9855164424 | AF172: 0.0162718671 | AG172: -0.0162718671 | AH172: -0.01480418626 | AI172: -0.5784190606 | AJ172: 121 | AK172: 1 | AL172: 0 | AM172: 0 | AN172: 1 | AO172: 0 | AP172: 1 | AQ172: 0.0025 | AS172: 1 | AT172: 0.7533635792 | AU172: 5.866844211e-05 | AV172: 0.2465777523 | AW172: 1 | AX172: 0 | AY172: 0 | BD172: 0.3620404387 | BE172: 0.0009051010969 | BN172: 1 | BO172: 1 | BP172: 1 | BQ172: 1 | BR172: 1 | BS172: 1 | BT172: 1 | BU172: 1 | BW172: 1 | BX172: 0.0009051010969 | CB172: =CB$149*(H$16+($BW172*MMULT($AD172:$AH172,CC$3:CC$7))) -> -2.46740275 | CC172: -0.8487349736 | CD172: -1.339349232 | CE172: 0 | CF172: -0.5784190606 | CG172: 0.08480483259 | CH172: 0.4279559653 | CI172: 0.2620161248 | CJ172: 0 | CK172: 0.560784232 | CL172: 1.335561155 | CM172: 0.06349752858 | CN172: 0.3204315757 | CO172: 0.196184296 | CP172: 0 | CQ172: 0.4198865998 | CR172: 13.03193395 | CS172: 65.76386868 | CT172: 40.26394168 | CU172: 0 | CV172: 86.1755498
A173: Number of products in marketplace: | B173: 4 | AC173: 122 | AD173: -0.2120560425 | AE173: 0.2120560425 | AF173: -0.7670744379 | AG173: 0.7670744379 | AH173: -0.01480418626 | AI173: -1.063960172 | AJ173: 122 | AK173: 1 | AL173: 0 | AM173: 0 | AN173: 1 | AO173: 0 | AP173: 1 | AQ173: 0.0025 | AS173: 3 | AT173: 0.01833725808 | AU173: 0.1487420931 | AV173: 0.8329206487 | AW173: 0 | AX173: 0 | AY173: 1 | BD173: 0.3620404387 | BE173: 0.0009051010969 | BN173: 1 | BO173: 1 | BP173: 1 | BQ173: 1 | BR173: 1 | BS173: 1 | BT173: 1 | BU173: 1 | BW173: 1 | BX173: 0.0009051010969 | CB173: =CB$149*(H$16+($BW173*MMULT($AD173:$AH173,CC$3:CC$7))) -> -0.9105960449 | CC173: -2.405541678 | CD173: -1.349235137 | CE173: 0 | CF173: -1.063960172 | CG173: 0.402284373 | CH173: 0.09021661398 | CI173: 0.2594386198 | CJ173: 0 | CK173: 0.3450864987 | CL173: 1.097026106 | CM173: 0.3667044667 | CN173: 0.08223743585 | CO173: 0.2364926582 | CP173: 0 | CQ173: 0.3145654392 | CR173: 75.26069909 | CS173: 16.87802433 | CT173: 48.53664026 | CU173: 0 | CV173: 64.55993044
A174: Skip Weighting: | B174: FALSE | AC174: 125 | AD174: -1.491205654 | AE174: 1.491205654 | AF174: 0.03266936645 | AG174: -0.03266936645 | AH174: -0.01480418626 | AI174: -0.1328107261 | AJ174: 125 | AK174: 1 | AL174: 0 | AM174: 0 | AN174: 1 | AO174: 0 | AP174: 1 | AQ174: 0.0025 | AS174: 1 | AT174: 0.9906032014 | AU174: 1.060501197e-06 | AV174: 0.009395738011 | AW174: 1 | AX174: 0 | AY174: 0 | BD174: 0.3620404387 | BE174: 0.0009051010969 | BN174: 1 | BO174: 1 | BP174: 1 | BQ174: 1 | BR174: 1 | BS174: 1 | BT174: 1 | BU174: 1 | BW174: 1 | BX174: 0.0009051010969 | CB174: =CB$149*(H$16+($BW174*MMULT($AD174:$AH174,CC$3:CC$7))) -> -2.989489461 | CC174: -0.3266482625 | CD174: -1.828640944 | CE174: 0 | CF174: -0.1328107261 | CG174: 0.05031311699 | CH174: 0.7213374198 | CI174: 0.160631727 | CJ174: 0 | CK174: 0.8756308105 | CL174: 1.807913074 | CM174: 0.02782938942 | CN174: 0.3989889946 | CO174: 0.08884925346 | CP174: 0 | CQ174: 0.4843323625 | CR174: 5.711572923 | CS174: 81.88662366 | CT174: 18.23500267 | CU174: 0 | CV174: 99.40209487
A175: Use My Weights: | B175: FALSE | AC175: 133 | AD175: -1.403260884 | AE175: 1.403260884 | AF175: 0.02847697443 | AG175: -0.02847697443 | AH175: -0.01480418626 | AI175: -0.2099601966 | AJ175: 133 | AK175: 1 | AL175: 0 | AM175: 0 | AN175: 1 | AO175: 0 | AP175: 1 | AQ175: 0.0025 | AS175: 1 | AT175: 0.8003836159 | AU175: 0.000228718842 | AV175: 0.1993876652 | AW175: 1 | AX175: 0 | AY175: 0 | BD175: 0.3620404387 | BE175: 0.0009051010969 | BN175: 1 | BO175: 1 | BP175: 1 | BQ175: 1 | BR175: 1 | BS175: 1 | BT175: 1 | BU175: 1 | BW175: 1 | BX175: 0.0009051010969 | CB175: =CB$149*(H$16+($BW175*MMULT($AD175:$AH175,CC$3:CC$7))) -> -2.897352299 | CC175: -0.4187854244 | CD175: -1.744888566 | CE175: 0 | CF175: -0.2099601966 | CG175: 0.05516909813 | CH175: 0.6578453377 | CI175: 0.1746644514 | CJ175: 0 | CK175: 0.8106165106 | CL175: 1.698295398 | CM175: 0.03248498359 | CN175: 0.3873562506 | CO175: 0.1028469203 | CP175: 0 | CQ175: 0.4773118455 | CR175: 6.667065162 | CS175: 79.49917402 | CT175: 21.10781793 | CU175: 0 | CV175: 97.96123701
A176: Interpolate Prices: | AC176: 141 | AD176: -1.488050025 | AE176: 1.488050025 | AF176: 0.03253349636 | AG176: -0.03253349636 | AH176: -0.01480418626 | AI176: -0.1355827635 | AJ176: 141 | AK176: 1 | AL176: 0 | AM176: 0 | AN176: 1 | AO176: 0 | AP176: 1 | AQ176: 0.0025 | AS176: 1 | AT176: 0.9837407273 | AU176: 7.695931026e-06 | AV176: 0.0162515767 | AW176: 1 | AX176: 0 | AY176: 0 | BD176: 0.3620404387 | BE176: 0.0009051010969 | BN176: 1 | BO176: 1 | BP176: 1 | BQ176: 1 | BR176: 1 | BS176: 1 | BT176: 1 | BU176: 1 | BW176: 1 | BX176: 0.0009051010969 | CB176: =CB$149*(H$16+($BW176*MMULT($AD176:$AH176,CC$3:CC$7))) -> -2.986197961 | CC176: -0.3299397621 | CD176: -1.825621185 | CE176: 0 | CF176: -0.1355827635 | CG176: 0.05047899543 | CH176: 0.7189670412 | CI176: 0.1611175293 | CJ176: 0 | CK176: 0.8732068902 | CL176: 1.803770456 | CM176: 0.02798526568 | CN176: 0.3985912058 | CO176: 0.08932263455 | CP176: 0 | CQ176: 0.4841008939 | CR176: 5.743564232 | CS176: 81.80498337 | CT176: 18.33215717 | CU176: 0 | CV176: 99.35458935
A177: Ignore Embedded Price Phrases: | B177: FALSE | AC177: 146 | AD177: -1.416778994 | AE177: 1.416778994 | AF177: 0.03029278154 | AG177: -0.03029278154 | AH177: -0.01480418626 | AI177: -0.1984042705 | AJ177: 146 | AK177: 1 | AL177: 0 | AM177: 0 | AN177: 1 | AO177: 0 | AP177: 1 | AQ177: 0.0025 | AS177: 1 | AT177: 0.9648733421 | AU177: 1.008928098e-06 | AV177: 0.03512564888 | AW177: 1 | AX177: 0 | AY177: 0 | BD177: 0.3620404387 | BE177: 0.0009051010969 | BN177: 1 | BO177: 1 | BP177: 1 | BQ177: 1 | BR177: 1 | BS177: 1 | BT177: 1 | BU177: 1 | BW177: 1 | BX177: 0.0009051010969 | CB177: =CB$149*(H$16+($BW177*MMULT($AD177:$AH177,CC$3:CC$7))) -> -2.912686216 | CC177: -0.4034515073 | CD177: -1.756590869 | CE177: 0 | CF177: -0.1984042705 | CG177: 0.05432959266 | CH177: 0.6680104197 | CI177: 0.1726323881 | CJ177: 0 | CK177: 0.8200382688 | CL177: 1.715010669 | CM177: 0.03167886569 | CN177: 0.3895080256 | CO177: 0.1006596584 | CP177: 0 | CQ177: 0.4781534503 | CR177: 6.501621318 | CS177: 79.94079419 | CT177: 20.6589146 | CU177: 0 | CV177: 98.13396401
A178: Vertical Layout: | B178: FALSE | AC178: 147 | AD178: -1.488050025 | AE178: 1.488050025 | AF178: 0.03253349636 | AG178: -0.03253349636 | AH178: -0.01480418626 | AI178: -0.1355827635 | AJ178: 147 | AK178: 1 | AL178: 0 | AM178: 0 | AN178: 1 | AO178: 0 | AP178: 1 | AQ178: 0.0025 | AS178: 1 | AT178: 0.9837407273 | AU178: 7.695931026e-06 | AV178: 0.0162515767 | AW178: 1 | AX178: 0 | AY178: 0 | BD178: 0.3620404387 | BE178: 0.0009051010969 | BN178: 1 | BO178: 1 | BP178: 1 | BQ178: 1 | BR178: 1 | BS178: 1 | BT178: 1 | BU178: 1 | BW178: 1 | BX178: 0.0009051010969 | CB178: =CB$149*(H$16+($BW178*MMULT($AD178:$AH178,CC$3:CC$7))) -> -2.986197961 | CC178: -0.3299397621 | CD178: -1.825621185 | CE178: 0 | CF178: -0.1355827635 | CG178: 0.05047899543 | CH178: 0.7189670412 | CI178: 0.1611175293 | CJ178: 0 | CK178: 0.8732068902 | CL178: 1.803770456 | CM178: 0.02798526568 | CN178: 0.3985912058 | CO178: 0.08932263455 | CP178: 0 | CQ178: 0.4841008939 | CR178: 5.743564232 | CS178: 81.80498337 | CT178: 18.33215717 | CU178: 0 | CV178: 99.35458935
A179: Vertical Layout Attribute: | B179: Fashion | AC179: 159 | AD179: -1.491205654 | AE179: 1.491205654 | AF179: 0.03266936645 | AG179: -0.03266936645 | AH179: -0.01480418626 | AI179: -0.1328107261 | AJ179: 159 | AK179: 1 | AL179: 0 | AM179: 0 | AN179: 1 | AO179: 0 | AP179: 1 | AQ179: 0.0025 | AS179: 1 | AT179: 0.9906032014 | AU179: 1.060501197e-06 | AV179: 0.009395738011 | AW179: 1 | AX179: 0 | AY179: 0 | BD179: 0.3620404387 | BE179: 0.0009051010969 | BN179: 1 | BO179: 1 | BP179: 1 | BQ179: 1 | BR179: 1 | BS179: 1 | BT179: 1 | BU179: 1 | BW179: 1 | BX179: 0.0009051010969 | CB179: =CB$149*(H$16+($BW179*MMULT($AD179:$AH179,CC$3:CC$7))) -> -2.989489461 | CC179: -0.3266482625 | CD179: -1.828640944 | CE179: 0 | CF179: -0.1328107261 | CG179: 0.05031311699 | CH179: 0.7213374198 | CI179: 0.160631727 | CJ179: 0 | CK179: 0.8756308105 | CL179: 1.807913074 | CM179: 0.02782938942 | CN179: 0.3989889946 | CO179: 0.08884925346 | CP179: 0 | CQ179: 0.4843323625 | CR179: 5.711572923 | CS179: 81.88662366 | CT179: 18.23500267 | CU179: 0 | CV179: 99.40209487
AC180: 164 | AD180: -1.408821467 | AE180: 1.408821467 | AF180: 0.03004368512 | AG180: -0.03004368512 | AH180: -0.01480418626 | AI180: -0.2054186746 | AJ180: 164 | AK180: 1 | AL180: 0 | AM180: 0 | AN180: 1 | AO180: 0 | AP180: 1 | AQ180: 0.0025 | AS180: 1 | AT180: 0.9763341842 | AU180: 4.512846503e-07 | AV180: 0.02366536446 | AW180: 1 | AX180: 0 | AY180: 0 | BD180: 0.3620404387 | BE180: 0.0009051010969 | BN180: 1 | BO180: 1 | BP180: 1 | BQ180: 1 | BR180: 1 | BS180: 1 | BT180: 1 | BU180: 1 | BW180: 1 | BX180: 0.0009051010969 | CB180: =CB$149*(H$16+($BW180*MMULT($AD180:$AH180,CC$3:CC$7))) -> -2.904479592 | CC180: -0.4116581309 | CD180: -1.748882439 | CE180: 0 | CF180: -0.2054186746 | CG180: 0.0547772897 | CH180: 0.662550743 | CI180: 0.1739682551 | CJ180: 0 | CK180: 0.8143063157 | CL180: 1.705602603 | CM180: 0.03211609175 | CN180: 0.3884555181 | CO180: 0.1019981177 | CP180: 0 | CQ180: 0.4774302725 | CR180: 6.591355536 | CS180: 79.72478251 | CT180: 20.93361368 | CU180: 0 | CV180: 97.98554239
AC181: 165 | AD181: -0.9658104591 | AE181: 0.9658104591 | AF181: 0.01265904934 | AG181: -0.01265904934 | AH181: -0.01480418626 | AI181: -0.5950149929 | AJ181: 165 | AK181: 1 | AL181: 0 | AM181: 0 | AN181: 1 | AO181: 0 | AP181: 1 | AQ181: 0.0025 | AS181: 1 | AT181: 0.5383633398 | AU181: 0.0006930783553 | AV181: 0.4609435818 | AW181: 1 | AX181: 0 | AY181: 0 | BD181: 0.3620404387 | BE181: 0.0009051010969 | BN181: 1 | BO181: 1 | BP181: 1 | BQ181: 1 | BR181: 1 | BS181: 1 | BT181: 1 | BU181: 1 | BW181: 1 | BX181: 0.0009051010969 | CB181: =CB$149*(H$16+($BW181*MMULT($AD181:$AH181,CC$3:CC$7))) -> -2.444083949 | CC181: -0.8720537747 | CD181: -1.323256066 | CE181: 0 | CF181: -0.5950149929 | CG181: 0.0868056169 | CH181: 0.4180920001 | CI181: 0.2662669062 | CJ181: 0 | CK181: 0.5515542964 | CL181: 1.32271882 | CM181: 0.06562665897 | CN181: 0.3160853191 | CO181: 0.2013027276 | CP181: 0 | CQ181: 0.4169852944 | CR181: 13.46890666 | CS181: 64.87186342 | CT181: 41.31442451 | CU181: 0 | CV181: 85.58009953
AC182: 167 | AD182: -1.493888531 | AE182: 1.493888531 | AF182: 0.0327610469 | AG182: -0.0327610469 | AH182: -0.01480418626 | AI182: -0.130447813 | AJ182: 167 | AK182: 1 | AL182: 0 | AM182: 0 | AN182: 1 | AO182: 0 | AP182: 1 | AQ182: 0.0025 | AS182: 1 | AT182: 0.9945837272 | AU182: 1.457081035e-07 | AV182: 0.005416127031 | AW182: 1 | AX182: 0 | AY182: 0 | BD182: 0.3620404387 | BE182: 0.0009051010969 | BN182: 1 | BO182: 1 | BP182: 1 | BQ182: 1 | BR182: 1 | BS182: 1 | BT182: 1 | BU182: 1 | BW182: 1 | BX182: 0.0009051010969 | CB182: =CB$149*(H$16+($BW182*MMULT($AD182:$AH182,CC$3:CC$7))) -> -2.992264018 | CC182: -0.3238737055 | CD182: -1.83123214 | CE182: 0 | CF182: -0.130447813 | CG182: 0.05017371385 | CH182: 0.7233415907 | CI182: 0.1602160374 | CJ182: 0 | CK182: 0.8777022964 | CL182: 1.811433638 | CM182: 0.027698345 | CN182: 0.3993199504 | CO182: 0.08844709188 | CP182: 0 | CQ182: 0.4845346127 | CR182: 5.684677982 | CS182: 81.95454747 | CT182: 18.15246492 | CU182: 0 | CV182: 99.44360375
A183: Census Variable Table | C183: to | AC183: 169 | AD183: -1.356081927 | AE183: 1.356081927 | AF183: 0.02760633186 | AG183: -0.02760633186 | AH183: -0.01480418626 | AI183: -0.2517042381 | AJ183: 169 | AK183: 1 | AL183: 0 | AM183: 0 | AN183: 1 | AO183: 0 | AP183: 1 | AQ183: 0.0025 | AS183: 1 | AT183: 0.8863238495 | AU183: 0.0001598643919 | AV183: 0.113516286 | AW183: 1 | AX183: 0 | AY183: 0 | BD183: 0.3620404387 | BE183: 0.0009051010969 | BN183: 1 | BO183: 1 | BP183: 1 | BQ183: 1 | BR183: 1 | BS183: 1 | BT183: 1 | BU183: 1 | BW183: 1 | BX183: 0.0009051010969 | CB183: =CB$149*(H$16+($BW183*MMULT($AD183:$AH183,CC$3:CC$7))) -> -2.849302699 | CC183: -0.4668350247 | CD183: -1.698580251 | CE183: 0 | CF183: -0.2517042381 | CG183: 0.05788466987 | CH183: 0.6269835187 | CI183: 0.182943073 | CJ183: 0 | CK183: 0.7774746515 | CL183: 1.645285913 | CM183: 0.03518213425 | CN183: 0.3810787619 | CO183: 0.1111922685 | CP183: 0 | CQ183: 0.4725468354 | CR183: 7.22061567 | CS183: 78.21081178 | CT183: 22.82057792 | CU183: 0 | CV183: 96.98328874
A184: Age | B184: Y | C184: TRUE | AC184: 176 | AD184: -1.492786084 | AE184: 1.492786084 | AF184: 0.03271123565 | AG184: -0.03271123565 | AH184: -0.01480418626 | AI184: -0.1314156425 | AJ184: 176 | AK184: 1 | AL184: 0 | AM184: 0 | AN184: 1 | AO184: 0 | AP184: 1 | AQ184: 0.0025 | AS184: 1 | AT184: 0.9859524585 | AU184: 2.387840164e-06 | AV184: 0.01404515356 | AW184: 1 | AX184: 0 | AY184: 0 | BD184: 0.3620404387 | BE184: 0.0009051010969 | BN184: 1 | BO184: 1 | BP184: 1 | BQ184: 1 | BR184: 1 | BS184: 1 | BT184: 1 | BU184: 1 | BW184: 1 | BX184: 0.0009051010969 | CB184: =CB$149*(H$16+($BW184*MMULT($AD184:$AH184,CC$3:CC$7))) -> -2.99111176 | CC184: -0.3250259633 | CD184: -1.830179505 | CE184: 0 | CF184: -0.1314156425 | CG184: 0.05023156023 | CH184: 0.7225085947 | CI184: 0.1603847753 | CJ184: 0 | CK184: 0.8768532412 | CL184: 1.809978171 | CM184: 0.02775257792 | CN184: 0.3991808333 | CO184: 0.08861144175 | CP184: 0 | CQ184: 0.4844551471 | CR184: 5.695808491 | CS184: 81.92599572 | CT184: 18.18619531 | CU184: 0 | CV184: 99.42729459
A185: Income | B185: N | C185: TRUE | AC185: 185 | AD185: -1.400258557 | AE185: 1.400258557 | AF185: 0.0297726531 | AG185: -0.0297726531 | AH185: -0.01480418626 | AI185: -0.21296594 | AJ185: 185 | AK185: 1 | AL185: 0 | AM185: 0 | AN185: 1 | AO185: 0 | AP185: 1 | AQ185: 0.0025 | AS185: 1 | AT185: 0.984117178 | AU185: 2.0107637e-07 | AV185: 0.01588262084 | AW185: 1 | AX185: 0 | AY185: 0 | BD185: 0.3620404387 | BE185: 0.0009051010969 | BN185: 1 | BO185: 1 | BP185: 1 | BQ185: 1 | BR185: 1 | BS185: 1 | BT185: 1 | BU185: 1 | BW185: 1 | BX185: 0.0009051010969 | CB185: =CB$149*(H$16+($BW185*MMULT($AD185:$AH185,CC$3:CC$7))) -> -2.89564565 | CC185: -0.4204920729 | CD185: -1.740590561 | CE185: 0 | CF185: -0.21296594 | CG185: 0.05526333278 | CH185: 0.6567235844 | CI185: 0.1754167758 | CJ185: 0 | CK185: 0.8081836635 | CL185: 1.695587356 | CM185: 0.03259244212 | CN185: 0.3873133295 | CO185: 0.1034548737 | CP185: 0 | CQ185: 0.4766393547 | CR185: 6.689119445 | CS185: 79.49036509 | CT185: 21.23259143 | CU185: 0 | CV185: 97.82321816
A186: Gender | B186: Y | C186: FALSE | AC186: 188 | AD186: -1.491205654 | AE186: 1.491205654 | AF186: 0.03266936645 | AG186: -0.03266936645 | AH186: -0.01480418626 | AI186: -0.1328107261 | AJ186: 188 | AK186: 1 | AL186: 0 | AM186: 0 | AN186: 1 | AO186: 0 | AP186: 1 | AQ186: 0.0025 | AS186: 1 | AT186: 0.9906032014 | AU186: 1.060501197e-06 | AV186: 0.009395738011 | AW186: 1 | AX186: 0 | AY186: 0 | BD186: =$BC$154/$BB$154 -> 0.3620404387 | BE186: 0.0009051010969 | BN186: 1 | BO186: 1 | BP186: 1 | BQ186: 1 | BR186: 1 | BS186: 1 | BT186: 1 | BU186: 1 | BW186: 1 | BX186: 0.0009051010969 | CB186: =CB$149*(H$16+($BW186*MMULT($AD186:$AH186,CC$3:CC$7))) -> -2.989489461 | CC186: -0.3266482625 | CD186: -1.828640944 | CE186: 0 | CF186: -0.1328107261 | CG186: 0.05031311699 | CH186: 0.7213374198 | CI186: 0.160631727 | CJ186: 0 | CK186: 0.8756308105 | CL186: 1.807913074 | CM186: 0.02782938942 | CN186: 0.3989889946 | CO186: 0.08884925346 | CP186: 0 | CQ186: 0.4843323625 | CR186: 5.711572923 | CS186: 81.88662366 | CT186: 18.23500267 | CU186: 0 | CV186: 99.40209487
A187: Education | B187: N | C187: TRUE | AC187: 189 | AD187: -1.493888531 | AE187: 1.493888531 | AF187: 0.0327610469 | AG187: -0.0327610469 | AH187: -0.01480418626 | AI187: -0.130447813 | AJ187: 189 | AK187: 1 | AL187: 0 | AM187: 0 | AN187: 1 | AO187: 0 | AP187: 1 | AQ187: 0.0025 | AS187: 1 | AT187: 0.9945837272 | AU187: 1.457081035e-07 | AV187: 0.005416127031 | AW187: 1 | AX187: 0 | AY187: 0 | BD187: 0.3620404387 | BE187: 0.0009051010969 | BN187: 1 | BO187: 1 | BP187: 1 | BQ187: 1 | BR187: 1 | BS187: 1 | BT187: 1 | BU187: 1 | BW187: 1 | BX187: 0.0009051010969 | CB187: =CB$149*(H$16+($BW187*MMULT($AD187:$AH187,CC$3:CC$7))) -> -2.992264018 | CC187: -0.3238737055 | CD187: -1.83123214 | CE187: 0 | CF187: -0.130447813 | CG187: 0.05017371385 | CH187: 0.7233415907 | CI187: 0.1602160374 | CJ187: 0 | CK187: 0.8777022964 | CL187: 1.811433638 | CM187: 0.027698345 | CN187: 0.3993199504 | CO187: 0.08844709188 | CP187: 0 | CQ187: 0.4845346127 | CR187: 5.684677982 | CS187: 81.95454747 | CT187: 18.15246492 | CU187: 0 | CV187: 99.44360375
A188: Children | B188: N | C188: FALSE | AC188: 214 | AD188: -1.495253279 | AE188: 1.495253279 | AF188: 0.03280312081 | AG188: -0.03280312081 | AH188: -0.01480418626 | AI188: -0.1292446466 | AJ188: 214 | AK188: 1 | AL188: 0 | AM188: 0 | AN188: 1 | AO188: 0 | AP188: 1 | AQ188: 0.0025 | AS188: 1 | AT188: 0.9918872749 | AU188: 3.287324056e-07 | AV188: 0.008112396284 | AW188: 1 | AX188: 0 | AY188: 0 | BD188: 0.3620404387 | BE188: 0.0009051010969 | BN188: 1 | BO188: 1 | BP188: 1 | BQ188: 1 | BR188: 1 | BS188: 1 | BT188: 1 | BU188: 1 | BW188: 1 | BX188: 0.0009051010969 | CB188: =CB$149*(H$16+($BW188*MMULT($AD188:$AH188,CC$3:CC$7))) -> -2.99367084 | CC188: -0.322466883 | CD188: -1.832554815 | CE188: 0 | CF188: -0.1292446466 | CG188: 0.05010317797 | CH188: 0.72435992 | CI188: 0.1600042638 | CJ188: 0 | CK188: 0.8787589538 | CL188: 1.813226316 | CM188: 0.02763205979 | CN188: 0.3994867677 | CO188: 0.08824285334 | CP188: 0 | CQ188: 0.4846383191 | CR188: 5.671073919 | CS188: 81.98878427 | CT188: 18.11054796 | CU188: 0 | CV188: 99.46488797
A189: Marital | B189: N | C189: FALSE | AC189: 231 | AD189: -1.492786084 | AE189: 1.492786084 | AF189: 0.03271123565 | AG189: -0.03271123565 | AH189: -0.01480418626 | AI189: -0.1314156425 | AJ189: 231 | AK189: 1 | AL189: 0 | AM189: 0 | AN189: 1 | AO189: 0 | AP189: 1 | AQ189: 0.0025 | AS189: 1 | AT189: 0.9859524585 | AU189: 2.387840164e-06 | AV189: 0.01404515356 | AW189: 1 | AX189: 0 | AY189: 0 | BD189: 0.3620404387 | BE189: 0.0009051010969 | BN189: 1 | BO189: 1 | BP189: 1 | BQ189: 1 | BR189: 1 | BS189: 1 | BT189: 1 | BU189: 1 | BW189: 1 | BX189: 0.0009051010969 | CB189: =CB$149*(H$16+($BW189*MMULT($AD189:$AH189,CC$3:CC$7))) -> -2.99111176 | CC189: -0.3250259633 | CD189: -1.830179505 | CE189: 0 | CF189: -0.1314156425 | CG189: 0.05023156023 | CH189: 0.7225085947 | CI189: 0.1603847753 | CJ189: 0 | CK189: 0.8768532412 | CL189: 1.809978171 | CM189: 0.02775257792 | CN189: 0.3991808333 | CO189: 0.08861144175 | CP189: 0 | CQ189: 0.4844551471 | CR189: 5.695808491 | CS189: 81.92599572 | CT189: 18.18619531 | CU189: 0 | CV189: 99.42729459
A190: SEL | B190: N | C190: TRUE | AC190: 233 | AD190: -1.376158654 | AE190: 1.376158654 | AF190: 0.02887212251 | AG190: -0.02887212251 | AH190: -0.01480418626 | AI190: -0.2341717561 | AJ190: 233 | AK190: 1 | AL190: 0 | AM190: 0 | AN190: 1 | AO190: 0 | AP190: 1 | AQ190: 0.0025 | AS190: 1 | AT190: 0.9314823523 | AU190: 2.299137031e-05 | AV190: 0.06849465627 | AW190: 1 | AX190: 0 | AY190: 0 | BD190: 0.3620404387 | BE190: 0.0009051010969 | BN190: 1 | BO190: 1 | BP190: 1 | BQ190: 1 | BR190: 1 | BS190: 1 | BT190: 1 | BU190: 1 | BW190: 1 | BX190: 0.0009051010969 | CB190: =CB$149*(H$16+($BW190*MMULT($AD190:$AH190,CC$3:CC$7))) -> -2.870645216 | CC190: -0.4454925069 | CD190: -1.717391188 | CE190: 0 | CF190: -0.2341717561 | CG190: 0.0566623553 | CH190: 0.6405087433 | CI190: 0.1795339078 | CJ190: 0 | CK190: 0.7912259064 | CL190: 1.667930913 | CM190: 0.03397164407 | CN190: 0.3840139531 | CO190: 0.1076386956 | CP190: 0 | CQ190: 0.4743757072 | CR190: 6.972180363 | CS190: 78.81321661 | CT190: 22.09125934 | CU190: 0 | CV190: 97.3586378
A191: Revenue | B191: N | C191: TRUE | AC191: 237 | AD191: -1.492786084 | AE191: 1.492786084 | AF191: 0.03271123565 | AG191: -0.03271123565 | AH191: -0.01480418626 | AI191: -0.1314156425 | AJ191: 237 | AK191: 1 | AL191: 0 | AM191: 0 | AN191: 1 | AO191: 0 | AP191: 1 | AQ191: 0.0025 | AS191: 1 | AT191: 0.9859524585 | AU191: 2.387840164e-06 | AV191: 0.01404515356 | AW191: 1 | AX191: 0 | AY191: 0 | BD191: 0.3620404387 | BE191: 0.0009051010969 | BN191: 1 | BO191: 1 | BP191: 1 | BQ191: 1 | BR191: 1 | BS191: 1 | BT191: 1 | BU191: 1 | BW191: 1 | BX191: 0.0009051010969 | CB191: =CB$149*(H$16+($BW191*MMULT($AD191:$AH191,CC$3:CC$7))) -> -2.99111176 | CC191: -0.3250259633 | CD191: -1.830179505 | CE191: 0 | CF191: -0.1314156425 | CG191: 0.05023156023 | CH191: 0.7225085947 | CI191: 0.1603847753 | CJ191: 0 | CK191: 0.8768532412 | CL191: 1.809978171 | CM191: 0.02775257792 | CN191: 0.3991808333 | CO191: 0.08861144175 | CP191: 0 | CQ191: 0.4844551471 | CR191: 5.695808491 | CS191: 81.92599572 | CT191: 18.18619531 | CU191: 0 | CV191: 99.42729459
A192: Business Type | B192: N | C192: TRUE | AC192: 239 | AD192: -1.48983982 | AE192: 1.48983982 | AF192: 0.03254095115 | AG192: -0.03254095115 | AH192: -0.01480418626 | AI192: -0.1339925375 | AJ192: 239 | AK192: 1 | AL192: 0 | AM192: 0 | AN192: 1 | AO192: 0 | AP192: 1 | AQ192: 0.0025 | AS192: 1 | AT192: 0.9757722912 | AU192: 1.726898607e-05 | AV192: 0.02421043973 | AW192: 1 | AX192: 0 | AY192: 0 | BD192: 0.3620404387 | BE192: 0.0009051010969 | BN192: 1 | BO192: 1 | BP192: 1 | BQ192: 1 | BR192: 1 | BS192: 1 | BT192: 1 | BU192: 1 | BW192: 1 | BX192: 0.0009051010969 | CB192: =CB$149*(H$16+($BW192*MMULT($AD192:$AH192,CC$3:CC$7))) -> -2.987995211 | CC192: -0.328142512 | CD192: -1.827403525 | CE192: 0 | CF192: -0.1339925375 | CG192: 0.05038835353 | CH192: 0.7202603666 | CI192: 0.1608306187 | CJ192: 0 | CK192: 0.8745965913 | CL192: 1.80607593 | CM192: 0.027899355 | CN192: 0.3987984971 | CO192: 0.0890497548 | CP192: 0 | CQ192: 0.4842523931 | CR192: 5.725932329 | CS192: 81.84752685 | CT192: 18.27615262 | CU192: 0 | CV192: 99.38568232
A193: Employees | B193: N | C193: FALSE | AC193: 245 | AD193: -1.493888531 | AE193: 1.493888531 | AF193: 0.0327610469 | AG193: -0.0327610469 | AH193: -0.01480418626 | AI193: -0.130447813 | AJ193: 245 | AK193: 1 | AL193: 0 | AM193: 0 | AN193: 1 | AO193: 0 | AP193: 1 | AQ193: 0.0025 | AS193: 1 | AT193: 0.9945837272 | AU193: 1.457081035e-07 | AV193: 0.005416127031 | AW193: 1 | AX193: 0 | AY193: 0 | BD193: 0.3620404387 | BE193: 0.0009051010969 | BN193: 1 | BO193: 1 | BP193: 1 | BQ193: 1 | BR193: 1 | BS193: 1 | BT193: 1 | BU193: 1 | BW193: 1 | BX193: 0.0009051010969 | CB193: =CB$149*(H$16+($BW193*MMULT($AD193:$AH193,CC$3:CC$7))) -> -2.992264018 | CC193: -0.3238737055 | CD193: -1.83123214 | CE193: 0 | CF193: -0.130447813 | CG193: 0.05017371385 | CH193: 0.7233415907 | CI193: 0.1602160374 | CJ193: 0 | CK193: 0.8777022964 | CL193: 1.811433638 | CM193: 0.027698345 | CN193: 0.3993199504 | CO193: 0.08844709188 | CP193: 0 | CQ193: 0.4845346127 | CR193: 5.684677982 | CS193: 81.95454747 | CT193: 18.15246492 | CU193: 0 | CV193: 99.44360375
AC194: 255 | AD194: -1.374958012 | AE194: 1.374958012 | AF194: 0.02533384961 | AG194: -0.02533384961 | AH194: -0.01480418626 | AI194: -0.2343251113 | AJ194: 255 | AK194: 1 | AL194: 0 | AM194: 0 | AN194: 1 | AO194: 0 | AP194: 1 | AQ194: 0.0025 | AS194: 1 | AT194: 0.7753013783 | AU194: 0.0007156580261 | AV194: 0.2239829635 | AW194: 1 | AX194: 0 | AY194: 0 | BD194: 0.3620404387 | BE194: 0.0009051010969 | BN194: 1 | BO194: 1 | BP194: 1 | BQ194: 1 | BR194: 1 | BS194: 1 | BT194: 1 | BU194: 1 | BW194: 1 | BX194: 0.0009051010969 | CB194: =CB$149*(H$16+($BW194*MMULT($AD194:$AH194,CC$3:CC$7))) -> -2.865906302 | CC194: -0.4502314218 | CD194: -1.719728819 | CE194: 0 | CF194: -0.2343251113 | CG194: 0.05693151063 | CH194: 0.6374806076 | CI194: 0.1791147139 | CJ194: 0 | CK194: 0.791104577 | CL194: 1.664631409 | CM194: 0.03420067068 | CN194: 0.382956013 | CO194: 0.1076002248 | CP194: 0 | CQ194: 0.4752430914 | CR194: 7.019184706 | CS194: 78.59608997 | CT194: 22.08336379 | CU194: 0 | CV194: 97.53665565
AC195: 268 | AD195: -1.486059866 | AE195: 1.486059866 | AF195: 0.03249289497 | AG195: -0.03249289497 | AH195: -0.01480418626 | AI195: -0.1373426587 | AJ195: 268 | AK195: 1 | AL195: 0 | AM195: 0 | AN195: 1 | AO195: 0 | AP195: 1 | AQ195: 0.0025 | AS195: 1 | AT195: 0.9891167258 | AU195: 3.420504909e-06 | AV195: 0.01087985355 | AW195: 1 | AX195: 0 | AY195: 0 | BD195: 0.3620404387 | BE195: 0.0009051010969 | BN195: 1 | BO195: 1 | BP195: 1 | BQ195: 1 | BR195: 1 | BS195: 1 | BT195: 1 | BU195: 1 | BW195: 1 | BX195: 0.0009051010969 | CB195: =CB$149*(H$16+($BW195*MMULT($AD195:$AH195,CC$3:CC$7))) -> -2.984167201 | CC195: -0.3319705225 | CD195: -1.823671627 | CE195: 0 | CF195: -0.1373426587 | CG195: 0.05058161034 | CH195: 0.7175084729 | CI195: 0.1614319435 | CJ195: 0 | CK195: 0.8716714892 | CL195: 1.801193516 | CM195: 0.02808227427 | CN195: 0.3983516855 | CO195: 0.08962498594 | CP195: 0 | CQ195: 0.4839410543 | CR195: 5.76347382 | CS195: 81.75582533 | CT195: 18.39421035 | CU195: 0 | CV195: 99.32178462
AC196: 272 | AD196: -1.395276339 | AE196: 1.395276339 | AF196: 0.02897748602 | AG196: -0.02897748602 | AH196: -0.01480418626 | AI196: -0.2171924214 | AJ196: 272 | AK196: 1 | AL196: 0 | AM196: 0 | AN196: 1 | AO196: 0 | AP196: 1 | AQ196: 0.0025 | AS196: 1 | AT196: 0.8576376337 | AU196: 0.0001083352377 | AV196: 0.142254031 | AW196: 1 | AX196: 0 | AY196: 0 | BD196: 0.3620404387 | BE196: 0.0009051010969 | BN196: 1 | BO196: 1 | BP196: 1 | BQ196: 1 | BR196: 1 | BS196: 1 | BT196: 1 | BU196: 1 | BW196: 1 | BX196: 0.0009051010969 | CB196: =CB$149*(H$16+($BW196*MMULT($AD196:$AH196,CC$3:CC$7))) -> -2.889868265 | CC196: -0.4262694579 | CD196: -1.73640351 | CE196: 0 | CF196: -0.2171924214 | CG196: 0.0555835344 | CH196: 0.6529403785 | CI196: 0.1761527945 | CJ196: 0 | CK196: 0.8047750984 | CL196: 1.689451806 | CM196: 0.03290033738 | CN196: 0.3864806183 | CO196: 0.1042662442 | CP196: 0 | CQ196: 0.4763528002 | CR196: 6.752310419 | CS196: 79.31946336 | CT196: 21.39911329 | CU196: 0 | CV196: 97.76440704
AC197: 279 | AD197: -1.376158654 | AE197: 1.376158654 | AF197: 0.02887212251 | AG197: -0.02887212251 | AH197: -0.01480418626 | AI197: -0.2341717561 | AJ197: 279 | AK197: 1 | AL197: 0 | AM197: 0 | AN197: 1 | AO197: 0 | AP197: 1 | AQ197: 0.0025 | AS197: 1 | AT197: 0.9314823523 | AU197: 2.299137031e-05 | AV197: 0.06849465627 | AW197: 1 | AX197: 0 | AY197: 0 | BD197: 0.3620404387 | BE197: 0.0009051010969 | BN197: 1 | BO197: 1 | BP197: 1 | BQ197: 1 | BR197: 1 | BS197: 1 | BT197: 1 | BU197: 1 | BW197: 1 | BX197: 0.0009051010969 | CB197: =CB$149*(H$16+($BW197*MMULT($AD197:$AH197,CC$3:CC$7))) -> -2.870645216 | CC197: -0.4454925069 | CD197: -1.717391188 | CE197: 0 | CF197: -0.2341717561 | CG197: 0.0566623553 | CH197: 0.6405087433 | CI197: 0.1795339078 | CJ197: 0 | CK197: 0.7912259064 | CL197: 1.667930913 | CM197: 0.03397164407 | CN197: 0.3840139531 | CO197: 0.1076386956 | CP197: 0 | CQ197: 0.4743757072 | CR197: 6.972180363 | CS197: 78.81321661 | CT197: 22.09125934 | CU197: 0 | CV197: 97.3586378
AC198: 282 | AD198: -1.40252737 | AE198: 1.40252737 | AF198: 0.02979584069 | AG198: -0.02979584069 | AH198: -0.01480418626 | AI198: -0.2109536604 | AJ198: 282 | AK198: 1 | AL198: 0 | AM198: 0 | AN198: 1 | AO198: 0 | AP198: 1 | AQ198: 0.0025 | AS198: 1 | AT198: 0.9403668989 | AU198: 7.185488889e-06 | AV198: 0.0596259155 | AW198: 1 | AX198: 0 | AY198: 0 | BD198: 0.3620404387 | BE198: 0.0009051010969 | BN198: 1 | BO198: 1 | BP198: 1 | BQ198: 1 | BR198: 1 | BS198: 1 | BT198: 1 | BU198: 1 | BW198: 1 | BX198: 0.0009051010969 | CB198: =CB$149*(H$16+($BW198*MMULT($AD198:$AH198,CC$3:CC$7))) -> -2.897937651 | CC198: -0.4182000727 | CD198: -1.742836186 | CE198: 0 | CF198: -0.2109536604 | CG198: 0.05513681425 | CH198: 0.6582305213 | CI198: 0.1750232974 | CJ198: 0 | CK198: 0.8098115924 | CL198: 1.698202225 | CM198: 0.03246775527 | CN198: 0.3876043215 | CO198: 0.1030638724 | CP198: 0 | CQ198: 0.4768640509 | CR198: 6.663529302 | CS198: 79.55008692 | CT198: 21.15234416 | CU198: 0 | CV198: 97.86933373
AC199: 289 | AD199: -1.48983982 | AE199: 1.48983982 | AF199: 0.03254095115 | AG199: -0.03254095115 | AH199: -0.01480418626 | AI199: -0.1339925375 | AJ199: 289 | AK199: 1 | AL199: 0 | AM199: 0 | AN199: 1 | AO199: 0 | AP199: 1 | AQ199: 0.0025 | AS199: 1 | AT199: 0.9757722912 | AU199: 1.726898607e-05 | AV199: 0.02421043973 | AW199: 1 | AX199: 0 | AY199: 0 | BD199: 0.3620404387 | BE199: 0.0009051010969 | BN199: 1 | BO199: 1 | BP199: 1 | BQ199: 1 | BR199: 1 | BS199: 1 | BT199: 1 | BU199: 1 | BW199: 1 | BX199: 0.0009051010969 | CB199: =CB$149*(H$16+($BW199*MMULT($AD199:$AH199,CC$3:CC$7))) -> -2.987995211 | CC199: -0.328142512 | CD199: -1.827403525 | CE199: 0 | CF199: -0.1339925375 | CG199: 0.05038835353 | CH199: 0.7202603666 | CI199: 0.1608306187 | CJ199: 0 | CK199: 0.8745965913 | CL199: 1.80607593 | CM199: 0.027899355 | CN199: 0.3987984971 | CO199: 0.0890497548 | CP199: 0 | CQ199: 0.4842523931 | CR199: 5.725932329 | CS199: 81.84752685 | CT199: 18.27615262 | CU199: 0 | CV199: 99.38568232
AC200: 298 | AD200: -1.48983982 | AE200: 1.48983982 | AF200: 0.03254095115 | AG200: -0.03254095115 | AH200: -0.01480418626 | AI200: -0.1339925375 | AJ200: 298 | AK200: 1 | AL200: 0 | AM200: 0 | AN200: 1 | AO200: 0 | AP200: 1 | AQ200: 0.0025 | AS200: 1 | AT200: 0.9757722912 | AU200: 1.726898607e-05 | AV200: 0.02421043973 | AW200: 1 | AX200: 0 | AY200: 0 | BD200: 0.3620404387 | BE200: 0.0009051010969 | BN200: 1 | BO200: 1 | BP200: 1 | BQ200: 1 | BR200: 1 | BS200: 1 | BT200: 1 | BU200: 1 | BW200: 1 | BX200: 0.0009051010969 | CB200: =CB$149*(H$16+($BW200*MMULT($AD200:$AH200,CC$3:CC$7))) -> -2.987995211 | CC200: -0.328142512 | CD200: -1.827403525 | CE200: 0 | CF200: -0.1339925375 | CG200: 0.05038835353 | CH200: 0.7202603666 | CI200: 0.1608306187 | CJ200: 0 | CK200: 0.8745965913 | CL200: 1.80607593 | CM200: 0.027899355 | CN200: 0.3987984971 | CO200: 0.0890497548 | CP200: 0 | CQ200: 0.4842523931 | CR200: 5.725932329 | CS200: 81.84752685 | CT200: 18.27615262 | CU200: 0 | CV200: 99.38568232
AC201: 300 | AD201: -1.48418392 | AE201: 1.48418392 | AF201: 0.03220640623 | AG201: -0.03220640623 | AH201: -0.01480418626 | AI201: -0.1389373871 | AJ201: 300 | AK201: 1 | AL201: 0 | AM201: 0 | AN201: 1 | AO201: 0 | AP201: 1 | AQ201: 0.0025 | AS201: 1 | AT201: 0.9719768817 | AU201: 5.556553879e-05 | AV201: 0.02796755264 | AW201: 1 | AX201: 0 | AY201: 0 | BD201: 0.3620404387 | BE201: 0.0009051010969 | BN201: 1 | BO201: 1 | BP201: 1 | BQ201: 1 | BR201: 1 | BS201: 1 | BT201: 1 | BU201: 1 | BW201: 1 | BX201: 0.0009051010969 | CB201: =CB$149*(H$16+($BW201*MMULT($AD201:$AH201,CC$3:CC$7))) -> -2.982004766 | CC201: -0.3341329573 | CD201: -1.82208217 | CE201: 0 | CF201: -0.1389373871 | CG201: 0.05069110812 | CH201: 0.715958584 | CI201: 0.1616887368 | CJ201: 0 | CK201: 0.8702825176 | CL201: 1.798620946 | CM201: 0.02818331913 | CN201: 0.3980597387 | CO201: 0.08989594894 | CP201: 0 | CQ201: 0.4838609932 | CR201: 5.78421179 | CS201: 81.69590755 | CT201: 18.44982152 | CU201: 0 | CV201: 99.30535326
AC202: 306 | AD202: -1.48983982 | AE202: 1.48983982 | AF202: 0.03254095115 | AG202: -0.03254095115 | AH202: -0.01480418626 | AI202: -0.1339925375 | AJ202: 306 | AK202: 1 | AL202: 0 | AM202: 0 | AN202: 1 | AO202: 0 | AP202: 1 | AQ202: 0.0025 | AS202: 1 | AT202: 0.9757722912 | AU202: 1.726898607e-05 | AV202: 0.02421043973 | AW202: 1 | AX202: 0 | AY202: 0 | BD202: 0.3620404387 | BE202: 0.0009051010969 | BN202: 1 | BO202: 1 | BP202: 1 | BQ202: 1 | BR202: 1 | BS202: 1 | BT202: 1 | BU202: 1 | BW202: 1 | BX202: 0.0009051010969 | CB202: =CB$149*(H$16+($BW202*MMULT($AD202:$AH202,CC$3:CC$7))) -> -2.987995211 | CC202: -0.328142512 | CD202: -1.827403525 | CE202: 0 | CF202: -0.1339925375 | CG202: 0.05038835353 | CH202: 0.7202603666 | CI202: 0.1608306187 | CJ202: 0 | CK202: 0.8745965913 | CL202: 1.80607593 | CM202: 0.027899355 | CN202: 0.3987984971 | CO202: 0.0890497548 | CP202: 0 | CQ202: 0.4842523931 | CR202: 5.725932329 | CS202: 81.84752685 | CT202: 18.27615262 | CU202: 0 | CV202: 99.38568232
AC203: 308 | AD203: -0.3464748208 | AE203: 0.3464748208 | AF203: -0.3444390014 | AG203: 0.3444390014 | AH203: -0.01480418626 | AI203: -1.053643264 | AJ203: 308 | AK203: 1 | AL203: 0 | AM203: 0 | AN203: 1 | AO203: 0 | AP203: 1 | AQ203: 0.0025 | AS203: 3 | AT203: 0.006806010172 | AU203: 0.07699525339 | AV203: 0.9161987363 | AW203: 0 | AX203: 0 | AY203: 1 | BD203: 0.3620404387 | BE203: 0.0009051010969 | BN203: 1 | BO203: 1 | BP203: 1 | BQ203: 1 | BR203: 1 | BS203: 1 | BT203: 1 | BU203: 1 | BW203: 1 | BX203: 0.0009051010969 | CB203: =CB$149*(H$16+($BW203*MMULT($AD203:$AH203,CC$3:CC$7))) -> -1.46765026 | CC203: -1.848487464 | CD203: -1.061018479 | CE203: 0 | CF203: -1.053643264 | CG203: 0.2304663856 | CH203: 0.1574751732 | CI203: 0.346103132 | CJ203: 0 | CK203: 0.348665153 | CL203: 1.082709844 | CM203: 0.2128607096 | CN203: 0.1454454063 | CO203: 0.3196637899 | CP203: 0 | CQ203: 0.3220300942 | CR203: 43.68653034 | CS203: 29.85053075 | CT203: 65.60629194 | CU203: 0 | CV203: 66.09194109
AC204: 311 | AD204: -1.492786084 | AE204: 1.492786084 | AF204: 0.03271123565 | AG204: -0.03271123565 | AH204: -0.01480418626 | AI204: -0.1314156425 | AJ204: 311 | AK204: 1 | AL204: 0 | AM204: 0 | AN204: 1 | AO204: 0 | AP204: 1 | AQ204: 0.0025 | AS204: 1 | AT204: 0.9859524585 | AU204: 2.387840164e-06 | AV204: 0.01404515356 | AW204: 1 | AX204: 0 | AY204: 0 | BD204: 0.3620404387 | BE204: 0.0009051010969 | BN204: 1 | BO204: 1 | BP204: 1 | BQ204: 1 | BR204: 1 | BS204: 1 | BT204: 1 | BU204: 1 | BW204: 1 | BX204: 0.0009051010969 | CB204: =CB$149*(H$16+($BW204*MMULT($AD204:$AH204,CC$3:CC$7))) -> -2.99111176 | CC204: -0.3250259633 | CD204: -1.830179505 | CE204: 0 | CF204: -0.1314156425 | CG204: 0.05023156023 | CH204: 0.7225085947 | CI204: 0.1603847753 | CJ204: 0 | CK204: 0.8768532412 | CL204: 1.809978171 | CM204: 0.02775257792 | CN204: 0.3991808333 | CO204: 0.08861144175 | CP204: 0 | CQ204: 0.4844551471 | CR204: 5.695808491 | CS204: 81.92599572 | CT204: 18.18619531 | CU204: 0 | CV204: 99.42729459
AC205: 315 | AD205: -0.04069866033 | AE205: 0.04069866033 | AF205: -1.128685116 | AG205: 1.128685116 | AH205: -0.01480418626 | AI205: -1.122912585 | AJ205: 315 | AK205: 1 | AL205: 0 | AM205: 0 | AN205: 1 | AO205: 0 | AP205: 1 | AQ205: 0.0025 | AS205: 3 | AT205: 0.00104936571 | AU205: 0.4439591307 | AV205: 0.5549915035 | AW205: 0 | AX205: 0 | AY205: 1 | BD205: 0.3620404387 | BE205: 0.0009051010969 | BN205: 1 | BO205: 1 | BP205: 1 | BQ205: 1 | BR205: 1 | BS205: 1 | BT205: 1 | BU205: 1 | BW205: 1 | BX205: 0.0009051010969 | CB205: =CB$149*(H$16+($BW205*MMULT($AD205:$AH205,CC$3:CC$7))) -> -0.3776279842 | CC205: -2.938509739 | CD205: -1.539488433 | CE205: 0 | CF205: -1.122912585 | CG205: 0.6854854647 | CH205: 0.0529445712 | CI205: 0.2144907997 | CJ205: 0 | CK205: 0.3253308595 | CL205: 1.278251695 | CM205: 0.536267988 | CN205: 0.04141951965 | CO205: 0.1678001293 | CP205: 0 | CQ205: 0.254512363 | CR205: 110.0611182 | CS205: 8.500747297 | CT205: 34.43850889 | CU205: 0 | CV205: 52.23491969
AC206: 318 | AD206: -1.48983982 | AE206: 1.48983982 | AF206: 0.03254095115 | AG206: -0.03254095115 | AH206: -0.01480418626 | AI206: -0.1339925375 | AJ206: 318 | AK206: 1 | AL206: 0 | AM206: 0 | AN206: 1 | AO206: 0 | AP206: 1 | AQ206: 0.0025 | AS206: 1 | AT206: 0.9757722912 | AU206: 1.726898607e-05 | AV206: 0.02421043973 | AW206: 1 | AX206: 0 | AY206: 0 | BD206: 0.3620404387 | BE206: 0.0009051010969 | BN206: 1 | BO206: 1 | BP206: 1 | BQ206: 1 | BR206: 1 | BS206: 1 | BT206: 1 | BU206: 1 | BW206: 1 | BX206: 0.0009051010969 | CB206: =CB$149*(H$16+($BW206*MMULT($AD206:$AH206,CC$3:CC$7))) -> -2.987995211 | CC206: -0.328142512 | CD206: -1.827403525 | CE206: 0 | CF206: -0.1339925375 | CG206: 0.05038835353 | CH206: 0.7202603666 | CI206: 0.1608306187 | CJ206: 0 | CK206: 0.8745965913 | CL206: 1.80607593 | CM206: 0.027899355 | CN206: 0.3987984971 | CO206: 0.0890497548 | CP206: 0 | CQ206: 0.4842523931 | CR206: 5.725932329 | CS206: 81.84752685 | CT206: 18.27615262 | CU206: 0 | CV206: 99.38568232
AC207: 323 | AD207: -1.493888531 | AE207: 1.493888531 | AF207: 0.0327610469 | AG207: -0.0327610469 | AH207: -0.01480418626 | AI207: -0.130447813 | AJ207: 323 | AK207: 1 | AL207: 0 | AM207: 0 | AN207: 1 | AO207: 0 | AP207: 1 | AQ207: 0.0025 | AS207: 1 | AT207: 0.9945837272 | AU207: 1.457081035e-07 | AV207: 0.005416127031 | AW207: 1 | AX207: 0 | AY207: 0 | BD207: 0.3620404387 | BE207: 0.0009051010969 | BN207: 1 | BO207: 1 | BP207: 1 | BQ207: 1 | BR207: 1 | BS207: 1 | BT207: 1 | BU207: 1 | BW207: 1 | BX207: 0.0009051010969 | CB207: =CB$149*(H$16+($BW207*MMULT($AD207:$AH207,CC$3:CC$7))) -> -2.992264018 | CC207: -0.3238737055 | CD207: -1.83123214 | CE207: 0 | CF207: -0.130447813 | CG207: 0.05017371385 | CH207: 0.7233415907 | CI207: 0.1602160374 | CJ207: 0 | CK207: 0.8777022964 | CL207: 1.811433638 | CM207: 0.027698345 | CN207: 0.3993199504 | CO207: 0.08844709188 | CP207: 0 | CQ207: 0.4845346127 | CR207: 5.684677982 | CS207: 81.95454747 | CT207: 18.15246492 | CU207: 0 | CV207: 99.44360375
AC208: 327 | AD208: -0.2513603095 | AE208: 0.2513603095 | AF208: -0.5900589368 | AG208: 0.5900589368 | AH208: -0.01480418626 | AI208: -1.074757655 | AJ208: 327 | AK208: 1 | AL208: 0 | AM208: 0 | AN208: 1 | AO208: 0 | AP208: 1 | AQ208: 0.0025 | AS208: 3 | AT208: 0.004371174281 | AU208: 0.1118683735 | AV208: 0.8837604521 | AW208: 0 | AX208: 0 | AY208: 1 | BD208: 0.3620404387 | BE208: 0.0009051010969 | BN208: 1 | BO208: 1 | BP208: 1 | BQ208: 1 | BR208: 1 | BS208: 1 | BT208: 1 | BU208: 1 | BW208: 1 | BX208: 0.0009051010969 | CB208: =CB$149*(H$16+($BW208*MMULT($AD208:$AH208,CC$3:CC$7))) -> -1.126915813 | CC208: -2.18922191 | CD208: -1.211523903 | CE208: 0 | CF208: -1.074757655 | CG208: 0.3240310894 | CH208: 0.1120038638 | CI208: 0.2977432018 | CJ208: 0 | CK208: 0.3413804772 | CL208: 1.075158632 | CM208: 0.3013797962 | CN208: 0.1041742683 | CO208: 0.2769295552 | CP208: 0 | CQ208: 0.3175163803 | CR208: 61.85377111 | CS208: 21.38023659 | CT208: 56.83571872 | CU208: 0 | CV208: 65.16556771
AC209: 328 | AD209: -0.504533878 | AE209: 0.504533878 | AF209: -0.5749218219 | AG209: 0.5749218219 | AH209: -0.01480418626 | AI209: -0.8534545358 | AJ209: 328 | AK209: 1 | AL209: 0 | AM209: 0 | AN209: 1 | AO209: 0 | AP209: 1 | AQ209: 0.0025 | AS209: 3 | AT209: 0.09438063482 | AU209: 0.07511755416 | AV209: 0.8305018109 | AW209: 0 | AX209: 0 | AY209: 1 | BD209: 0.3620404387 | BE209: 0.0009051010969 | BN209: 1 | BO209: 1 | BP209: 1 | BQ209: 1 | BR209: 1 | BS209: 1 | BT209: 1 | BU209: 1 | BW209: 1 | BX209: 0.0009051010969 | CB209: =CB$149*(H$16+($BW209*MMULT($AD209:$AH209,CC$3:CC$7))) -> -1.395226496 | CC209: -1.920911227 | CD209: -1.449560356 | CE209: 0 | CF209: -0.8534545358 | CG209: 0.2477769095 | CH209: 0.1464734308 | CI209: 0.2346734381 | CJ209: 0 | CK209: 0.4259409592 | CL209: 1.054864737 | CM209: 0.2348897452 | CN209: 0.1388551779 | CO209: 0.2224678006 | CP209: 0 | CQ209: 0.4037872763 | CR209: 48.20766595 | CS209: 28.49798327 | CT209: 45.65824449 | CU209: 0 | CV209: 82.87140041
AC210: 338 | AD210: -0.2120560425 | AE210: 0.2120560425 | AF210: -0.7670744379 | AG210: 0.7670744379 | AH210: -0.01480418626 | AI210: -1.063960172 | AJ210: 338 | AK210: 1 | AL210: 0 | AM210: 0 | AN210: 1 | AO210: 0 | AP210: 1 | AQ210: 0.0025 | AS210: 3 | AT210: 0.01833725808 | AU210: 0.1487420931 | AV210: 0.8329206487 | AW210: 0 | AX210: 0 | AY210: 1 | BD210: 0.3620404387 | BE210: 0.0009051010969 | BN210: 1 | BO210: 1 | BP210: 1 | BQ210: 1 | BR210: 1 | BS210: 1 | BT210: 1 | BU210: 1 | BW210: 1 | BX210: 0.0009051010969 | CB210: =CB$149*(H$16+($BW210*MMULT($AD210:$AH210,CC$3:CC$7))) -> -0.9105960449 | CC210: -2.405541678 | CD210: -1.349235137 | CE210: 0 | CF210: -1.063960172 | CG210: 0.402284373 | CH210: 0.09021661398 | CI210: 0.2594386198 | CJ210: 0 | CK210: 0.3450864987 | CL210: 1.097026106 | CM210: 0.3667044667 | CN210: 0.08223743585 | CO210: 0.2364926582 | CP210: 0 | CQ210: 0.3145654392 | CR210: 75.26069909 | CS210: 16.87802433 | CT210: 48.53664026 | CU210: 0 | CV210: 64.55993044
AC211: 343 | AD211: -0.3464748208 | AE211: 0.3464748208 | AF211: -0.3444390014 | AG211: 0.3444390014 | AH211: -0.01480418626 | AI211: -1.053643264 | AJ211: 343 | AK211: 1 | AL211: 0 | AM211: 0 | AN211: 1 | AO211: 0 | AP211: 1 | AQ211: 0.0025 | AS211: 3 | AT211: 0.006806010172 | AU211: 0.07699525339 | AV211: 0.9161987363 | AW211: 0 | AX211: 0 | AY211: 1 | BD211: 0.3620404387 | BE211: 0.0009051010969 | BN211: 1 | BO211: 1 | BP211: 1 | BQ211: 1 | BR211: 1 | BS211: 1 | BT211: 1 | BU211: 1 | BW211: 1 | BX211: 0.0009051010969 | CB211: =CB$149*(H$16+($BW211*MMULT($AD211:$AH211,CC$3:CC$7))) -> -1.46765026 | CC211: -1.848487464 | CD211: -1.061018479 | CE211: 0 | CF211: -1.053643264 | CG211: 0.2304663856 | CH211: 0.1574751732 | CI211: 0.346103132 | CJ211: 0 | CK211: 0.348665153 | CL211: 1.082709844 | CM211: 0.2128607096 | CN211: 0.1454454063 | CO211: 0.3196637899 | CP211: 0 | CQ211: 0.3220300942 | CR211: 43.68653034 | CS211: 29.85053075 | CT211: 65.60629194 | CU211: 0 | CV211: 66.09194109
AC212: 349 | AD212: -0.4988975424 | AE212: 0.4988975424 | AF212: -0.1481061367 | AG212: 0.1481061367 | AH212: -0.01480418626 | AI212: -0.9688075113 | AJ212: 349 | AK212: 1 | AL212: 0 | AM212: 0 | AN212: 1 | AO212: 0 | AP212: 1 | AQ212: 0.0025 | AS212: 3 | AT212: 0.05303764998 | AU212: 0.02602416729 | AV212: 0.9209381826 | AW212: 0 | AX212: 0 | AY212: 1 | BD212: 0.3620404387 | BE212: 0.0009051010969 | BN212: 1 | BO212: 1 | BP212: 1 | BQ212: 1 | BR212: 1 | BS212: 1 | BT212: 1 | BU212: 1 | BW212: 1 | BX212: 0.0009051010969 | CB212: =CB$149*(H$16+($BW212*MMULT($AD212:$AH212,CC$3:CC$7))) -> -1.816405846 | CC212: -1.499731877 | CD212: -1.017108336 | CE212: 0 | CF212: -0.9688075113 | CG212: 0.1626091442 | CH212: 0.2231899944 | CI212: 0.3616391687 | CJ212: 0 | CK212: 0.37953536 | CL212: 1.126973667 | CM212: 0.1442883263 | CN212: 0.1980436641 | CO212: 0.3208940716 | CP212: 0 | CQ212: 0.336773938 | CR212: 29.61305708 | CS212: 40.64554965 | CT212: 65.85878917 | CU212: 0 | CV212: 69.11789822
AC213: 350 | AD213: -0.001589855184 | AE213: 0.001589855184 | AF213: -1.228916466 | AG213: 1.228916466 | AH213: -0.01480418626 | AI213: -1.131791222 | AJ213: 350 | AK213: 1 | AL213: 0 | AM213: 0 | AN213: 1 | AO213: 0 | AP213: 1 | AQ213: 0.0025 | AS213: 2 | AT213: 5.58632108e-05 | AU213: 0.883866721 | AV213: 0.1160774157 | AW213: 0 | AX213: 1 | AY213: 0 | BD213: 0.3620404387 | BE213: 0.0009051010969 | BN213: 1 | BO213: 1 | BP213: 1 | BQ213: 1 | BR213: 1 | BS213: 1 | BT213: 1 | BU213: 1 | BW213: 1 | BX213: 0.0009051010969 | CB213: =CB$149*(H$16+($BW213*MMULT($AD213:$AH213,CC$3:CC$7))) -> -0.2382878291 | CC213: -3.077849894 | CD213: -1.600610978 | CE213: 0 | CF213: -1.131791222 | CG213: 0.787975856 | CH213: 0.04605818022 | CI213: 0.2017732013 | CJ213: 0 | CK213: 0.3224551501 | CL213: 1.358262388 | CM213: 0.5801352251 | CN213: 0.03390963384 | CO213: 0.148552447 | CP213: 0 | CQ213: 0.2374026941 | CR213: 119.0642236 | CS213: 6.959453675 | CT213: 30.48820515 | CU213: 0 | CV213: 48.72341174
AC214: 357 | AD214: -1.48983982 | AE214: 1.48983982 | AF214: 0.03254095115 | AG214: -0.03254095115 | AH214: -0.01480418626 | AI214: -0.1339925375 | AJ214: 357 | AK214: 1 | AL214: 0 | AM214: 0 | AN214: 1 | AO214: 0 | AP214: 1 | AQ214: 0.0025 | AS214: 1 | AT214: 0.9757722912 | AU214: 1.726898607e-05 | AV214: 0.02421043973 | AW214: 1 | AX214: 0 | AY214: 0 | BD214: 0.3620404387 | BE214: 0.0009051010969 | BN214: 1 | BO214: 1 | BP214: 1 | BQ214: 1 | BR214: 1 | BS214: 1 | BT214: 1 | BU214: 1 | BW214: 1 | BX214: 0.0009051010969 | CB214: =CB$149*(H$16+($BW214*MMULT($AD214:$AH214,CC$3:CC$7))) -> -2.987995211 | CC214: -0.328142512 | CD214: -1.827403525 | CE214: 0 | CF214: -0.1339925375 | CG214: 0.05038835353 | CH214: 0.7202603666 | CI214: 0.1608306187 | CJ214: 0 | CK214: 0.8745965913 | CL214: 1.80607593 | CM214: 0.027899355 | CN214: 0.3987984971 | CO214: 0.0890497548 | CP214: 0 | CQ214: 0.4842523931 | CR214: 5.725932329 | CS214: 81.84752685 | CT214: 18.27615262 | CU214: 0 | CV214: 99.38568232
AC215: 358 | AD215: -1.386166101 | AE215: 1.386166101 | AF215: 0.02903297597 | AG215: -0.02903297597 | AH215: -0.01480418626 | AI215: -0.2253109866 | AJ215: 358 | AK215: 1 | AL215: 0 | AM215: 0 | AN215: 1 | AO215: 0 | AP215: 1 | AQ215: 0.0025 | AS215: 1 | AT215: 0.9004996769 | AU215: 5.028189414e-05 | AV215: 0.09945004109 | AW215: 1 | AX215: 0 | AY215: 0 | BD215: 0.3620404387 | BE215: 0.0009051010969 | BN215: 1 | BO215: 1 | BP215: 1 | BQ215: 1 | BR215: 1 | BS215: 1 | BT215: 1 | BU215: 1 | BW215: 1 | BX215: 0.0009051010969 | CB215: =CB$149*(H$16+($BW215*MMULT($AD215:$AH215,CC$3:CC$7))) -> -2.880813517 | CC215: -0.4353242062 | CD215: -1.727237782 | CE215: 0 | CF215: -0.2253109866 | CG215: 0.05608911482 | CH215: 0.6470548538 | CI215: 0.1777747852 | CJ215: 0 | CK215: 0.7982679295 | CL215: 1.679186683 | CM215: 0.03340254861 | CN215: 0.3853382475 | CO215: 0.1058695778 | CP215: 0 | CQ215: 0.4753896261 | CR215: 6.855381888 | CS215: 79.08500857 | CT215: 21.72817393 | CU215: 0 | CV215: 97.56672973
AC216: 363 | AD216: -0.3906614385 | AE216: 0.3906614385 | AF216: -0.2063784687 | AG216: 0.2063784687 | AH216: -0.01480418626 | AI216: -1.050027025 | AJ216: 363 | AK216: 1 | AL216: 0 | AM216: 0 | AN216: 1 | AO216: 0 | AP216: 1 | AQ216: 0.0025 | AS216: 3 | AT216: 0.001572617612 | AU216: 0.0561311841 | AV216: 0.9422961982 | AW216: 0 | AX216: 0 | AY216: 1 | BD216: 0.3620404387 | BE216: 0.0009051010969 | BN216: 1 | BO216: 1 | BP216: 1 | BQ216: 1 | BR216: 1 | BS216: 1 | BT216: 1 | BU216: 1 | BW216: 1 | BX216: 0.0009051010969 | CB216: =CB$149*(H$16+($BW216*MMULT($AD216:$AH216,CC$3:CC$7))) -> -1.64989741 | CC216: -1.666240313 | CD216: -0.9671445638 | CE216: 0 | CF216: -1.050027025 | CG216: 0.192069612 | CH216: 0.1889561478 | CI216: 0.3801670324 | CJ216: 0 | CK216: 0.3499282922 | CL216: 1.111121084 | CM216: 0.1728610992 | CN216: 0.1700590066 | CO216: 0.3421472581 | CP216: 0 | CQ216: 0.3149326361 | CR216: 35.47719854 | CS216: 34.90211023 | CT216: 70.22069315 | CU216: 0 | CV216: 64.6352922
AC217: 366 | AD217: -0.001423282129 | AE217: 0.001423282129 | AF217: -1.229245069 | AG217: 1.229245069 | AH217: -0.01480418626 | AI217: -1.131854451 | AJ217: 366 | AK217: 1 | AL217: 0 | AM217: 0 | AN217: 1 | AO217: 0 | AP217: 1 | AQ217: 0.0025 | AS217: 2 | AT217: 5.814708211e-06 | AU217: 0.9376262588 | AV217: 0.06236792639 | AW217: 0 | AX217: 1 | AY217: 0 | BD217: 0.3620404387 | BE217: 0.0009051010969 | BN217: 1 | BO217: 1 | BP217: 1 | BQ217: 1 | BR217: 1 | BS217: 1 | BT217: 1 | BU217: 1 | BW217: 1 | BX217: 0.0009051010969 | CB217: =CB$149*(H$16+($BW217*MMULT($AD217:$AH217,CC$3:CC$7))) -> -0.2377926537 | CC217: -3.07834507 | CD217: -1.600773007 | CE217: 0 | CF217: -1.131854451 | CG217: 0.7883661389 | CH217: 0.04603537899 | CI217: 0.2017405108 | CJ217: 0 | CK217: 0.322434762 | CL217: 1.358576791 | CM217: 0.580288243 | CN217: 0.03388500327 | CO217: 0.1484940065 | CP217: 0 | CQ217: 0.2373327472 | CR217: 119.0956282 | CS217: 6.954398612 | CT217: 30.4762111 | CU217: 0 | CV217: 48.70905618
AC218: 378 | AD218: -0.001086732893 | AE218: 0.001086732893 | AF218: -1.230120326 | AG218: 1.230120326 | AH218: -0.01480418626 | AI218: -1.131927568 | AJ218: 378 | AK218: 1 | AL218: 0 | AM218: 0 | AN218: 1 | AO218: 0 | AP218: 1 | AQ218: 0.0025 | AS218: 2 | AT218: 8.264516594e-08 | AU218: 0.96941066 | AV218: 0.03058925727 | AW218: =IF($AS218= 1,1,0) -> 0 | AX218: =IF($AS218= 2,1,0) -> 1 | AY218: =IF($AS218= 3,1,0) -> 0 | BD218: 0.3620404387 | BE218: =AQ218*BD218 -> 0.0009051010969 | BN218: =INDEX(AK$148:AK$149,2-AK218) -> 1 | BO218: =INDEX(AL$148:AL$149,2-AL218) -> 1 | BP218: =INDEX(AM$148:AM$149,2-AM218) -> 1 | BQ218: =INDEX(AN$148:AN$149,2-AN218) -> 1 | BR218: =INDEX(AO$148:AO$149,2-AO218) -> 1 | BS218: =INDEX(AW$148:AW$149,2-AW218) -> 1 | BT218: =INDEX(AX$148:AX$149,2-AX218) -> 1 | BU218: =INDEX(AY$148:AY$149,2-AY218) -> 1 | BW218: 1 | BX218: 0.0009051010969 | CB218: =CB$149*(H$16+($BW218*MMULT($AD218:$AH218,CC$3:CC$7))) -> -0.236580847 | CC218: -3.079556876 | CD218: -1.601311716 | CE218: 0 | CF218: -1.131927568 | CG218: =$BW218*IF(CB$149=0,0,IF(ABS(CB218)>OverflowTrigger,OverflowTrigger,EXP(CB218))) -> 0.7893220654 | CH218: =$BW218*IF(CC$149=0,0,IF(ABS(CC218)>OverflowTrigger,OverflowTrigger,EXP(CC218))) -> 0.04597962679 | CI218: =$BW218*IF(CD$149=0,0,IF(ABS(CD218)>OverflowTrigger,OverflowTrigger,EXP(CD218))) -> 0.2016318608 | CJ218: =$BW218*IF(CE$149=0,0,IF(ABS(CE218)>OverflowTrigger,OverflowTrigger,EXP(CE218))) -> 0 | CK218: =IF(L$12="",0,$BW218*IF($CG$149=0,0,IF(ABS(CF218)>OverflowTrigger,OverflowTrigger,EXP(CF218)))) -> 0.3224111877 | CL218: 1.359344741 | CM218: 0.5806636402 | CN218: =IF($CL218=0,0,CH218/$CL218) -> 0.03382484621 | CO218: =IF($CL218=0,0,CI218/$CL218) -> 0.1483301879 | CP218: =IF($CL218=0,0,CJ218/$CL218) -> 0 | CQ218: =IF($CL218=0,0,CK218/$CL218) -> 0.2371813257 | CR218: =CM218*$BX218*TargetMarketSize -> 119.172673 | CS218: =CN218*$BX218*TargetMarketSize -> 6.94205226 | CT218: =CO218*$BX218*TargetMarketSize -> 30.44258974 | CU218: =CP218*$BX218*TargetMarketSize -> 0 | CV218: =CQ218*$BX218*TargetMarketSize -> 48.67797914
AC219: 385 | AD219: -0.4483202657 | AE219: 0.4483202657 | AF219: -0.08866274076 | AG219: 0.08866274076 | AH219: -0.01480418626 | AI219: -1.0291668 | AJ219: 385 | AK219: 1 | AL219: 0 | AM219: 0 | AN219: 1 | AO219: 0 | AP219: 1 | AQ219: =AP219/$AP$554 -> 0.0025 | AS219: 3 | AT219: 0.01252562252 | AU219: 0.01939106217 | AV219: 0.9680833152 | AW219: 0 | AX219: 0 | AY219: 1 | BD219: 0.3620404387 | BE219: 0.0009051010969 | BN219: 1 | BO219: 1 | BP219: 1 | BQ219: 1 | BR219: 1 | BS219: 1 | BT219: 1 | BU219: 1 | BW219: =IF(AND(BN219:BU219),1,0) -> 1 | BX219: =BE219*BW219 -> 0.0009051010969 | CB219: =CB$149*(H$16+($BW219*MMULT($AD219:$AH219,CC$3:CC$7))) -> -1.825271965 | CC219: -1.490865758 | CD219: -0.9070876631 | CE219: 0 | CF219: =IF($CG$149=0,0,$L$16+$AI219) -> -1.0291668 | CG219: 0.1611738045 | CH219: 0.2251776218 | CI219: 0.4036982189 | CJ219: 0 | CK219: 0.3573045428 | CL219: =IF($CG$149=0,0,SUM(CG219:CK219)) -> 1.147354188 | CM219: =IF($CL219=0,0,CG219/$CL219) -> 0.1404743245 | CN219: 0.19625816 | CO219: 0.3518514362 | CP219: 0 | CQ219: 0.3114160793 | CR219: 28.8302893 | CS219: 40.27910118 | CT219: 72.212333 | CU219: 0 | CV219: 63.91357063
AC220: 398 | AD220: -1.408821467 | AE220: 1.408821467 | AF220: 0.03004368512 | AG220: -0.03004368512 | AH220: -0.01480418626 | AI220: -0.2054186746 | AJ220: 398 | AK220: 1 | AL220: 0 | AM220: 0 | AN220: 1 | AO220: 0 | AP220: 1 | AQ220: 0.0025 | AS220: 1 | AT220: 0.9763341842 | AU220: 4.512846503e-07 | AV220: 0.02366536446 | AW220: 1 | AX220: 0 | AY220: 0 | BD220: 0.3620404387 | BE220: 0.0009051010969 | BN220: 1 | BO220: 1 | BP220: 1 | BQ220: 1 | BR220: 1 | BS220: 1 | BT220: 1 | BU220: 1 | BW220: 1 | BX220: 0.0009051010969 | CB220: =CB$149*(H$16+($BW220*MMULT($AD220:$AH220,CC$3:CC$7))) -> -2.904479592 | CC220: -0.4116581309 | CD220: -1.748882439 | CE220: 0 | CF220: -0.2054186746 | CG220: 0.0547772897 | CH220: 0.662550743 | CI220: 0.1739682551 | CJ220: 0 | CK220: 0.8143063157 | CL220: 1.705602603 | CM220: 0.03211609175 | CN220: 0.3884555181 | CO220: 0.1019981177 | CP220: 0 | CQ220: 0.4774302725 | CR220: 6.591355536 | CS220: 79.72478251 | CT220: 20.93361368 | CU220: 0 | CV220: 97.98554239
AC221: 399 | AD221: -1.114684251 | AE221: 1.114684251 | AF221: -0.1926110545 | AG221: 0.1926110545 | AH221: -0.01480418626 | AI221: -0.409515138 | AJ221: 399 | AK221: 1 | AL221: 0 | AM221: 0 | AN221: 1 | AO221: 0 | AP221: 1 | AQ221: 0.0025 | AS221: 3 | AT221: 0.4118958965 | AU221: 0.04593021275 | AV221: 0.5421738906 | AW221: 0 | AX221: 0 | AY221: 1 | BD221: 0.3620404387 | BE221: 0.0009051010969 | BN221: 1 | BO221: 1 | BP221: 1 | BQ221: 1 | BR221: 1 | BS221: 1 | BT221: 1 | BU221: 1 | BW221: 1 | BX221: 0.0009051010969 | CB221: =CB$149*(H$16+($BW221*MMULT($AD221:$AH221,CC$3:CC$7))) -> -2.387687637 | CC221: -0.9284500862 | CD221: -1.677399962 | CE221: 0 | CF221: -0.409515138 | CG221: 0.09184181012 | CH221: 0.3951657087 | CI221: 0.1868591859 | CJ221: 0 | CK221: 0.6639721069 | CL221: 1.337838812 | CM221: 0.06864938386 | CN221: 0.2953761733 | CO221: 0.1396724211 | CP221: 0 | CQ221: 0.4963020217 | CR221: 14.08927649 | CS221: 60.62161581 | CT221: 28.66571043 | CU221: 0 | CV221: 101.8586914
AC222: 2 | AD222: -0.0003649552978 | AE222: 0.0003649552978 | AF222: -1.232103255 | AG222: 1.232103255 | AH222: -0.01480418626 | AI222: -1.132057021 | AJ222: 2 | AK222: 1 | AL222: 0 | AM222: 0 | AN222: 0 | AO222: 1 | AP222: 1 | AQ222: 0.0025 | AS222: 2 | AT222: 2.858581611e-05 | AU222: 0.9938097685 | AV222: 0.006161645602 | AW222: 0 | AX222: 1 | AY222: 0 | BB222: =SUM($AQ$222:$AQ$338) -> 0.2925 | BC222: =Assumptions!S57 -> 0.05925364051 | BD222: =$BC$222/$BB$222 -> 0.2025765487 | BE222: 0.0005064413719 | BN222: 1 | BO222: 1 | BP222: 1 | BQ222: 1 | BR222: 1 | BS222: 1 | BT222: 1 | BU222: 1 | BW222: 1 | BX222: 0.0005064413719 | CB222: =CB$149*(H$16+($BW222*MMULT($AD222:$AH222,CC$3:CC$7))) -> -0.2338761401 | CC222: -3.082261583 | CD222: -1.602572867 | CE222: 0 | CF222: -1.132057021 | CG222: 0.79145984 | CH222: 0.04585543341 | CI222: 0.2013777327 | CJ222: 0 | CK222: 0.3223694533 | CL222: 1.361062459 | CM222: 0.581501484 | CN222: 0.03369091043 | CO222: 0.1479562759 | CP222: 0 | CQ222: 0.2368513297 | CR222: 66.7782388 | CS222: 3.868983526 | CT222: 16.99094464 | CU222: 0 | CV222: 27.19943988
AC223: 16 | AD223: -2.099920103e-05 | AE223: 2.099920103e-05 | AF223: -1.232932824 | AG223: 1.232932824 | AH223: -0.01480418626 | AI223: -1.132148537 | AJ223: 16 | AK223: 1 | AL223: 0 | AM223: 0 | AN223: 0 | AO223: 1 | AP223: 1 | AQ223: 0.0025 | AS223: 2 | AT223: 2.390836198e-08 | AU223: 0.9995347788 | AV223: 0.0004651971706 | AW223: 0 | AX223: 1 | AY223: 0 | BD223: 0.2025765487 | BE223: 0.0005064413719 | BN223: 1 | BO223: 1 | BP223: 1 | BQ223: 1 | BR223: 1 | BS223: 1 | BT223: 1 | BU223: 1 | BW223: 1 | BX223: 0.0005064413719 | CB223: =CB$149*(H$16+($BW223*MMULT($AD223:$AH223,CC$3:CC$7))) -> -0.2327026153 | CC223: -3.083435108 | CD223: -1.60305848 | CE223: 0 | CF223: -1.132148537 | CG223: 0.7923891829 | CH223: 0.04580165249 | CI223: 0.2012799649 | CJ223: 0 | CK223: 0.3223399525 | CL223: 1.361810753 | CM223: 0.58186439 | CN223: 0.03363290559 | CO223: 0.1478031837 | CP223: 0 | CQ223: 0.2366995207 | CR223: 66.81991405 | CS223: 3.862322389 | CT223: 16.9733639 | CU223: 0 | CV223: 27.1820065
AC224: 29 | AD224: -1.312765319e-05 | AE224: 1.312765319e-05 | AF224: -1.232956387 | AG224: 1.232956387 | AH224: -0.01480418626 | AI224: -1.132149448 | AJ224: 29 | AK224: 1 | AL224: 0 | AM224: 0 | AN224: 0 | AO224: 1 | AP224: 1 | AQ224: 0.0025 | AS224: 2 | AT224: 7.686337537e-07 | AU224: 0.9993483108 | AV224: 0.0006509204905 | AW224: 0 | AX224: 1 | AY224: 0 | BD224: 0.2025765487 | BE224: 0.0005064413719 | BN224: 1 | BO224: 1 | BP224: 1 | BQ224: 1 | BR224: 1 | BS224: 1 | BT224: 1 | BU224: 1 | BW224: 1 | BX224: 0.0005064413719 | CB224: =CB$149*(H$16+($BW224*MMULT($AD224:$AH224,CC$3:CC$7))) -> -0.2326711812 | CC224: -3.083466542 | CD224: -1.603074171 | CE224: 0 | CF224: -1.132149448 | CG224: 0.7924140914 | CH224: 0.04580021277 | CI224: 0.2012768066 | CJ224: 0 | CK224: 0.3223396588 | CL224: 1.36183077 | CM224: 0.5818741279 | CN224: 0.03363135406 | CO224: 0.1477986921 | CP224: 0 | CQ224: 0.236695826 | CR224: 66.82103233 | CS224: 3.862144214 | CT224: 16.9728481 | CU224: 0 | CV224: 27.1815822
AC225: 31 | AD225: -0.000639528392 | AE225: 0.000639528392 | AF225: -1.231322564 | AG225: 1.231322564 | AH225: -0.01480418626 | AI225: -1.13201459 | AJ225: 31 | AK225: 1 | AL225: 0 | AM225: 0 | AN225: 0 | AO225: 1 | AP225: 1 | AQ225: 0.0025 | AS225: 2 | AT225: 9.037566666e-06 | AU225: 0.991320049 | AV225: 0.008670913286 | AW225: 0 | AX225: 1 | AY225: 0 | BD225: 0.2025765487 | BE225: 0.0005064413719 | BN225: 1 | BO225: 1 | BP225: 1 | BQ225: 1 | BR225: 1 | BS225: 1 | BT225: 1 | BU225: 1 | BW225: 1 | BX225: 0.0005064413719 | CB225: =CB$149*(H$16+($BW225*MMULT($AD225:$AH225,CC$3:CC$7))) -> -0.2349314048 | CC225: -3.081206318 | CD225: -1.602066749 | CE225: 0 | CF225: -1.13201459 | CG225: 0.7906250808 | CH225: 0.04590384857 | CI225: 0.2014796795 | CJ225: 0 | CK225: 0.3223831319 | CL225: 1.360391741 | CM225: 0.5811745669 | CN225: 0.03374311031 | CO225: 0.1481041625 | CP225: 0 | CQ225: 0.2369781602 | CR225: 66.74069642 | CS225: 3.874978035 | CT225: 17.00792759 | CU225: 0 | CV225: 27.21400479
AC226: 33 | AD226: -8.864704042e-06 | AE226: 8.864704042e-06 | AF226: -1.232964802 | AG226: 1.232964802 | AH226: -0.01480418626 | AI226: -1.132151065 | AJ226: 33 | AK226: 1 | AL226: 0 | AM226: 0 | AN226: 0 | AO226: 1 | AP226: 1 | AQ226: 0.0025 | AS226: 2 | AT226: 1.057011943e-08 | AU226: 0.9996910975 | AV226: 0.0003088918734 | AW226: 0 | AX226: 1 | AY226: 0 | BD226: 0.2025765487 | BE226: 0.0005064413719 | BN226: 1 | BO226: 1 | BP226: 1 | BQ226: 1 | BR226: 1 | BS226: 1 | BT226: 1 | BU226: 1 | BW226: 1 | BX226: 0.0005064413719 | CB226: =CB$149*(H$16+($BW226*MMULT($AD226:$AH226,CC$3:CC$7))) -> -0.2326585028 | CC226: -3.08347922 | CD226: -1.603078323 | CE226: 0 | CF226: -1.132151065 | CG226: 0.7924241379 | CH226: 0.04579963211 | CI226: 0.2012759708 | CJ226: 0 | CK226: 0.3223391377 | CL226: 1.361838879 | CM226: 0.5818780403 | CN226: 0.03363072741 | CO226: 0.1477971983 | CP226: 0 | CQ226: 0.2366940339 | CR226: 66.82148162 | CS226: 3.862072252 | CT226: 16.97267655 | CU226: 0 | CV226: 27.18137641
AC227: 40 | AD227: -0.004299245282 | AE227: 0.004299245282 | AF227: -1.222619267 | AG227: 1.222619267 | AH227: -0.01480418626 | AI227: -1.131008954 | AJ227: 40 | AK227: 1 | AL227: 0 | AM227: 0 | AN227: 0 | AO227: 1 | AP227: 1 | AQ227: 0.0025 | AS227: 2 | AT227: 0.0004573664591 | AU227: 0.9618559945 | AV227: 0.03768663898 | AW227: 0 | AX227: 1 | AY227: 0 | BD227: 0.2025765487 | BE227: 0.0005064413719 | BN227: 1 | BO227: 1 | BP227: 1 | BQ227: 1 | BR227: 1 | BS227: 1 | BT227: 1 | BU227: 1 | BW227: 1 | BX227: 0.0005064413719 | CB227: =CB$149*(H$16+($BW227*MMULT($AD227:$AH227,CC$3:CC$7))) -> -0.2472944187 | CC227: -3.068843305 | CD227: -1.597023169 | CE227: 0 | CF227: -1.131008954 | CG227: 0.7809107449 | CH227: 0.04647488106 | CI227: 0.2024984253 | CJ227: 0 | CK227: 0.322707495 | CL227: 1.352591546 | CM227: 0.577344097 | CN227: 0.0343598784 | CO227: 0.1497114379 | CP227: 0 | CQ227: 0.2385845867 | CR227: 66.30081442 | CS227: 3.945806207 | CT227: 17.19250325 | CU227: 0 | CV227: 27.39848296
AC228: 43 | AD228: -0.007432206903 | AE228: 0.007432206903 | AF228: -1.213649035 | AG228: 1.213649035 | AH228: -0.01480418626 | AI228: -1.130540913 | AJ228: 43 | AK228: 1 | AL228: 0 | AM228: 0 | AN228: 0 | AO228: 1 | AP228: 1 | AQ228: 0.0025 | AS228: 2 | AT228: 0.0001427961694 | AU228: 0.9474842749 | AV228: 0.05237292883 | AW228: 0 | AX228: 1 | AY228: 0 | BD228: 0.2025765487 | BE228: 0.0005064413719 | BN228: 1 | BO228: 1 | BP228: 1 | BQ228: 1 | BR228: 1 | BS228: 1 | BT228: 1 | BU228: 1 | BW228: 1 | BX228: 0.0005064413719 | CB228: =CB$149*(H$16+($BW228*MMULT($AD228:$AH228,CC$3:CC$7))) -> -0.2593976118 | CC228: -3.056740112 | CD228: -1.591185899 | CE228: 0 | CF228: -1.130540913 | CG228: 0.7715161981 | CH228: 0.04704079328 | CI228: 0.2036839199 | CJ228: 0 | CK228: 0.3228585708 | CL228: 1.345099482 | CM228: 0.573575567 | CN228: 0.03497198081 | CO228: 0.1514266585 | CP228: 0 | CQ228: 0.2400257937 | CR228: 65.86804545 | CS228: 4.016098583 | CT228: 17.38947507 | CU228: 0 | CV228: 27.56398773
AC229: 63 | AD229: -7.220889515e-05 | AE229: 7.220889515e-05 | AF229: -1.232811056 | AG229: 1.232811056 | AH229: -0.01480418626 | AI229: -1.132134462 | AJ229: 63 | AK229: 1 | AL229: 0 | AM229: 0 | AN229: 0 | AO229: 1 | AP229: 1 | AQ229: 0.0025 | AS229: 2 | AT229: 3.930386258e-06 | AU229: 0.9985204818 | AV229: 0.001475587716 | AW229: 0 | AX229: 1 | AY229: 0 | BD229: 0.2025765487 | BE229: 0.0005064413719 | BN229: 1 | BO229: 1 | BP229: 1 | BQ229: 1 | BR229: 1 | BS229: 1 | BT229: 1 | BU229: 1 | BW229: 1 | BX229: 0.0005064413719 | CB229: =CB$149*(H$16+($BW229*MMULT($AD229:$AH229,CC$3:CC$7))) -> -0.2328755927 | CC229: -3.083262131 | CD229: -1.602987922 | CE229: 0 | CF229: -1.132134462 | CG229: 0.7922521294 | CH229: 0.04580957582 | CI229: 0.2012941673 | CJ229: 0 | CK229: 0.3223444897 | CL229: 1.361700362 | CM229: 0.5818109118 | CN229: 0.03364145086 | CO229: 0.1478255958 | CP229: 0 | CQ229: 0.2367220415 | CR229: 66.81377275 | CS229: 3.863303707 | CT229: 16.97593765 | CU229: 0 | CV229: 27.18459274
AC230: 67 | AD230: -2.099920103e-05 | AE230: 2.099920103e-05 | AF230: -1.232932824 | AG230: 1.232932824 | AH230: -0.01480418626 | AI230: -1.132148537 | AJ230: 67 | AK230: 1 | AL230: 0 | AM230: 0 | AN230: 0 | AO230: 1 | AP230: 1 | AQ230: 0.0025 | AS230: 2 | AT230: 2.390836198e-08 | AU230: 0.9995347788 | AV230: 0.0004651971706 | AW230: 0 | AX230: 1 | AY230: 0 | BD230: 0.2025765487 | BE230: 0.0005064413719 | BN230: 1 | BO230: 1 | BP230: 1 | BQ230: 1 | BR230: 1 | BS230: 1 | BT230: 1 | BU230: 1 | BW230: 1 | BX230: 0.0005064413719 | CB230: =CB$149*(H$16+($BW230*MMULT($AD230:$AH230,CC$3:CC$7))) -> -0.2327026153 | CC230: -3.083435108 | CD230: -1.60305848 | CE230: 0 | CF230: -1.132148537 | CG230: 0.7923891829 | CH230: 0.04580165249 | CI230: 0.2012799649 | CJ230: 0 | CK230: 0.3223399525 | CL230: 1.361810753 | CM230: 0.58186439 | CN230: 0.03363290559 | CO230: 0.1478031837 | CP230: 0 | CQ230: 0.2366995207 | CR230: 66.81991405 | CS230: 3.862322389 | CT230: 16.9733639 | CU230: 0 | CV230: 27.1820065
AC231: 69 | AD231: -0.001706129222 | AE231: 0.001706129222 | AF231: -1.230086199 | AG231: 1.230086199 | AH231: -0.01480418626 | AI231: -1.131385392 | AJ231: 69 | AK231: 1 | AL231: 0 | AM231: 0 | AN231: 0 | AO231: 1 | AP231: 1 | AQ231: 0.0025 | AS231: 2 | AT231: 0.0006507417731 | AU231: 0.9812565358 | AV231: 0.01809272233 | AW231: 0 | AX231: 1 | AY231: 0 | BD231: 0.2025765487 | BE231: 0.0005064413719 | BN231: 1 | BO231: 1 | BP231: 1 | BQ231: 1 | BR231: 1 | BS231: 1 | BT231: 1 | BU231: 1 | BW231: 1 | BX231: 0.0005064413719 | CB231: =CB$149*(H$16+($BW231*MMULT($AD231:$AH231,CC$3:CC$7))) -> -0.2372343708 | CC231: -3.078903353 | CD231: -1.601896984 | CE231: 0 | CF231: -1.131385392 | CG231: 0.7888063932 | CH231: 0.0460096854 | CI231: 0.2015138865 | CJ231: 0 | CK231: 0.3225860385 | CL231: 1.358916004 | CM231: 0.580467366 | CN231: 0.03385763747 | CO231: 0.1482901709 | CP231: 0 | CQ231: 0.2373848256 | CR231: 66.65948315 | CS231: 3.88813006 | CT231: 17.02928835 | CU231: 0 | CV231: 27.26070527
AC232: 73 | AD232: -3.077669907e-05 | AE232: 3.077669907e-05 | AF232: -1.232913156 | AG232: 1.232913156 | AH232: -0.01480418626 | AI232: -1.132144924 | AJ232: 73 | AK232: 1 | AL232: 0 | AM232: 0 | AN232: 0 | AO232: 1 | AP232: 1 | AQ232: 0.0025 | AS232: 2 | AT232: 1.738256186e-06 | AU232: 0.9990181333 | AV232: 0.000980128298 | AW232: 0 | AX232: 1 | AY232: 0 | BD232: 0.2025765487 | BE232: 0.0005064413719 | BN232: 1 | BO232: 1 | BP232: 1 | BQ232: 1 | BR232: 1 | BS232: 1 | BT232: 1 | BU232: 1 | BW232: 1 | BX232: 0.0005064413719 | CB232: =CB$149*(H$16+($BW232*MMULT($AD232:$AH232,CC$3:CC$7))) -> -0.2327320607 | CC232: -3.083405663 | CD232: -1.60304859 | CE232: 0 | CF232: -1.132144924 | CG232: 0.7923658511 | CH232: 0.04580300115 | CI232: 0.2012819556 | CJ232: 0 | CK232: 0.3223411172 | CL232: 1.361791925 | CM232: 0.5818553015 | CN232: 0.03363436095 | CO232: 0.1478066891 | CP232: 0 | CQ232: 0.2367036485 | CR232: 66.81887035 | CS232: 3.86248952 | CT232: 16.97376645 | CU232: 0 | CV232: 27.18248053
AC233: 79 | AD233: -2.296280609e-05 | AE233: 2.296280609e-05 | AF233: -1.232928372 | AG233: 1.232928372 | AH233: -0.01480418626 | AI233: -1.132147942 | AJ233: 79 | AK233: 1 | AL233: 0 | AM233: 0 | AN233: 0 | AO233: 1 | AP233: 1 | AQ233: 0.0025 | AS233: 2 | AT233: 2.43553213e-07 | AU233: 0.9990816995 | AV233: 0.0009180568247 | AW233: 0 | AX233: 1 | AY233: 0 | BD233: 0.2025765487 | BE233: 0.0005064413719 | BN233: 1 | BO233: 1 | BP233: 1 | BQ233: 1 | BR233: 1 | BS233: 1 | BT233: 1 | BU233: 1 | BW233: 1 | BX233: 0.0005064413719 | CB233: =CB$149*(H$16+($BW233*MMULT($AD233:$AH233,CC$3:CC$7))) -> -0.2327090314 | CC233: -3.083428692 | CD233: -1.603055991 | CE233: 0 | CF233: -1.132147942 | CG233: 0.7923840989 | CH233: 0.04580194636 | CI233: 0.2012804658 | CJ233: 0 | CK233: 0.3223401445 | CL233: 1.361806656 | CM233: 0.5818624073 | CN233: 0.03363322258 | CO233: 0.1478039963 | CP233: 0 | CQ233: 0.2367003739 | CR233: 66.81968636 | CS233: 3.862358791 | CT233: 16.97345721 | CU233: 0 | CV233: 27.18210447
AC234: 95 | AD234: -1.090134627e-05 | AE234: 1.090134627e-05 | AF234: -1.232959691 | AG234: 1.232959691 | AH234: -0.01480418626 | AI234: -1.132150575 | AJ234: 95 | AK234: 1 | AL234: 0 | AM234: 0 | AN234: 0 | AO234: 1 | AP234: 1 | AQ234: 0.0025 | AS234: 2 | AT234: 7.544289406e-08 | AU234: 0.9996701338 | AV234: 0.0003297906759 | AW234: 0 | AX234: 1 | AY234: 0 | BD234: 0.2025765487 | BE234: 0.0005064413719 | BN234: 1 | BO234: 1 | BP234: 1 | BQ234: 1 | BR234: 1 | BS234: 1 | BT234: 1 | BU234: 1 | BW234: 1 | BX234: 0.0005064413719 | CB234: =CB$149*(H$16+($BW234*MMULT($AD234:$AH234,CC$3:CC$7))) -> -0.2326656505 | CC234: -3.083472073 | CD234: -1.603075249 | CE234: 0 | CF234: -1.132150575 | CG234: 0.792418474 | CH234: 0.04579995947 | CI234: 0.2012765896 | CJ234: 0 | CK234: 0.3223392958 | CL234: 1.361834319 | CM234: 0.5818758295 | CN234: 0.0336310804 | CO234: 0.1477981476 | CP234: 0 | CQ234: 0.2366949425 | CR234: 66.82122774 | CS234: 3.862112789 | CT234: 16.97278556 | CU234: 0 | CV234: 27.18148075
AC235: 99 | AD235: -0.001625572126 | AE235: 0.001625572126 | AF235: -1.23130653 | AG235: 1.23130653 | AH235: -0.01480418626 | AI235: -1.131141577 | AJ235: 99 | AK235: 1 | AL235: 0 | AM235: 0 | AN235: 0 | AO235: 1 | AP235: 1 | AQ235: 0.0025 | AS235: 2 | AT235: 0.0009161105098 | AU235: 0.9904894959 | AV235: 0.008594393497 | AW235: 0 | AX235: 1 | AY235: 0 | BD235: 0.2025765487 | BE235: 0.0005064413719 | BN235: 1 | BO235: 1 | BP235: 1 | BQ235: 1 | BR235: 1 | BS235: 1 | BT235: 1 | BU235: 1 | BW235: 1 | BX235: 0.0005064413719 | CB235: =CB$149*(H$16+($BW235*MMULT($AD235:$AH235,CC$3:CC$7))) -> -0.2359334825 | CC235: -3.080204241 | CD235: -1.603036759 | CE235: 0 | CF235: -1.131141577 | CG235: 0.78983321 | CH235: 0.04594987085 | CI235: 0.201284337 | CJ235: 0 | CK235: 0.3226646994 | CL235: 1.359732117 | CM235: 0.5808741295 | CN235: 0.0337933261 | CO235: 0.1480323473 | CP235: 0 | CQ235: 0.2373001971 | CR235: 66.70619491 | CS235: 3.880744697 | CT235: 16.9996805 | CU235: 0 | CV235: 27.25098673
AC236: 101 | AD236: -1.509248822 | AE236: 1.509248822 | AF236: 0.03324975394 | AG236: -0.03324975394 | AH236: -0.01480418626 | AI236: -0.1169100548 | AJ236: 101 | AK236: 1 | AL236: 0 | AM236: 0 | AN236: 0 | AO236: 1 | AP236: 1 | AQ236: 0.0025 | AS236: 1 | AT236: 0.9997132851 | AU236: 5.220060929e-07 | AV236: 0.0002861928121 | AW236: 1 | AX236: 0 | AY236: 0 | BD236: 0.2025765487 | BE236: 0.0005064413719 | BN236: 1 | BO236: 1 | BP236: 1 | BQ236: 1 | BR236: 1 | BS236: 1 | BT236: 1 | BU236: 1 | BW236: 1 | BX236: 0.0005064413719 | CB236: =CB$149*(H$16+($BW236*MMULT($AD236:$AH236,CC$3:CC$7))) -> -3.008113016 | CC236: -0.3080247072 | CD236: -1.846103725 | CE236: 0 | CF236: -0.1169100548 | CG236: 0.04938477917 | CH236: 0.7348971606 | CI236: 0.1578510007 | CJ236: 0 | CK236: 0.8896652107 | CL236: 1.831798151 | CM236: 0.0269597276 | CN236: 0.4011889411 | CO236: 0.08617270444 | CP236: 0 | CQ236: 0.4856786268 | CR236: 3.095990599 | CS236: 46.07157789 | CT236: 9.895867153 | CU236: 0 | CV236: 55.7741712
AC237: 104 | AD237: -1.509248822 | AE237: 1.509248822 | AF237: 0.03324975394 | AG237: -0.03324975394 | AH237: -0.01480418626 | AI237: -0.1169100548 | AJ237: 104 | AK237: 1 | AL237: 0 | AM237: 0 | AN237: 0 | AO237: 1 | AP237: 1 | AQ237: 0.0025 | AS237: 1 | AT237: 0.9997132851 | AU237: 5.220060929e-07 | AV237: 0.0002861928121 | AW237: 1 | AX237: 0 | AY237: 0 | BD237: 0.2025765487 | BE237: 0.0005064413719 | BN237: 1 | BO237: 1 | BP237: 1 | BQ237: 1 | BR237: 1 | BS237: 1 | BT237: 1 | BU237: 1 | BW237: 1 | BX237: 0.0005064413719 | CB237: =CB$149*(H$16+($BW237*MMULT($AD237:$AH237,CC$3:CC$7))) -> -3.008113016 | CC237: -0.3080247072 | CD237: -1.846103725 | CE237: 0 | CF237: -0.1169100548 | CG237: 0.04938477917 | CH237: 0.7348971606 | CI237: 0.1578510007 | CJ237: 0 | CK237: 0.8896652107 | CL237: 1.831798151 | CM237: 0.0269597276 | CN237: 0.4011889411 | CO237: 0.08617270444 | CP237: 0 | CQ237: 0.4856786268 | CR237: 3.095990599 | CS237: 46.07157789 | CT237: 9.895867153 | CU237: 0 | CV237: 55.7741712
AC238: 108 | AD238: -1.434522362 | AE238: 1.434522362 | AF238: 0.001735899654 | AG238: -0.001735899654 | AH238: -0.01480418626 | AI238: -0.1752378185 | AJ238: 108 | AK238: 1 | AL238: 0 | AM238: 0 | AN238: 0 | AO238: 1 | AP238: 1 | AQ238: 0.0025 | AS238: 1 | AT238: 0.9276607955 | AU238: 0.009629232118 | AV238: 0.06270997228 | AW238: 1 | AX238: 0 | AY238: 0 | BD238: 0.2025765487 | BE238: 0.0005064413719 | BN238: 1 | BO238: 1 | BP238: 1 | BQ238: 1 | BR238: 1 | BS238: 1 | BT238: 1 | BU238: 1 | BW238: 1 | BX238: 0.0005064413719 | CB238: =CB$149*(H$16+($BW238*MMULT($AD238:$AH238,CC$3:CC$7))) -> -2.901872702 | CC238: -0.4142650217 | CD238: -1.802891119 | CE238: 0 | CF238: -0.1752378185 | CG238: 0.0549202744 | CH238: 0.6608257949 | CI238: 0.1648216797 | CJ238: 0 | CK238: 0.8392574061 | CL238: 1.719825155 | CM238: 0.03193363828 | CN238: 0.3842401031 | CO238: 0.09583630009 | CP238: 0 | CQ238: 0.4879899585 | CR238: 3.667182597 | CS238: 44.12521389 | CT238: 11.00561135 | CU238: 0 | CV238: 56.039599
AC239: 109 | AD239: -1.503391803 | AE239: 1.503391803 | AF239: 0.03236971415 | AG239: -0.03236971415 | AH239: -0.01480418626 | AI239: -0.1218927943 | AJ239: 109 | AK239: 1 | AL239: 0 | AM239: 0 | AN239: 0 | AO239: 1 | AP239: 1 | AQ239: 0.0025 | AS239: 1 | AT239: 0.9940310922 | AU239: 0.0001978271021 | AV239: 0.005771080609 | AW239: 1 | AX239: 0 | AY239: 0 | BD239: 0.2025765487 | BE239: 0.0005064413719 | BN239: 1 | BO239: 1 | BP239: 1 | BQ239: 1 | BR239: 1 | BS239: 1 | BT239: 1 | BU239: 1 | BW239: 1 | BX239: 0.0005064413719 | CB239: =CB$149*(H$16+($BW239*MMULT($AD239:$AH239,CC$3:CC$7))) -> -3.001375957 | CC239: -0.3147617658 | CD239: -1.841126746 | CE239: 0 | CF239: -0.1218927943 | CG239: 0.04971861059 | CH239: 0.7299627556 | CI239: 0.15863858 | CJ239: 0 | CK239: 0.8852432665 | CL239: 1.823563213 | CM239: 0.02726453914 | CN239: 0.4002947364 | CO239: 0.08699373783 | CP239: 0 | CQ239: 0.4854469866 | CR239: 3.130994426 | CS239: 45.96888956 | CT239: 9.990152662 | CU239: 0 | CV239: 55.74757019
AC240: 112 | AD240: -1.509395882 | AE240: 1.509395882 | AF240: 0.03325614982 | AG240: -0.03325614982 | AH240: -0.01480418626 | AI240: -0.1167808879 | AJ240: 112 | AK240: 1 | AL240: 0 | AM240: 0 | AN240: 0 | AO240: 1 | AP240: 1 | AQ240: 0.0025 | AS240: 1 | AT240: 0.999753046 | AU240: 1.616075358e-07 | AV240: 0.0002467923322 | AW240: 1 | AX240: 0 | AY240: 0 | BD240: 0.2025765487 | BE240: 0.0005064413719 | BN240: 1 | BO240: 1 | BP240: 1 | BQ240: 1 | BR240: 1 | BS240: 1 | BT240: 1 | BU240: 1 | BW240: 1 | BX240: 0.0005064413719 | CB240: =CB$149*(H$16+($BW240*MMULT($AD240:$AH240,CC$3:CC$7))) -> -3.008266472 | CC240: -0.3078712515 | CD240: -1.846244389 | CE240: 0 | CF240: -0.1167808879 | CG240: 0.04937720138 | CH240: 0.7350099433 | CI240: 0.1578287983 | CJ240: 0 | CK240: 0.8897801334 | CL240: 1.831996076 | CM240: 0.02695267857 | CN240: 0.4012071602 | CO240: 0.08615127528 | CP240: 0 | CQ240: 0.4856888859 | CR240: 3.095181104 | CS240: 46.07367012 | CT240: 9.893406279 | CU240: 0 | CV240: 55.77534933
AC241: 113 | AD241: -1.473754889 | AE241: 1.473754889 | AF241: 0.009072631779 | AG241: -0.009072631779 | AH241: -0.01480418626 | AI241: -0.1422342989 | AJ241: 113 | AK241: 1 | AL241: 0 | AM241: 0 | AN241: 0 | AO241: 1 | AP241: 1 | AQ241: 0.0025 | AS241: 1 | AT241: 0.9725356247 | AU241: 0.01033545256 | AV241: 0.01712892264 | AW241: 1 | AX241: 0 | AY241: 0 | BD241: 0.2025765487 | BE241: 0.0005064413719 | BN241: 1 | BO241: 1 | BP241: 1 | BQ241: 1 | BR241: 1 | BS241: 1 | BT241: 1 | BU241: 1 | BW241: 1 | BX241: 0.0005064413719 | CB241: =CB$149*(H$16+($BW241*MMULT($AD241:$AH241,CC$3:CC$7))) -> -2.948441961 | CC241: -0.3676957628 | CD241: -1.834786913 | CE241: 0 | CF241: -0.1422342989 | CG241: 0.05242131683 | CH241: 0.6923277815 | CI241: 0.1596475169 | CJ241: 0 | CK241: 0.8674179976 | CL241: 1.771814613 | CM241: 0.02958623123 | CN241: 0.3907450455 | CO241: 0.09010396219 | CP241: 0 | CQ241: 0.4895647611 | CR241: 3.39761199 | CS241: 44.87222591 | CT241: 10.34732339 | CU241: 0 | CV241: 56.22044555
AC242: 115 | AD242: -1.509176236 | AE242: 1.509176236 | AF242: 0.03317624285 | AG242: -0.03317624285 | AH242: -0.01480418626 | AI242: -0.1169556218 | AJ242: 115 | AK242: 1 | AL242: 0 | AM242: 0 | AN242: 0 | AO242: 1 | AP242: 1 | AQ242: 0.0025 | AS242: 1 | AT242: 0.9988570572 | AU242: 1.950510157e-05 | AV242: 0.001123437644 | AW242: 1 | AX242: 0 | AY242: 0 | BD242: 0.2025765487 | BE242: 0.0005064413719 | BN242: 1 | BO242: 1 | BP242: 1 | BQ242: 1 | BR242: 1 | BS242: 1 | BT242: 1 | BU242: 1 | BW242: 1 | BX242: 0.0005064413719 | CB242: =CB$149*(H$16+($BW242*MMULT($AD242:$AH242,CC$3:CC$7))) -> -3.007966919 | CC242: -0.3081708046 | CD242: -1.846104649 | CE242: 0 | CF242: -0.1169556218 | CG242: 0.04939199469 | CH242: 0.7347898018 | CI242: 0.1578508547 | CJ242: 0 | CK242: 0.8896246722 | CL242: 1.831657323 | CM242: 0.02696573975 | CN242: 0.4011611738 | CO242: 0.08617925017 | CP242: 0 | CQ242: 0.4856938363 | CR242: 3.096681019 | CS242: 46.06838915 | CT242: 9.896618848 | CU242: 0 | CV242: 55.77591782
AC243: 117 | AD243: -1.50574568 | AE243: 1.50574568 | AF243: 0.0331200558 | AG243: -0.0331200558 | AH243: -0.01480418626 | AI243: -0.1199928253 | AJ243: 117 | AK243: 1 | AL243: 0 | AM243: 0 | AN243: 0 | AO243: 1 | AP243: 1 | AQ243: 0.0025 | AS243: 1 | AT243: 0.9980861724 | AU243: 3.719766686e-06 | AV243: 0.00191010769 | AW243: 1 | AX243: 0 | AY243: 0 | BD243: 0.2025765487 | BE243: 0.0005064413719 | BN243: 1 | BO243: 1 | BP243: 1 | BQ243: 1 | BR243: 1 | BS243: 1 | BT243: 1 | BU243: 1 | BW243: 1 | BX243: 0.0005064413719 | CB243: =CB$149*(H$16+($BW243*MMULT($AD243:$AH243,CC$3:CC$7))) -> -3.004480176 | CC243: -0.3116575471 | CD243: -1.842730281 | CE243: 0 | CF243: -0.1199928253 | CG243: 0.04956451244 | CH243: 0.7322322404 | CI243: 0.1583844013 | CJ243: 0 | CK243: 0.8869268002 | CL243: 1.827107954 | CM243: 0.02712730374 | CN243: 0.4007602499 | CO243: 0.0866858474 | CP243: 0 | CQ243: 0.4854265989 | CR243: 3.115234642 | CS243: 46.02234802 | CT243: 9.954795262 | CU243: 0 | CV243: 55.74522892
AC244: 119 | AD244: -1.509120262 | AE244: 1.509120262 | AF244: 0.03323259033 | AG244: -0.03323259033 | AH244: -0.01480418626 | AI244: -0.1170199808 | AJ244: 119 | AK244: 1 | AL244: 0 | AM244: 0 | AN244: 0 | AO244: 1 | AP244: 1 | AQ244: 0.0025 | AS244: 1 | AT244: 0.9994978197 | AU244: 3.813739625e-06 | AV244: 0.0004983664391 | AW244: 1 | AX244: 0 | AY244: 0 | BD244: 0.2025765487 | BE244: 0.0005064413719 | BN244: 1 | BO244: 1 | BP244: 1 | BQ244: 1 | BR244: 1 | BS244: 1 | BT244: 1 | BU244: 1 | BW244: 1 | BX244: 0.0005064413719 | CB244: =CB$149*(H$16+($BW244*MMULT($AD244:$AH244,CC$3:CC$7))) -> -3.007967293 | CC244: -0.3081704303 | CD244: -1.845992329 | CE244: 0 | CF244: -0.1170199808 | CG244: 0.0493919762 | CH244: 0.7347900768 | CI244: 0.1578685856 | CJ244: 0 | CK244: 0.8895674187 | CL244: 1.831618057 | CM244: 0.02696630774 | CN244: 0.401169924 | CO244: 0.08619077813 | CP244: 0 | CQ244: 0.4856729901 | CR244: 3.096746246 | CS244: 46.06939401 | CT244: 9.897942692 | CU244: 0 | CV244: 55.77352389
AC245: 120 | AD245: -1.508840694 | AE245: 1.508840694 | AF245: 0.03304095782 | AG245: -0.03304095782 | AH245: -0.01480418626 | AI245: -0.1172191371 | AJ245: 120 | AK245: 1 | AL245: 0 | AM245: 0 | AN245: 0 | AO245: 1 | AP245: 1 | AQ245: 0.0025 | AS245: 1 | AT245: 0.998634452 | AU245: 6.299160222e-05 | AV245: 0.00130255631 | AW245: 1 | AX245: 0 | AY245: 0 | BD245: 0.2025765487 | BE245: 0.0005064413719 | BN245: 1 | BO245: 1 | BP245: 1 | BQ245: 1 | BR245: 1 | BS245: 1 | BT245: 1 | BU245: 1 | BW245: 1 | BX245: 0.0005064413719 | CB245: =CB$149*(H$16+($BW245*MMULT($AD245:$AH245,CC$3:CC$7))) -> -3.007496092 | CC245: -0.3086416313 | CD245: -1.845904393 | CE245: 0 | CF245: -0.1172191371 | CG245: 0.04941525524 | CH245: 0.7344439246 | CI245: 0.1578824685 | CJ245: 0 | CK245: 0.8893902734 | CL245: 1.831131922 | CM245: 0.02698617978 | CN245: 0.4010873907 | CO245: 0.08622124199 | CP245: 0 | CQ245: 0.4857051875 | CR245: 3.099028303 | CS245: 46.05991608 | CT245: 9.901441088 | CU245: 0 | CV245: 55.77722136
AC246: 123 | AD246: -1.506034855 | AE246: 1.506034855 | AF246: 0.03314826848 | AG246: -0.03314826848 | AH246: -0.01480418626 | AI246: -0.1197428765 | AJ246: 123 | AK246: 1 | AL246: 0 | AM246: 0 | AN246: 0 | AO246: 1 | AP246: 1 | AQ246: 0.0025 | AS246: 1 | AT246: 0.9992687213 | AU246: 2.252802052e-07 | AV246: 0.0007310533687 | AW246: 1 | AX246: 0 | AY246: 0 | BD246: 0.2025765487 | BE246: 0.0005064413719 | BN246: 1 | BO246: 1 | BP246: 1 | BQ246: 1 | BR246: 1 | BS246: 1 | BT246: 1 | BU246: 1 | BW246: 1 | BX246: 0.0005064413719 | CB246: =CB$149*(H$16+($BW246*MMULT($AD246:$AH246,CC$3:CC$7))) -> -3.004797564 | CC246: -0.3113401593 | CD246: -1.842991243 | CE246: 0 | CF246: -0.1197428765 | CG246: 0.04954878377 | CH246: 0.7324646788 | CI246: 0.1583430743 | CJ246: 0 | CK246: 0.8871485142 | CL246: 1.827505051 | CM246: 0.02711280264 | CN246: 0.400800358 | CO246: 0.08664439764 | CP246: 0 | CQ246: 0.4854424417 | CR246: 3.11356937 | CS246: 46.02695394 | CT246: 9.950035271 | CU246: 0 | CV246: 55.74704826
AC247: 127 | AD247: -1.509248822 | AE247: 1.509248822 | AF247: 0.03324975394 | AG247: -0.03324975394 | AH247: -0.01480418626 | AI247: -0.1169100548 | AJ247: 127 | AK247: 1 | AL247: 0 | AM247: 0 | AN247: 0 | AO247: 1 | AP247: 1 | AQ247: 0.0025 | AS247: 1 | AT247: 0.9997132851 | AU247: 5.220060929e-07 | AV247: 0.0002861928121 | AW247: 1 | AX247: 0 | AY247: 0 | BD247: 0.2025765487 | BE247: 0.0005064413719 | BN247: 1 | BO247: 1 | BP247: 1 | BQ247: 1 | BR247: 1 | BS247: 1 | BT247: 1 | BU247: 1 | BW247: 1 | BX247: 0.0005064413719 | CB247: =CB$149*(H$16+($BW247*MMULT($AD247:$AH247,CC$3:CC$7))) -> -3.008113016 | CC247: -0.3080247072 | CD247: -1.846103725 | CE247: 0 | CF247: -0.1169100548 | CG247: 0.04938477917 | CH247: 0.7348971606 | CI247: 0.1578510007 | CJ247: 0 | CK247: 0.8896652107 | CL247: 1.831798151 | CM247: 0.0269597276 | CN247: 0.4011889411 | CO247: 0.08617270444 | CP247: 0 | CQ247: 0.4856786268 | CR247: 3.095990599 | CS247: 46.07157789 | CT247: 9.895867153 | CU247: 0 | CV247: 55.7741712
AC248: 128 | AD248: -1.509395882 | AE248: 1.509395882 | AF248: 0.03325614982 | AG248: -0.03325614982 | AH248: -0.01480418626 | AI248: -0.1167808879 | AJ248: 128 | AK248: 1 | AL248: 0 | AM248: 0 | AN248: 0 | AO248: 1 | AP248: 1 | AQ248: 0.0025 | AS248: 1 | AT248: 0.999753046 | AU248: 1.616075358e-07 | AV248: 0.0002467923322 | AW248: 1 | AX248: 0 | AY248: 0 | BD248: 0.2025765487 | BE248: 0.0005064413719 | BN248: 1 | BO248: 1 | BP248: 1 | BQ248: 1 | BR248: 1 | BS248: 1 | BT248: 1 | BU248: 1 | BW248: 1 | BX248: 0.0005064413719 | CB248: =CB$149*(H$16+($BW248*MMULT($AD248:$AH248,CC$3:CC$7))) -> -3.008266472 | CC248: -0.3078712515 | CD248: -1.846244389 | CE248: 0 | CF248: -0.1167808879 | CG248: 0.04937720138 | CH248: 0.7350099433 | CI248: 0.1578287983 | CJ248: 0 | CK248: 0.8897801334 | CL248: 1.831996076 | CM248: 0.02695267857 | CN248: 0.4012071602 | CO248: 0.08615127528 | CP248: 0 | CQ248: 0.4856888859 | CR248: 3.095181104 | CS248: 46.07367012 | CT248: 9.893406279 | CU248: 0 | CV248: 55.77534933
AC249: 132 | AD249: -1.509248822 | AE249: 1.509248822 | AF249: 0.03324975394 | AG249: -0.03324975394 | AH249: -0.01480418626 | AI249: -0.1169100548 | AJ249: 132 | AK249: 1 | AL249: 0 | AM249: 0 | AN249: 0 | AO249: 1 | AP249: 1 | AQ249: 0.0025 | AS249: 1 | AT249: 0.9997132851 | AU249: 5.220060929e-07 | AV249: 0.0002861928121 | AW249: 1 | AX249: 0 | AY249: 0 | BD249: 0.2025765487 | BE249: 0.0005064413719 | BN249: 1 | BO249: 1 | BP249: 1 | BQ249: 1 | BR249: 1 | BS249: 1 | BT249: 1 | BU249: 1 | BW249: 1 | BX249: 0.0005064413719 | CB249: =CB$149*(H$16+($BW249*MMULT($AD249:$AH249,CC$3:CC$7))) -> -3.008113016 | CC249: -0.3080247072 | CD249: -1.846103725 | CE249: 0 | CF249: -0.1169100548 | CG249: 0.04938477917 | CH249: 0.7348971606 | CI249: 0.1578510007 | CJ249: 0 | CK249: 0.8896652107 | CL249: 1.831798151 | CM249: 0.0269597276 | CN249: 0.4011889411 | CO249: 0.08617270444 | CP249: 0 | CQ249: 0.4856786268 | CR249: 3.095990599 | CS249: 46.07157789 | CT249: 9.895867153 | CU249: 0 | CV249: 55.7741712
AC250: 134 | AD250: -1.507517756 | AE250: 1.507517756 | AF250: 0.03204420066 | AG250: -0.03204420066 | AH250: -0.01480418626 | AI250: -0.1181383078 | AJ250: 134 | AK250: 1 | AL250: 0 | AM250: 0 | AN250: 0 | AO250: 1 | AP250: 1 | AQ250: 0.0025 | AS250: 1 | AT250: 0.9972746881 | AU250: 0.0004596846332 | AV250: 0.002265627134 | AW250: 1 | AX250: 0 | AY250: 0 | BD250: 0.2025765487 | BE250: 0.0005064413719 | BN250: 1 | BO250: 1 | BP250: 1 | BQ250: 1 | BR250: 1 | BS250: 1 | BT250: 1 | BU250: 1 | BW250: 1 | BX250: 0.0005064413719 | CB250: =CB$149*(H$16+($BW250*MMULT($AD250:$AH250,CC$3:CC$7))) -> -3.005176397 | CC250: -0.310961326 | CD250: -1.845578212 | CE250: 0 | CF250: -0.1181383078 | CG250: 0.04953001659 | CH250: 0.7327422134 | CI250: 0.1579339751 | CJ250: 0 | CK250: 0.8885731475 | CL250: 1.828779353 | CM250: 0.02708364819 | CN250: 0.4006728381 | CO250: 0.08636032273 | CP250: 0 | CQ250: 0.485883191 | CR250: 3.110221342 | CS250: 46.01230985 | CT250: 9.917412788 | CU250: 0 | CV250: 55.79766286
AC251: 135 | AD251: -1.509347673 | AE251: 1.509347673 | AF251: 0.03325515493 | AG251: -0.03325515493 | AH251: -0.01480418626 | AI251: -0.1168235163 | AJ251: 135 | AK251: 1 | AL251: 0 | AM251: 0 | AN251: 0 | AO251: 1 | AP251: 1 | AQ251: 0.0025 | AS251: 1 | AT251: 0.9998355942 | AU251: 7.144299014e-08 | AV251: 0.0001643342827 | AW251: 1 | AX251: 0 | AY251: 0 | BD251: 0.2025765487 | BE251: 0.0005064413719 | BN251: 1 | BO251: 1 | BP251: 1 | BQ251: 1 | BR251: 1 | BS251: 1 | BT251: 1 | BU251: 1 | BW251: 1 | BX251: 0.0005064413719 | CB251: =CB$149*(H$16+($BW251*MMULT($AD251:$AH251,CC$3:CC$7))) -> -3.008217268 | CC251: -0.3079204557 | CD251: -1.846197174 | CE251: 0 | CF251: -0.1168235163 | CG251: 0.049379631 | CH251: 0.7349737787 | CI251: 0.1578362503 | CJ251: 0 | CK251: 0.8897422043 | CL251: 1.831931864 | CM251: 0.02695494956 | CN251: 0.4012014819 | CO251: 0.08615836284 | CP251: 0 | CQ251: 0.4856852057 | CR251: 3.0954419 | CS251: 46.07301804 | CT251: 9.894220197 | CU251: 0 | CV251: 55.7749267
AC252: 137 | AD252: -1.306339454 | AE252: 1.306339454 | AF252: 0.02622158137 | AG252: -0.02622158137 | AH252: -0.01480418626 | AI252: -0.2955958068 | AJ252: 137 | AK252: 1 | AL252: 0 | AM252: 0 | AN252: 0 | AO252: 1 | AP252: 1 | AQ252: 0.0025 | AS252: 1 | AT252: 0.9577708634 | AU252: 0.0001147783401 | AV252: 0.04211435818 | AW252: 1 | AX252: 0 | AY252: 0 | BD252: 0.2025765487 | BE252: 0.0005064413719 | BN252: 1 | BO252: 1 | BP252: 1 | BQ252: 1 | BR252: 1 | BS252: 1 | BT252: 1 | BU252: 1 | BW252: 1 | BX252: 0.0005064413719 | CB252: =CB$149*(H$16+($BW252*MMULT($AD252:$AH252,CC$3:CC$7))) -> -2.798175476 | CC252: -0.5179622475 | CD252: -1.650222529 | CE252: 0 | CF252: -0.2955958068 | CG252: 0.06092111333 | CH252: 0.5957332689 | CI252: 0.1920071766 | CJ252: 0 | CK252: 0.7440881226 | CL252: 1.592749681 | CM252: 0.03824901932 | CN252: 0.3740281827 | CO252: 0.120550755 | CP252: 0 | CQ252: 0.467172043 | CR252: 4.392425842 | CS252: 42.95250139 | CT252: 13.84376021 | CU252: 0 | CV252: 53.6489194
AC253: 138 | AD253: -1.505368853 | AE253: 1.505368853 | AF253: 0.03311913018 | AG253: -0.03311913018 | AH253: -0.01480418626 | AI253: -0.1203278009 | AJ253: 138 | AK253: 1 | AL253: 0 | AM253: 0 | AN253: 0 | AO253: 1 | AP253: 1 | AQ253: 0.0025 | AS253: 1 | AT253: 0.9987257405 | AU253: 1.645341539e-06 | AV253: 0.001272614043 | AW253: 1 | AX253: 0 | AY253: 0 | BD253: 0.2025765487 | BE253: 0.0005064413719 | BN253: 1 | BO253: 1 | BP253: 1 | BQ253: 1 | BR253: 1 | BS253: 1 | BT253: 1 | BU253: 1 | BW253: 1 | BX253: 0.0005064413719 | CB253: =CB$149*(H$16+($BW253*MMULT($AD253:$AH253,CC$3:CC$7))) -> -3.004102424 | CC253: -0.3120352995 | CD253: -1.84235438 | CE253: 0 | CF253: -0.1203278009 | CG253: 0.0495832391 | CH253: 0.7319556901 | CI253: 0.1584439494 | CJ253: 0 | CK253: 0.8866297511 | CL253: 1.82661263 | CM253: 0.027144912 | CN253: 0.4007175239 | CO253: 0.08674195438 | CP253: 0 | CQ253: 0.4853956097 | CR253: 3.117256732 | CS253: 46.01744146 | CT253: 9.961238453 | CU253: 0 | CV253: 55.74167019
AC254: 142 | AD254: -1.50492209 | AE254: 1.50492209 | AF254: 0.03299457128 | AG254: -0.03299457128 | AH254: -0.01480418626 | AI254: -0.1206930291 | AJ254: 142 | AK254: 1 | AL254: 0 | AM254: 0 | AN254: 0 | AO254: 1 | AP254: 1 | AQ254: 0.0025 | AS254: 1 | AT254: 0.9966507279 | AU254: 2.714311766e-05 | AV254: 0.003322128914 | AW254: 1 | AX254: 0 | AY254: 0 | BD254: =$BC$222/$BB$222 -> 0.2025765487 | BE254: 0.0005064413719 | BN254: 1 | BO254: 1 | BP254: 1 | BQ254: 1 | BR254: 1 | BS254: 1 | BT254: 1 | BU254: 1 | BW254: 1 | BX254: 0.0005064413719 | CB254: =CB$149*(H$16+($BW254*MMULT($AD254:$AH254,CC$3:CC$7))) -> -3.003531101 | CC254: -0.3126066221 | CD254: -1.842032175 | CE254: 0 | CF254: -0.1206930291 | CG254: 0.04961157522 | CH254: 0.7315376267 | CI254: 0.158495009 | CJ254: 0 | CK254: 0.8863059879 | CL254: 1.825950199 | CM254: 0.02717027838 | CN254: 0.4006339423 | CO254: 0.08680138654 | CP254: 0 | CQ254: 0.4853943927 | CR254: 3.120169747 | CS254: 46.00784316 | CT254: 9.968063501 | CU254: 0 | CV254: 55.74153043
AC255: 148 | AD255: -1.503391803 | AE255: 1.503391803 | AF255: 0.03236971415 | AG255: -0.03236971415 | AH255: -0.01480418626 | AI255: -0.1218927943 | AJ255: 148 | AK255: 1 | AL255: 0 | AM255: 0 | AN255: 0 | AO255: 1 | AP255: 1 | AQ255: 0.0025 | AS255: 1 | AT255: 0.9940310922 | AU255: 0.0001978271021 | AV255: 0.005771080609 | AW255: 1 | AX255: 0 | AY255: 0 | BD255: 0.2025765487 | BE255: 0.0005064413719 | BN255: 1 | BO255: 1 | BP255: 1 | BQ255: 1 | BR255: 1 | BS255: 1 | BT255: 1 | BU255: 1 | BW255: 1 | BX255: 0.0005064413719 | CB255: =CB$149*(H$16+($BW255*MMULT($AD255:$AH255,CC$3:CC$7))) -> -3.001375957 | CC255: -0.3147617658 | CD255: -1.841126746 | CE255: 0 | CF255: -0.1218927943 | CG255: 0.04971861059 | CH255: 0.7299627556 | CI255: 0.15863858 | CJ255: 0 | CK255: 0.8852432665 | CL255: 1.823563213 | CM255: 0.02726453914 | CN255: 0.4002947364 | CO255: 0.08699373783 | CP255: 0 | CQ255: 0.4854469866 | CR255: 3.130994426 | CS255: 45.96888956 | CT255: 9.990152662 | CU255: 0 | CV255: 55.74757019
AC256: 149 | AD256: -1.509384587 | AE256: 1.509384587 | AF256: 0.03325676251 | AG256: -0.03325676251 | AH256: -0.01480418626 | AI256: -0.1167910935 | AJ256: 149 | AK256: 1 | AL256: 0 | AM256: 0 | AN256: 0 | AO256: 1 | AP256: 1 | AQ256: 0.0025 | AS256: 1 | AT256: 0.9999371682 | AU256: 4.322119983e-09 | AV256: 6.28274259e-05 | AW256: 1 | AX256: 0 | AY256: 0 | BD256: 0.2025765487 | BE256: 0.0005064413719 | BN256: 1 | BO256: 1 | BP256: 1 | BQ256: 1 | BR256: 1 | BS256: 1 | BT256: 1 | BU256: 1 | BW256: 1 | BX256: 0.0005064413719 | CB256: =CB$149*(H$16+($BW256*MMULT($AD256:$AH256,CC$3:CC$7))) -> -3.00825579 | CC256: -0.3078819332 | CD256: -1.846232481 | CE256: 0 | CF256: -0.1167910935 | CG256: 0.04937772882 | CH256: 0.7350020922 | CI256: 0.1578306776 | CJ256: 0 | CK256: 0.8897710527 | CL256: 1.831981551 | CM256: 0.02695318017 | CN256: 0.4012060556 | CO256: 0.08615298417 | CP256: 0 | CQ256: 0.48568778 | CR256: 3.095238707 | CS256: 46.07354328 | CT256: 9.893602523 | CU256: 0 | CV256: 55.77522233
AC257: 150 | AD257: -1.476984423 | AE257: 1.476984423 | AF257: 0.03181199003 | AG257: -0.03181199003 | AH257: -0.01480418626 | AI257: -0.1452399003 | AJ257: 150 | AK257: 1 | AL257: 0 | AM257: 0 | AN257: 0 | AO257: 1 | AP257: 1 | AQ257: 0.0025 | AS257: 1 | AT257: 0.9852966718 | AU257: 8.466296366e-05 | AV257: 0.01461866514 | AW257: 1 | AX257: 0 | AY257: 0 | BD257: 0.2025765487 | BE257: 0.0005064413719 | BN257: 1 | BO257: 1 | BP257: 1 | BQ257: 1 | BR257: 1 | BS257: 1 | BT257: 1 | BU257: 1 | BW257: 1 | BX257: 0.0005064413719 | CB257: =CB$149*(H$16+($BW257*MMULT($AD257:$AH257,CC$3:CC$7))) -> -2.974410853 | CC257: -0.3417268702 | CD257: -1.815277089 | CE257: 0 | CF257: -0.1452399003 | CG257: 0.0510775173 | CH257: 0.7105422484 | CI257: 0.162792794 | CJ257: 0 | CK257: 0.8648147989 | CL257: 1.789227359 | CM257: 0.02854724809 | CN257: 0.397122392 | CO257: 0.090984968 | CP257: 0 | CQ257: 0.4833453919 | CR257: 3.278297653 | CS257: 45.60458512 | CT257: 10.44849598 | CU257: 0 | CV257: 55.50622808
AC258: 154 | AD258: -1.504545486 | AE258: 1.504545486 | AF258: 0.03304704141 | AG258: -0.03304704141 | AH258: -0.01480418626 | AI258: -0.1210416095 | AJ258: 154 | AK258: 1 | AL258: 0 | AM258: 0 | AN258: 0 | AO258: 1 | AP258: 1 | AQ258: 0.0025 | AS258: 1 | AT258: 0.9977735368 | AU258: 1.201187709e-05 | AV258: 0.00221445127 | AW258: 1 | AX258: 0 | AY258: 0 | BD258: 0.2025765487 | BE258: 0.0005064413719 | BN258: 1 | BO258: 1 | BP258: 1 | BQ258: 1 | BR258: 1 | BS258: 1 | BT258: 1 | BU258: 1 | BW258: 1 | BX258: 0.0005064413719 | CB258: =CB$149*(H$16+($BW258*MMULT($AD258:$AH258,CC$3:CC$7))) -> -3.003206968 | CC258: -0.3129307552 | CD258: -1.841603102 | CE258: 0 | CF258: -0.1210416095 | CG258: 0.04962765858 | CH258: 0.7313005495 | CI258: 0.1585630296 | CJ258: 0 | CK258: 0.8859970929 | CL258: 1.825488331 | CM258: 0.0271859632 | CN258: 0.4006054365 | CO258: 0.08686060981 | CP258: 0 | CQ258: 0.4853479905 | CR258: 3.121970953 | CS258: 46.00456962 | CT258: 9.974864559 | CU258: 0 | CV258: 55.73620171
AC259: 156 | AD259: -1.509384587 | AE259: 1.509384587 | AF259: 0.03325676251 | AG259: -0.03325676251 | AH259: -0.01480418626 | AI259: -0.1167910935 | AJ259: 156 | AK259: 1 | AL259: 0 | AM259: 0 | AN259: 0 | AO259: 1 | AP259: 1 | AQ259: 0.0025 | AS259: 1 | AT259: 0.9999371682 | AU259: 4.322119983e-09 | AV259: 6.28274259e-05 | AW259: 1 | AX259: 0 | AY259: 0 | BD259: 0.2025765487 | BE259: 0.0005064413719 | BN259: 1 | BO259: 1 | BP259: 1 | BQ259: 1 | BR259: 1 | BS259: 1 | BT259: 1 | BU259: 1 | BW259: 1 | BX259: 0.0005064413719 | CB259: =CB$149*(H$16+($BW259*MMULT($AD259:$AH259,CC$3:CC$7))) -> -3.00825579 | CC259: -0.3078819332 | CD259: -1.846232481 | CE259: 0 | CF259: -0.1167910935 | CG259: 0.04937772882 | CH259: 0.7350020922 | CI259: 0.1578306776 | CJ259: 0 | CK259: 0.8897710527 | CL259: 1.831981551 | CM259: 0.02695318017 | CN259: 0.4012060556 | CO259: 0.08615298417 | CP259: 0 | CQ259: 0.48568778 | CR259: 3.095238707 | CS259: 46.07354328 | CT259: 9.893602523 | CU259: 0 | CV259: 55.77522233
AC260: 157 | AD260: -1.398606333 | AE260: 1.398606333 | AF260: -0.03182018943 | AG260: 0.03182018943 | AH260: -0.01480418626 | AI260: -0.1985129262 | AJ260: 157 | AK260: 1 | AL260: 0 | AM260: 0 | AN260: 0 | AO260: 1 | AP260: 1 | AQ260: 0.0025 | AS260: 1 | AT260: 0.8888805949 | AU260: 0.02087294462 | AV260: 0.09024646041 | AW260: 1 | AX260: 0 | AY260: 0 | BD260: 0.2025765487 | BE260: 0.0005064413719 | BN260: 1 | BO260: 1 | BP260: 1 | BQ260: 1 | BR260: 1 | BS260: 1 | BT260: 1 | BU260: 1 | BW260: 1 | BX260: 0.0005064413719 | CB260: =CB$149*(H$16+($BW260*MMULT($AD260:$AH260,CC$3:CC$7))) -> -2.832400584 | CC260: -0.4837371395 | CD260: -1.800531179 | CE260: 0 | CF260: -0.1985129262 | CG260: 0.05887135827 | CH260: 0.6164752276 | CI260: 0.1652111082 | CJ260: 0 | CK260: 0.8199491718 | CL260: 1.660506866 | CM260: 0.03545384815 | CN260: 0.371257259 | CO260: 0.09949438429 | CP260: 0 | CQ260: 0.4937945086 | CR260: 4.071435075 | CS260: 42.63429514 | CT260: 11.42569699 | CU260: 0 | CV260: 56.70617963
AC261: 158 | AD261: -1.508840694 | AE261: 1.508840694 | AF261: 0.03304095782 | AG261: -0.03304095782 | AH261: -0.01480418626 | AI261: -0.1172191371 | AJ261: 158 | AK261: 1 | AL261: 0 | AM261: 0 | AN261: 0 | AO261: 1 | AP261: 1 | AQ261: 0.0025 | AS261: 1 | AT261: 0.998634452 | AU261: 6.299160222e-05 | AV261: 0.00130255631 | AW261: 1 | AX261: 0 | AY261: 0 | BD261: 0.2025765487 | BE261: 0.0005064413719 | BN261: 1 | BO261: 1 | BP261: 1 | BQ261: 1 | BR261: 1 | BS261: 1 | BT261: 1 | BU261: 1 | BW261: 1 | BX261: 0.0005064413719 | CB261: =CB$149*(H$16+($BW261*MMULT($AD261:$AH261,CC$3:CC$7))) -> -3.007496092 | CC261: -0.3086416313 | CD261: -1.845904393 | CE261: 0 | CF261: -0.1172191371 | CG261: 0.04941525524 | CH261: 0.7344439246 | CI261: 0.1578824685 | CJ261: 0 | CK261: 0.8893902734 | CL261: 1.831131922 | CM261: 0.02698617978 | CN261: 0.4010873907 | CO261: 0.08622124199 | CP261: 0 | CQ261: 0.4857051875 | CR261: 3.099028303 | CS261: 46.05991608 | CT261: 9.901441088 | CU261: 0 | CV261: 55.77722136
AC262: 160 | AD262: -1.509164392 | AE262: 1.509164392 | AF262: 0.0332156279 | AG262: -0.0332156279 | AH262: -0.01480418626 | AI262: -0.1169763389 | AJ262: 160 | AK262: 1 | AL262: 0 | AM262: 0 | AN262: 0 | AO262: 1 | AP262: 1 | AQ262: 0.0025 | AS262: 1 | AT262: 0.9992430716 | AU262: 8.625378792e-06 | AV262: 0.0007483029016 | AW262: 1 | AX262: 0 | AY262: 0 | BD262: 0.2025765487 | BE262: 0.0005064413719 | BN262: 1 | BO262: 1 | BP262: 1 | BQ262: 1 | BR262: 1 | BS262: 1 | BT262: 1 | BU262: 1 | BW262: 1 | BX262: 0.0005064413719 | CB262: =CB$149*(H$16+($BW262*MMULT($AD262:$AH262,CC$3:CC$7))) -> -3.007994461 | CC262: -0.3081432628 | CD262: -1.846053421 | CE262: 0 | CF262: -0.1169763389 | CG262: 0.04939063436 | CH262: 0.7348100395 | CI262: 0.1578589413 | CJ262: 0 | CK262: 0.889606242 | CL262: 1.831665857 | CM262: 0.02696487144 | CN262: 0.4011703536 | CO262: 0.08618326356 | CP262: 0 | CQ262: 0.4856815114 | CR262: 3.096581305 | CS262: 46.06944334 | CT262: 9.897079737 | CU262: 0 | CV262: 55.77450246
AC263: 162 | AD263: -1.504545486 | AE263: 1.504545486 | AF263: 0.03304704141 | AG263: -0.03304704141 | AH263: -0.01480418626 | AI263: -0.1210416095 | AJ263: 162 | AK263: 1 | AL263: 0 | AM263: 0 | AN263: 0 | AO263: 1 | AP263: 1 | AQ263: 0.0025 | AS263: 1 | AT263: 0.9977735368 | AU263: 1.201187709e-05 | AV263: 0.00221445127 | AW263: 1 | AX263: 0 | AY263: 0 | BD263: 0.2025765487 | BE263: 0.0005064413719 | BN263: 1 | BO263: 1 | BP263: 1 | BQ263: 1 | BR263: 1 | BS263: 1 | BT263: 1 | BU263: 1 | BW263: 1 | BX263: 0.0005064413719 | CB263: =CB$149*(H$16+($BW263*MMULT($AD263:$AH263,CC$3:CC$7))) -> -3.003206968 | CC263: -0.3129307552 | CD263: -1.841603102 | CE263: 0 | CF263: -0.1210416095 | CG263: 0.04962765858 | CH263: 0.7313005495 | CI263: 0.1585630296 | CJ263: 0 | CK263: 0.8859970929 | CL263: 1.825488331 | CM263: 0.0271859632 | CN263: 0.4006054365 | CO263: 0.08686060981 | CP263: 0 | CQ263: 0.4853479905 | CR263: 3.121970953 | CS263: 46.00456962 | CT263: 9.974864559 | CU263: 0 | CV263: 55.73620171
AC264: 163 | AD264: -1.502878274 | AE264: 1.502878274 | AF264: 0.03154332179 | AG264: -0.03154332179 | AH264: -0.01480418626 | AI264: -0.1221359797 | AJ264: 163 | AK264: 1 | AL264: 0 | AM264: 0 | AN264: 0 | AO264: 1 | AP264: 1 | AQ264: 0.0025 | AS264: 1 | AT264: 0.9909135035 | AU264: 0.0004461279266 | AV264: 0.008640368491 | AW264: 1 | AX264: 0 | AY264: 0 | BD264: 0.2025765487 | BE264: 0.0005064413719 | BN264: 1 | BO264: 1 | BP264: 1 | BQ264: 1 | BR264: 1 | BS264: 1 | BT264: 1 | BU264: 1 | BW264: 1 | BX264: 0.0005064413719 | CB264: =CB$149*(H$16+($BW264*MMULT($AD264:$AH264,CC$3:CC$7))) -> -3.000036036 | CC264: -0.3161016875 | CD264: -1.841439609 | CE264: 0 | CF264: -0.1221359797 | CG264: 0.04978527428 | CH264: 0.7289853177 | CI264: 0.1585889557 | CJ264: 0 | CK264: 0.8850280144 | CL264: 1.822387562 | CM264: 0.02731870834 | CN264: 0.4000166226 | CO264: 0.08702262843 | CP264: 0 | CQ264: 0.4856420406 | CR264: 3.137215087 | CS264: 45.93695164 | CT264: 9.993470389 | CU264: 0 | CV264: 55.76996972
AC265: 166 | AD265: -1.509125427 | AE265: 1.509125427 | AF265: 0.03308856034 | AG265: -0.03308856034 | AH265: -0.01480418626 | AI265: -0.1169781523 | AJ265: 166 | AK265: 1 | AL265: 0 | AM265: 0 | AN265: 0 | AO265: 1 | AP265: 1 | AQ265: 0.0025 | AS265: 1 | AT265: 0.9982696085 | AU265: 4.409918529e-05 | AV265: 0.001686292178 | AW265: 1 | AX265: 0 | AY265: 0 | BD265: 0.2025765487 | BE265: 0.0005064413719 | BN265: 1 | BO265: 1 | BP265: 1 | BQ265: 1 | BR265: 1 | BS265: 1 | BT265: 1 | BU265: 1 | BW265: 1 | BX265: 0.0005064413719 | CB265: =CB$149*(H$16+($BW265*MMULT($AD265:$AH265,CC$3:CC$7))) -> -3.007828428 | CC265: -0.3083092956 | CD265: -1.846141523 | CE265: 0 | CF265: -0.1169781523 | CG265: 0.04939883551 | CH265: 0.7346880471 | CI265: 0.1578450342 | CJ265: 0 | CK265: 0.8896046288 | CL265: 1.831536546 | CM265: 0.02697125298 | CN265: 0.4011320707 | CO265: 0.0861817552 | CP265: 0 | CQ265: 0.4857149211 | CR265: 3.097314146 | CS265: 46.06504702 | CT265: 9.89690652 | CU265: 0 | CV265: 55.77833915
AC266: 168 | AD266: -1.509176236 | AE266: 1.509176236 | AF266: 0.03317624285 | AG266: -0.03317624285 | AH266: -0.01480418626 | AI266: -0.1169556218 | AJ266: 168 | AK266: 1 | AL266: 0 | AM266: 0 | AN266: 0 | AO266: 1 | AP266: 1 | AQ266: 0.0025 | AS266: 1 | AT266: 0.9988570572 | AU266: 1.950510157e-05 | AV266: 0.001123437644 | AW266: 1 | AX266: 0 | AY266: 0 | BD266: 0.2025765487 | BE266: 0.0005064413719 | BN266: 1 | BO266: 1 | BP266: 1 | BQ266: 1 | BR266: 1 | BS266: 1 | BT266: 1 | BU266: 1 | BW266: 1 | BX266: 0.0005064413719 | CB266: =CB$149*(H$16+($BW266*MMULT($AD266:$AH266,CC$3:CC$7))) -> -3.007966919 | CC266: -0.3081708046 | CD266: -1.846104649 | CE266: 0 | CF266: -0.1169556218 | CG266: 0.04939199469 | CH266: 0.7347898018 | CI266: 0.1578508547 | CJ266: 0 | CK266: 0.8896246722 | CL266: 1.831657323 | CM266: 0.02696573975 | CN266: 0.4011611738 | CO266: 0.08617925017 | CP266: 0 | CQ266: 0.4856938363 | CR266: 3.096681019 | CS266: 46.06838915 | CT266: 9.896618848 | CU266: 0 | CV266: 55.77591782
AC267: 171 | AD267: -1.509248822 | AE267: 1.509248822 | AF267: 0.03324975394 | AG267: -0.03324975394 | AH267: -0.01480418626 | AI267: -0.1169100548 | AJ267: 171 | AK267: 1 | AL267: 0 | AM267: 0 | AN267: 0 | AO267: 1 | AP267: 1 | AQ267: 0.0025 | AS267: 1 | AT267: 0.9997132851 | AU267: 5.220060929e-07 | AV267: 0.0002861928121 | AW267: 1 | AX267: 0 | AY267: 0 | BD267: 0.2025765487 | BE267: 0.0005064413719 | BN267: 1 | BO267: 1 | BP267: 1 | BQ267: 1 | BR267: 1 | BS267: 1 | BT267: 1 | BU267: 1 | BW267: 1 | BX267: 0.0005064413719 | CB267: =CB$149*(H$16+($BW267*MMULT($AD267:$AH267,CC$3:CC$7))) -> -3.008113016 | CC267: -0.3080247072 | CD267: -1.846103725 | CE267: 0 | CF267: -0.1169100548 | CG267: 0.04938477917 | CH267: 0.7348971606 | CI267: 0.1578510007 | CJ267: 0 | CK267: 0.8896652107 | CL267: 1.831798151 | CM267: 0.0269597276 | CN267: 0.4011889411 | CO267: 0.08617270444 | CP267: 0 | CQ267: 0.4856786268 | CR267: 3.095990599 | CS267: 46.07157789 | CT267: 9.895867153 | CU267: 0 | CV267: 55.7741712
AC268: 173 | AD268: -1.50930209 | AE268: 1.50930209 | AF268: 0.03324829389 | AG268: -0.03324829389 | AH268: -0.01480418626 | AI268: -0.1168622915 | AJ268: 173 | AK268: 1 | AL268: 0 | AM268: 0 | AN268: 0 | AO268: 1 | AP268: 1 | AQ268: 0.0025 | AS268: 1 | AT268: 0.9995690499 | AU268: 1.180730419e-06 | AV268: 0.000429769316 | AW268: 1 | AX268: 0 | AY268: 0 | BD268: 0.2025765487 | BE268: 0.0005064413719 | BN268: 1 | BO268: 1 | BP268: 1 | BQ268: 1 | BR268: 1 | BS268: 1 | BT268: 1 | BU268: 1 | BW268: 1 | BX268: 0.0005064413719 | CB268: =CB$149*(H$16+($BW268*MMULT($AD268:$AH268,CC$3:CC$7))) -> -3.008164824 | CC268: -0.3079728991 | CD268: -1.846158453 | CE268: 0 | CF268: -0.1168622915 | CG268: 0.04938222071 | CH268: 0.7349352352 | CI268: 0.157842362 | CJ268: 0 | CK268: 0.8897077051 | CL268: 1.831867523 | CM268: 0.02695731001 | CN268: 0.4011945329 | CO268: 0.08616472535 | CP268: 0 | CQ268: 0.4856834318 | CR268: 3.095712968 | CS268: 46.07222003 | CT268: 9.894950853 | CU268: 0 | CV268: 55.77472298
AC269: 175 | AD269: -1.509176236 | AE269: 1.509176236 | AF269: 0.03317624285 | AG269: -0.03317624285 | AH269: -0.01480418626 | AI269: -0.1169556218 | AJ269: 175 | AK269: 1 | AL269: 0 | AM269: 0 | AN269: 0 | AO269: 1 | AP269: 1 | AQ269: 0.0025 | AS269: 1 | AT269: 0.9988570572 | AU269: 1.950510157e-05 | AV269: 0.001123437644 | AW269: 1 | AX269: 0 | AY269: 0 | BD269: 0.2025765487 | BE269: 0.0005064413719 | BN269: 1 | BO269: 1 | BP269: 1 | BQ269: 1 | BR269: 1 | BS269: 1 | BT269: 1 | BU269: 1 | BW269: 1 | BX269: 0.0005064413719 | CB269: =CB$149*(H$16+($BW269*MMULT($AD269:$AH269,CC$3:CC$7))) -> -3.007966919 | CC269: -0.3081708046 | CD269: -1.846104649 | CE269: 0 | CF269: -0.1169556218 | CG269: 0.04939199469 | CH269: 0.7347898018 | CI269: 0.1578508547 | CJ269: 0 | CK269: 0.8896246722 | CL269: 1.831657323 | CM269: 0.02696573975 | CN269: 0.4011611738 | CO269: 0.08617925017 | CP269: 0 | CQ269: 0.4856938363 | CR269: 3.096681019 | CS269: 46.06838915 | CT269: 9.896618848 | CU269: 0 | CV269: 55.77591782
... 286 more rows

Sheet Diffusion model
A1: Bass Diffusion Model
A2: Directions: | B2: Introductions of new products (if that's what "Your prod." on the Main sheet represents) don't reach potential share right away, for a number
B3: of reasons. Two main ones are lack of awareness and marketing efforts. Diffusion models attempt to describe the time it takes for new products
B4: to achieve their potential by simulating the impact of word of mouth and marketing efforts over time.
B5: This worksheet takes the estimate of market potential for alternative A in the Main sheet and plots an innovation diffusion curve using the
B6: Bass model*. By choosing appropriate values of p and q, you can simulate the adoption path of alternative A over time. By default, typical values
B7: of p and q appear below. If you have history of a like product, you can use Solver to estimate p and q from your data. Otherwise, you can select
B8: values already calculated for a number of products from the table at the bottom of this page.
B10: p = | C10: 0.03 | D10: The coefficient of innovation, this parameter
D11: represents the effect of external influences
D12: such as media communications on
D13: the rate of adoption.
B15: q = | C15: 0.38 | D15: The coefficient of imitation, this coefficient
D16: represents the effect of prior adoption,
D17: word of mouth and other internal influences
D18: on new adoption.
B24: N = | C24: =AltAPotential -> 40312.97354 | D24: (potential market for alternative Your prod.
D25: from Main worksheet)
B28: Years: | C28: 0 | D28: =C28+1 -> 1 | E28: =D28+1 -> 2 | F28: 3 | G28: 4 | H28: 5 | I28: 6 | J28: 7 | K28: 8 | L28: 9 | M28: 10 | N28: 11 | O28: 12
B29: a = q / p: | C29: =q/p -> 12.66666667 | D29: 12.66666667 | E29: 12.66666667 | F29: 12.66666667 | G29: 12.66666667 | H29: 12.66666667 | I29: 12.66666667 | J29: 12.66666667 | K29: 12.66666667 | L29: 12.66666667 | M29: 12.66666667 | N29: 12.66666667 | O29: 12.66666667
B30: b = p + q: | C30: =p+q -> 0.41 | D30: 0.41 | E30: 0.41 | F30: 0.41 | G30: 0.41 | H30: 0.41 | I30: 0.41 | J30: 0.41 | K30: 0.41 | L30: 0.41 | M30: 0.41 | N30: 0.41 | O30: 0.41
B31: x = Exp(-b * t): | C31: =EXP(-C30*C28) -> 1 | D31: =EXP(-D30*D28) -> 0.6636502501 | E31: 0.4404316545 | F31: 0.2922925777 | G31: 0.1939800423 | H31: 0.1287349036 | I31: 0.08543495097 | J31: 0.05669892658 | K31: 0.03762825681 | L31: 0.02497200204 | M31: 0.0165726754 | N31: 0.01099846018 | O31: 0.007299130847
B32: y = 1 + a * x: | C32: =1+C29*C31 -> 13.66666667 | D32: =1+D29*D31 -> 9.406236502 | E32: 6.578800957 | F32: 4.702372651 | G32: 3.457080536 | H32: 2.630642112 | I32: 2.082176046 | J32: 1.718186403 | K32: 1.476624586 | L32: 1.316312026 | M32: 1.209920555 | N32: 1.139313829 | O32: 1.092455657
B33: Diffusion factor*: | C33: 0 | D33: =(1-D31)/D32 -> 0.03575816426 | E33: =(1-E31)/E32 -> 0.0850562814 | F33: 0.150500072 | G33: 0.2331504717 | H33: 0.3311986425 | I33: 0.4392352179 | J33: 0.5490097417 | K33: 0.651737586 | L33: 0.7407271063 | M33: 0.8128032212 | N33: 0.8680677042 | O33: 0.9086875631
B34: Adoption: | C34: =N*C33 -> 0 | D34: 1441.51793 | E34: 3428.871622 | F34: 6067.105419 | G34: 9398.988798 | H34: 13351.60211 | I34: 17706.87772 | J34: 22132.21519 | K34: 26273.48006 | L34: 29860.91224 | M34: 32766.51475 | N34: 34994.39039 | O34: 36631.89769
B35: Unit sales: | C35: 0 | D35: =D34-C34 -> 1441.51793 | E35: =E34-D34 -> 1987.353692 | F35: 2638.233797 | G35: 3331.883379 | H35: 3952.613314 | I35: 4355.275605 | J35: 4425.337473 | K35: 4141.264869 | L35: 3587.432181 | M35: 2905.602512 | N35: 2227.875641 | O35: 1637.507298
B36: Revenues: | C36: =IF(ISNUMBER(APrice),C35*APrice,0) -> 0 | D36: 36037.94824 | E36: 49683.84231 | F36: 65955.84494 | G36: 83297.08448 | H36: 98815.33284 | I36: 108881.8901 | J36: 110633.4368 | K36: 103531.6217 | L36: 89685.80452 | M36: 72640.06281 | N36: 55696.89102 | O36: 40937.68246
A38: *Source: | B38: Bass, Frank (1969). "A new product growth model for consumer durables". Management Science 15 (5): pp. 215-227.
B39: For more information, see | E39: http://www.bassbasement.org/BassModel/WhichBassModelEquation.aspx
A42: General approach recommended by Christophe Van den Bulte
A43: Source: | B43: Van den Bulte, Christophe (October 2012), "Want to know how diffusion speed varies across countries and products? Try using a Bass model", PDMA Visions: Vol. XXVI No. 4
A44: URL: | B44: https://marketing.wharton.upenn.edu/files/?whdmsaction=public:main.file&fileID=621
A45: Based on: | B45: Meta-analysis of 113 papers published between January 1969 and May 2000.
C47: 90% confidence interval | F47: 90% confidence interval
A48: Product | B48: p | E48: q
A49: Baseline case:
A50: US, consumer durable, launch in ’76: | B50: 0.016 | C50: 0.012 | D50: 0.021 | E50: 0.409 | F50: 0.355 | G50: 0.471
A51: For other cases, multiply by the following factors:
A52: Cellular telephone | B52: 0.226 | C52: 0.125 | D52: 0.409 | E52: 0.635 | F52: 0.465 | G52: 0.868
A53: Non durable product | B53: 0.689 | C53: 0.415 | D53: 1.143 | E53: 0.931 | F53: 0.713 | G53: 1.216
A54: Industrial | B54: 1.058 | C54: 0.679 | D54: 1.65 | E54: 1.149 | F54: 0.909 | G54: 1.451
A55: Non commercial innovation | B55: 0.365 | C55: 0.146 | D55: 0.91 | E55: 2.406 | F55: 1.488 | G55: 3.891
A56: Western Europe | B56: 0.464 | C56: 0.296 | D56: 0.729 | E56: 0.949 | F56: 0.748 | G56: 1.203
A57: Asia | B57: 0.595 | C57: 0.36 | D57: 0.981 | E57: 0.743 | F57: 0.571 | G57: 0.966
A58: Other regions | B58: 0.796 | C58: 0.315 | D58: 2.008 | E58: 0.699 | F58: 0.429 | G58: 1.137
A59: For each year after 1976, multiply by: | B59: 1.021 | C59: 1.002 | D59: 1.041 | E59: 1.028 | F59: 1.018 | G59: 1.039
A62: From other studies, values of p and q for selected industries
A64: Product | B64: p | C64: q | D64: Data used | E64: Source | F64: URL
A65: 3G subscribers in China | B65: 0.001 | C65: 0.089 | D65: 2010-2011 | E65: Liu, Xiaoping, Linjie Li and Yi Li (2012), "Research of Forecasting the Number of 3G Users Based the BASS Model", paper presented to TDThe 2nd International Conference on Computer Application and System Modeling. | F65: http://www.atlantis-press.com/php/download_paper.php?id=2742
A66: Accountant licensing | B66: 0.0034 | C66: 0.0058 | D66: 1896-1951 | E66: Mahajan, Vijay, K.E. Haynes and K.C. Bal Kumar (1977) "Modeling the diffusion of public policy innovations among the U.S. states." Socio-Economic Planning Sciences 11: 259-263 | F66: http://www.sciencedirect.com/science/article/pii/0038012177900106
A67: AFV, passenger | B67: 0.000677 | C67: 0.0386 | D67: 1999-2011 | E67: Shoemaker, Michael H., "A Bass Diffusion Model Analysis: Understanding Alternative Fuel Vehicle Sales" (2012). CMC Senior Theses. Paper 399. | F67: http://scholarship.claremont.edu/cmc_theses/399/
A68: AFV, utility | B68: 0.00776 | C68: 0.0391 | D68: 2004-2011 | E68: Shoemaker, ibid.
A69: Air conditioners, room | B69: 0.010399 | C69: 0.41861 | D69: 1946-1961 | E69: Bass, Frank, ibid p.218
A70: Answering machines | B70: 5.8e-08 | C70: 0.5433 | D70: 1982-1990 | E70: Jiang, Zhengrui, Frank Bass and Portia Isaacson Bass. "Virtual Bass Model and the left-hand data-truncation bias in diffusion of innovation studies." International Journal of Research in Marketing 23 (2006) 93–106. URL: http://www.bus.iastate.edu/zjiang/research/vbm_ijrm.pdf | F70: http://www.bus.iastate.edu/zjiang/research/vbm_ijrm.pdf
A71: AOL change in subs. | B71: 0.00018 | C71: 1.1827 | D71: 1933-1997 | E71: Jiang, et al. ibid.
A72: ATM machines | B72: 0.00053 | C72: 0.4957 | D72: 1971-1985 | E72: Jiang, et al. ibid.
A73: B&W TV | B73: 0.00064 | C73: 0.416 | D73: 1946-1956 | E73: Jiang, et al. ibid.
A74: Blender | B74: 0.001 | C74: 0.55 | D74: 1958-1971 | E74: Jiang, et al. ibid.
A75: Broilers | B75: 3.6e-08 | C75: 0.9668 | D75: 1946-1956 | E75: Jiang, et al. ibid.
A76: Business & consumer products | B76: 0.0018 | C76: 0.4025 | D76: N/A | E76: Jiang, et al. ibid.
A77: Cable TV subscriptions | B77: 6.1e-06 | C77: 0.5012 | D77: 1953-1971 | E77: Jiang, et al. ibid.
A78: Camcorders | B78: 9.4e-05 | C78: 0.4679 | D78: 1985-1991 | E78: Jiang, et al. ibid.
A79: Can opener | B79: 0.0135 | C79: 0.3 | D79: 1958-1971 | E79: Cited in Joshi, Amit, "Product Life Cycle and The Bass Model", p.4 | F79: http://www.bus.ucf.edu/faculty/ajoshi/file.axd?file=2013/1/diffusion+and+bass+model+pmba.pdf
A80: Cassette decks | B80: 0.001 | C80: 0.2875 | D80: 1974-1984 | E80: Jiang, et al. ibid.
A81: CAT body scanner | B81: 0.00016434989 | C81: 1.777286551 | D81: 1972-1978 | E81: Data from Mahajan, Vijay and Robert Peterson (1985), "Models for Innovation Diffusion." Sage University Paper series on Quantitative Applications in the Social Sciences, 07-048. Newbury Park, London and New Delhi: Sage Pubns, p.55.
A82: CAT head scanner | B82: 0.00408105656 | C82: 1.356716678 | D82: 1972-1978 | E82: Mahajan and Peterson, ibid.
A83: CD players | B83: 0.0017 | C83: 0.3991 | D83: 1983-1996 | E83: Jiang, et al. ibid.
A84: Cell phone subscriptions | B84: 0.00074 | C84: 0.4132 | D84: 1984-1995 | E84: Jiang, et al. ibid.
A85: Clothes dryers | B85: 1.4e-06 | C85: 0.4792 | D85: 1950-1957 | E85: Jiang, et al. ibid.
A86: Clothes washers | B86: 0.00162 | C86: 0.2687 | D86: 1922-1930 | E86: Jiang, et al. ibid.
A87: Coffee makers | B87: 3.4e-05 | C87: 0.4086 | D87: 1948-1957 | E87: Jiang, et al. ibid.
A88: Color TV | B88: 5e-05 | C88: 0.648 | D88: 1954-1969 | E88: Jiang, et al. ibid.
A89: Community affairs programs | B89: 0.0022 | C89: 0.0147 | D89: 1959-1970 | E89: Mahajan et al, ibid.
A90: Consumer electronics | B90: 0.0014 | C90: 0.4369 | D90: N/A | E90: Jiang, et al. ibid.
A91: Contact lenses | B91: 0.01 | C91: 0.0039 | D91: 1990 | E91: Sundar | F91: http://faculty.washington.edu/sundar/NPM/BASS-Forecasting%20Model/BASS-Simulation-Sundar.xls
A92: Copying machines | B92: 0.00573 | C92: 0.1519 | D92: 1965-1981 | E92: Jiang, et al. ibid.
A93: Curling iron | B93: 0.0399 | C93: 0.3 | D93: 1974-1982 | E93: Joshi, ibid.
A94: Deep Fryer | B94: 0.0337 | C94: 0.74 | D94: 1950-1961 | E94: Joshi, ibid.
A95: Digital cameras | B95: 0.004 | C95: 0.616 | D95: 1997-2007 | E95: Digital Camera Sales (1997–2008)- PMA Marketing Research, cited in Hubli, Rohan, Marketing, A Strategic View | F95: http://marketingstrategicmanagement.blogspot.com/2010/03/2014-ebooks-takeoff-and-inflection.html
A96: Digital watches | B96: 0.0056 | C96: 0.3542 | D96: 1974-1984 | E96: Jiang, et al. ibid.
A97: DVD players | B97: 0.038 | C97: 0.429 | D97: 1997-2009 | E97: DVD Players and DVD Software Title Sales (1997-2009) – DEG, Digital Entertainment Group, cited in Hubli, Rohan, Marketing, A Strategic View | F97: http://marketingstrategicmanagement.blogspot.com/2010/03/2014-ebooks-takeoff-and-inflection.html
A98: E-book readers | B98: 0.017 | C98: 0.543 | D98: 2008-2013 | E98: Hubli, Rohan, Marketing, A Strategic View | F98: http://marketingstrategicmanagement.blogspot.com/2010/03/2014-ebooks-takeoff-and-inflection.html
A99: Electric blankets | B99: 5.7e-05 | C99: 0.2489 | D99: 1949-1961 | E99: Jiang, et al. ibid.
A100: Electric clothes dryer | B100: 0.008 | C100: 0.4 | D100: 1947-1960 | E100: Joshi, ibid.
A101: Electric range | B101: 0.00246 | C101: 0.4984 | D101: 1925-1931 | E101: Jiang, et al. ibid.
A102: Electric shavers | B102: 9.8e-05 | C102: 0.2775 | D102: 1948-1958 | E102: Jiang, et al. ibid.
A103: Electric Toothbrush | B103: 0.0826 | C103: 0.13 | D103: 1963-1971 | E103: Joshi, ibid.
A104: Energy-saving technologies in commercial building partnerships | B104: 8.42e-05 | C104: 0.359 | D104: 2000-2013 | E104: Antonopoulos, C.A., H.E. Dillon and M.C. Baechle (Sep. 2013) , Commercial Building Partnerships Replication and Diffusion, Pacific Northwest National Laboratory, 36 | F104: http://www.pnnl.gov/main/publications/external/technical_reports/PNNL-22833.pdf
A105: Fax machines | B105: 0.00198 | C105: 0.2637 | D105: 1987-1998 | E105: Jiang, et al. ibid.
A106: Fire extinguisher | B106: 0.0694 | C106: 0.16 | D106: 1975-1982 | E106: Joshi, ibid.
A107: Food processor | B107: 0.0271 | C107: 0.51 | D107: 1978-1984 | E107: Joshi, ibid.
A108: Freezers | B108: 3.8e-05 | C108: 0.3813 | D108: 1946-1954 | E108: Jiang, et al. ibid.
A109: Gasoline tax | B109: 0.073 | C109: 0.0141 | D109: 1919-1929 | E109: Mahajan et al, ibid.
A110: Hair Setter | B110: 0.1305 | C110: 0.35 | D110: 1968-1977 | E110: Joshi, ibid.
A111: Handheld calculators | B111: 0.00136 | C111: 0.438 | D111: 1970-1981 | E111: Jiang, et al. ibid.
A112: Hard drives, self-encrypting, for desktops | B112: 3e-05 | C112: 1.15 | D112: 2010 | E112: Coughlin, Thomas (August 2011), Self-Encrypting Drive Market and Technology Report, 18. | F112: http://www.trustedcomputinggroup.org/files/resource_files/8CA99975-1A4B-B294-D0D425207CA04BAA/Self-Encrypting_Drive_Market_and_Technology_Analysis.pdf
A113: Hard drives, self-encrypting, for laptop enterprise applications | B113: 3e-05 | C113: 1.35 | D113: 2010 | E113: Ibid, p. 17.
A114: Hard drives, self-encrypting, for laptops | B114: 5e-05 | C114: 1.1 | D114: 2010 | E114: Ibid, p. 18.
A115: Heating pads | B115: 0.0035 | C115: 0.3463 | D115: 1922-1930 | E115: Jiang, et al. ibid.
A116: Home appliances | B116: 0.0009 | C116: 0.4213 | D116: N/A | E116: Jiang, et al. ibid.
A117: Housewares | B117: 0.0005 | C117: 0.4432 | D117: N/A | E117: Jiang, et al. ibid.
A118: Hybrid corn | B118: 0.039 | C118: 1.01 | D118: N/A | E118: Lecture, Forcasting the Sales of New Products and the Bass Model, slide 10 | F118: https://faculty.biu.ac.il/~fruchtg/829/lec/6.pdf
A119: Hybrid electric vehicle, plug-in | B119: 0.0026 | C119: 0.709 | D119: 1999-2008 | E119: McManus, Walter and Richard Senter, "Market Models for Predicting PHEV Adoption and Diffusion." Technical Challenges of Plug-In Hybrid Electric Vehicles and Impacts to the U.S. Power System, Subcontract No. 46827, Task 2c: Market Models for Predicting PHEV Adoption and Diffusion, Final Report | F119: http://deepblue.lib.umich.edu/bitstream/handle/2027.42/64436/102399.pdf?sequence=1
A120: Internet on-line shopping in France | B120: 0.004 | C120: 0.485 | D120: 2005 | E120: Naseri, Mohammed and Greg Elliott (2009), Forecasting the Number of Web Shoppers in Australia: An Application of the Bass Model, ANZMAC, 1-8 | F120: http://www.duplication.net.au/ANZMAC09/papers/ANZMAC2009-709.pdf
A121: Internet paid content in Germany | B121: 0.00648811 | C121: 0.063948391 | D121: 2000-2003 | E121: Stahl, Florian and Wolfgang Maass, Adoption and Diffusion of Digital Information Goods: An Empirical Analysis of the German Paid Content Market, 19th Bled eConference eValues Bled, Slovenia, June 5 - 7, 2006 | F121: https://domino.fov.uni-mb.si/proceedings.nsf/0/43053026483b863ec12571800033470f/$FILE/38_Stahl.pdf.
A122: Internet subscribers, mobile, in China | B122: 0.00053 | C122: 0.0776 | D122: 2013 | E122: Zhu Zhaojie, Zhenhong Jia, Xizhong Qin, Chuanling Cao and Chun Chang (2014), Forecasting Mobile Internet Diffusion Trend Based on Optimized Bass Model, International Journal of Multimedia and Ubiquitous Engineering 9:9 351-356 | F122: http://dx.doi.org/10.14257/ijmue.2014.9.9.35
A123: iPhone | B123: 0.02576800297 | C123: 0.706768003 | D123: N/A | E123: Greg Elliott | F123: https://www.dolcera.com/wiki/index.php?title=Bass_Diffusion_Analysis_for_OLED_display_phones
A124: Knife sharpener | B124: 0.0655 | C124: 0.5 | D124: 1957-1969 | E124: Joshi, ibid.
A125: Laser disc players | B125: 0.0025 | C125: 0.3242 | D125: 1985-1995 | E125: Jiang, et al. ibid.
A126: Lawnmowers, power | B126: 7.9e-06 | C126: 0.3091 | D126: 1948-1960 | E126: Jiang, et al. ibid.
A127: McDonalds | B127: 0.018 | C127: 0.54 | D127: N/A | E127: Lecture, ibid.
A128: Microwave ovens | B128: 4e-06 | C128: 0.3451 | D128: 1970-1988 | E128: Jiang, et al. ibid.
A129: Monitor, LCD | B129: 0.064 | C129: 0.824 | D129: N/A | E129: Bass_Model_OLED_analogous.xls | F129: http://www.dolcera.com/wiki/index.php?title=Bass_Diffusion_Analysis_for_OLED_display_phones
A130: Motels | B130: 0.007 | C130: 0.36 | D130: N/A | E130: Lecture, ibid.
A131: Neonatal monitoring device | B131: 0.0009 | C131: 0.6995 | D131: N/A | E131: Gobok, Raymondm Marlina Kosasih, Masurie Lim and Henry Ma (2009) "Forecasting for Biomedical Device Companies: Application of Techniques for a New Neuromonitoring Device." | F131: http://generalengineering.sjsu.edu/docs/pdf/mse_prj_rpts/fall2009/Forecasting%20for%20Biomedical%20Device%20Companies-%20Application%20of%20Techniques%20for%20a%20New%20Neuromonitoring%20Device.pdf
A132: On-line community of MBA's | B132: 0.017 | C132: 0.238 | D132: 2000 | E132: Firth, David R., Cameron Lawrence, and Shawn F. Clouse (2006), Predicting Internet-based Online Community Size and Time to Peak Membership Using the Bass Model of New Product Growth,Interdisciplinary Journal of Information, Knowledge, and Management, 1, 1. | F132: http://ijikm.org/Volume1/IJIKMv1p001-012_Firth01.pdf
A133: Optical scanners | B133: 0.000388 | C133: 0.353 | D133: N/A | E133: Tigert & Farivar (1981). The Bass New Product Growth Model: A sensitivity analysis for a high Technology product, Journal of Marketing, 45, 81-90.
A134: PC generations | B134: 0.1593 | C134: 1.0436 | D134: 1974-2001 | E134: Bass, Portia Isaacson and Frank Bass (2001), "Diffusion of Technology Generations: A Model of Adoption and Repeat Sales", Working paper. | F134: http://www.bassbasement.org/F/N/BBDL/Bass%20and%20Bass%202001.pdf
A135: PC printers | B135: 0.00071 | C135: 0.8037 | D135: 1980-1986 | E135: Jiang, et al. ibid.
A136: Pharmaceuticals | B136: 0.04 | C136: 0.45 | D136: 1999-2010 | E136: Schäfer, Christian. "New Product Forecasting with Analogs Does the Uptake curve of Pharmaceuticals differ by Region?", Presentation to International Symposium of Forecasting , Boston 2012 | F136: http://www.forecasters.org/proceedings12/Schaefer_ISF2012.pdf
A137: Portable dictation machines | B137: 0.00078 | C137: 0.2141 | D137: 1965-1981 | E137: Jiang, et al. ibid.
A138: Radio | B138: 0.01034 | C138: 0.4537 | D138: 1922-1931 | E138: Jiang, et al. ibid.
A139: Record players | B139: 1.8e-11 | C139: 0.4519 | D139: 1952-1961 | E139: Jiang, et al. ibid.
A140: Refrigerators | B140: 0.00037 | C140: 0.2308 | D140: 1920-1940 | E140: Jiang, et al. ibid.
A141: Room air conditioners | B141: 4.4e-08 | C141: 0.5701 | D141: 1946-1957 | E141: Jiang, et al. ibid.
A142: Room temp. control unit | B142: 0.1 | C142: 0.41 | D142: N/A | E142: Lilien, Gary L. , Arvind Rangaswamy, and Arnaud De Bruyn (2007). "The Bass Model: Marketing Engineering Technical Note", Principles of Marketing Engineering | F142: http://faculty.washington.edu/sundar/NPM/BASS-Forecasting%20Model/Bass%20Model%20Technical%20Note.pdf
A143: Satellite TV subscriptions | B143: 0.04693 | C143: 0.3346 | D143: 1994-1998 | E143: Jiang, et al. ibid.
A144: School electronic assessment | B144: 0.1 | C144: 1.229 | D144: 2003-2007 | E144: Boyle, Andrew. "Some forecasts of the diffusion of e-assessment using a model", The Innovation Journal: The Public Sector Innovation Journal, Volume 15(1), 2010, Article 1. | F144: http://www.innovation.cc/scholarly-style/boyle_forecasts_diffusion3final1.pdf
A145: Sepsis monitoring device | B145: 0.0052 | C145: 0.8328 | D145: N/A | E145: Gobok, ibid.
A146: Slow Cooker | B146: 0.0654 | C146: 0.32 | D146: 1973-1982 | E146: Joshi, ibid.
A147: Steam irons | B147: 0.00012 | C147: 0.3819 | D147: 1949-1957 | E147: Jiang, et al. ibid.
A148: Stroke monitoring device | B148: 0.0041 | C148: 0.7062 | D148: N/A | E148: Gobok, ibid.
A149: Styling Dryer | B149: 0.0891 | C149: 0.18 | D149: 1974-1984 | E149: Joshi, ibid.
A150: Subscription services | B150: 0.0001 | C150: 0.842 | D150: N/A | E150: Jiang, et al. ibid.
A151: Trash compactors | B151: 6.5e-05 | C151: 0.9498 | D151: 1971-1975 | E151: Jiang, et al. ibid.
A152: Traumatic brain injury monitoring device | B152: 0.0051 | C152: 0.8061 | D152: N/A | E152: Gobok, ibid.
A153: Turntable | B153: 0.0577 | C153: 0.21 | D153: 1974-1990 | E153: Joshi, ibid.
A154: TV, black & white | B154: 0.027877 | C154: 0.25105 | D154: 1946-1961 | E154: Bass, Frank, ibid p.218
A155: TV, color | B155: 0.005 | C155: 0.84 | D155: N/A | E155: Joshi, ibid.
A156: TV, LCD | B156: 0.01924221866 | C156: 0.8562422187 | D156: N/A | E156: Dolcera, ibid.
A157: TV, Plasma | B157: 0.006973623055 | C157: 0.8649736231 | D157: N/A | E157: Dolcera, ibid.
A158: TV, projection | B158: 0.00512 | C158: 0.2062 | D158: 1984-2001 | E158: Jiang, et al. Ibid.
A159: Ultrasound devices | B159: 0.0013 | C159: 0.6196 | D159: N/A | E159: Lilien, G. L., & Rangaswamy, A. (1998). Marketing Engineering: computer-assisted marketing analysis and planning. Reading, Mass.: Addison-Wesley. | F159: http://setpergrewma.blog.com/2014/02/10/download-marketing-engineering-computer-assisted-marketing-analysis-and-planning-book/
A160: Vacuum cleaners | B160: 0.00406 | C160: 0.1805 | D160: 1922-1930 | E160: Jiang, et al. ibid.
A161: VCR's | B161: 0.00015 | C161: 0.7564 | D161: 1980-1987 | E161: Jiang, et al. ibid.
A162: Waffle Iron | B162: 0.0128 | C162: 0.43 | D162: 1922-1931 | E162: Joshi, ibid.
A163: Water softeners | B163: 0.017703 | C163: 0.119696 | D163: 1949-1961 | E163: Bass, Frank, ibid p.218

Sheet Price curves
A1: Directions: | B1: 1. Set starting price in B7 and increment in A7.
B2: 2. Press the button to generate price curves.
B3: 3. To restore your original scenario, press the button again.
A5: Price increment | B5: Price | C5: Revenue ($MM) | D5: Market share (%)
A6: 1 | C6: =AltAPotentialRevenue -> 1007.824339 | D6: =AMarketShare -> 0.1777828552
A7: 10 | B7: 25 | C7: 1007.824339 | D7: 0.1777828552 | F7: -1000000 | G7: =$F$7-0.01 -> -1000000.01 | R7: Prices | S7: Products
B8: =B7+PriceIncrement -> 35 | C8: 1007.824339 | D8: 0.1777828552 | F8: 100000000 | G8: =$F$8+0.01 -> 100000000 | R8: Price | S8: =Main!$H$12 -> High-end
A9: Which price | B9: 45 | C9: 1007.824339 | D9: 0.1777828552 | S9: =Main!$I$12 -> Stylish
A10: Price | B10: 55 | C10: 1007.824339 | D10: 0.1777828552 | S10: =Main!$J$12 -> Basic
B11: 65 | C11: 1007.824339 | D11: 0.1777828552 | S11: =Main!$K$12 -> 0
A12: Which product | B12: 75 | C12: 1007.824339 | D12: 0.1777828552
A13: Basic | B13: 85 | C13: 1007.824339 | D13: 0.1777828552
B14: 95 | C14: 1007.824339 | D14: 0.1777828552
B15: 105 | C15: 1007.824339 | D15: 0.1777828552
B16: 115 | C16: 1007.824339 | D16: 0.1777828552
B17: 125 | C17: 1007.824339 | D17: 0.1777828552
B18: 135 | C18: 1007.824339 | D18: 0.1777828552
B19: 145 | C19: 1007.824339 | D19: 0.1777828552
B20: 155 | C20: 1007.824339 | D20: 0.1777828552
B21: 165 | C21: 1007.824339 | D21: 0.1777828552
B22: 175 | C22: 1007.824339 | D22: 0.1777828552
B23: 185 | C23: 1007.824339 | D23: 0.1777828552
B24: 195 | C24: 1007.824339 | D24: 0.1777828552
B25: 205 | C25: 1007.824339 | D25: 0.1777828552
B26: 215 | C26: 1007.824339 | D26: 0.1777828552
B27: 225 | C27: 1007.824339 | D27: 0.1777828552
B28: 235 | C28: 1007.824339 | D28: 0.1777828552
B29: 245 | C29: 1007.824339 | D29: 0.1777828552
B30: 255 | C30: 1007.824339 | D30: 0.1777828552
B31: 265 | C31: 1007.824339 | D31: 0.1777828552
B32: 275 | C32: 1007.824339 | D32: 0.1777828552
B33: 285 | C33: 1007.824339 | D33: 0.1777828552
B34: 295 | C34: 1007.824339 | D34: 0.1777828552
B35: 305 | C35: 1007.824339 | D35: 0.1777828552
B36: 315 | C36: 1007.824339 | D36: 0.1777828552
B37: 325 | C37: 1007.824339 | D37: 0.1777828552
B38: 335 | C38: 1007.824339 | D38: 0.1777828552
B39: 345 | C39: 1007.824339 | D39: 0.1777828552
B40: 355 | C40: 1007.824339 | D40: 0.1777828552

Sheet Scenario saver
A1: Directions: | B1: Click the Save… button (to the right) to copy the current scenario from the Main sheet. To paste a scenario to the Main sheet, select a scenario using the drop-down list in cell B3, then click the Paste… button to paste the selected scenario to the Main sheet.
A3: Scenario selection:
A5: Scenario list
A6: Scenario number | B6: Scenario name | C6: Description (optional)
A37: Saved Scenarios
A38: Scenario number | B38: Scenario name | C38: Description (optional)

Sheet Assumptions
A1: PINC-01 | B1: Money Income of People -- Selected Characteristics by Current Income Level: 2016
A2: Source: | B2: U.S. Census Bureau, Current Population Survey, 2016 Annual Social and Economic Supplement.
A3: See also: | B3: https://www2.census.gov/programs-surveys/cps/tables/pinc-01/2016/pinc01_1_2_1.xls
B5: Gender Order | C5: Gender | D5: Age Order | E5: Age | F5: Income Order | G5: Income Description | H5: Persons | I5: New Age Order | J5: Age Bin | K5: New Gender Order | L5: Gender Bin | O5: Gender categories | R5: Gender Order | S5: New Gender Order | T5: New Gender Bin | U5: Age Order | V5: New Age Order | W5: New Age Bin | X5: Income Order | Y5: New Income Order | Z5: New Income Bin
B6: 1 | C6: Male | D6: 1 | E6: 15-24 | F6: 1 | G6: 0-$2,499 | H6: 2711 | I6: =VLOOKUP(D6,AgeOrderTable,2) -> 1 | J6: =VLOOKUP(D6,AgeOrderTable,3) -> 15-24 | K6: =VLOOKUP(B6,GenderOrderTable,2) -> 1 | L6: =VLOOKUP(B6,GenderOrderTable,3) -> Male | O6: Male | P6: =SUM(H6:H497) -> 112317 | R6: 1 | S6: 1 | T6: Male | U6: 1 | V6: 1 | W6: 15-24 | X6: 1 | Y6: 0
B7: 1 | C7: Male | D7: 2 | E7: 25-29 | F7: 1 | G7: 0-$2,499 | H7: 275 | I7: 2 | J7: 25-39 | K7: 1 | L7: Male | O7: Female | P7: =SUM(H498:H989) -> 114437 | R7: 2 | S7: 2 | T7: Female | U7: 2 | V7: 2 | W7: 25-39 | X7: 2 | Y7: 0
B8: 1 | C8: Male | D8: 3 | E8: 30-34 | F8: 1 | G8: 0-$2,499 | H8: 281 | I8: 2 | J8: 25-39 | K8: 1 | L8: Male | O8: Total | P8: =SUM(P6:P7) -> 226754 | U8: 3 | V8: 2 | W8: 25-39 | X8: 3 | Y8: 0
B9: 1 | C9: Male | D9: 4 | E9: 35-39 | F9: 1 | G9: 0-$2,499 | H9: 170 | I9: 2 | J9: 25-39 | K9: 1 | L9: Male | U9: 4 | V9: 2 | W9: 25-39 | X9: 4 | Y9: 0
B10: 1 | C10: Male | D10: 5 | E10: 40-44 | F10: 1 | G10: 0-$2,499 | H10: 171 | I10: 3 | J10: 40-75+ | K10: 1 | L10: Male | O10: Income categories | R10: Age categories | U10: 5 | V10: 3 | W10: 40-75+ | X10: 5 | Y10: 0
B11: 1 | C11: Male | D11: 6 | E11: 45-49 | F11: 1 | G11: 0-$2,499 | H11: 215 | I11: 3 | J11: 40-75+ | K11: 1 | L11: Male | O11: 0-$2,499 | P11: =SUM(H6:H17)+SUM(H498:H509) -> 14686 | R11: 15-24 | S11: =H6+H18+H30+H42+H54+H66+H78+H90+H102+H114+H126+H138+H150+H162+H174+H186+H198+H210+H222+H234+H246+H258+H270+H282+H294+H306+H318+H330+H342+H354+H366+H378+H390+H402+H414+H426+H438+H450+H462+H474+H486+H498+H510+H522+H534+H546+H558+H570+H582+H594+H606+H618+H630+H642+H654+H666+H678+H690+H702+H714+H726+H738+H750+H762+H774+H786+H798+H810+H822+H834+H846+H858+H870+H882+H894+H906+H918+H930+H942+H954+H966+H978 -> 27392 | U11: 6 | V11: 3 | W11: 40-75+ | X11: 6 | Y11: 0
B12: 1 | C12: Male | D12: 7 | E12: 50-54 | F12: 1 | G12: 0-$2,499 | H12: 208 | I12: 3 | J12: 40-75+ | K12: 1 | L12: Male | O12: $2,500-$4,999 | P12: =SUM(H18:H29)+SUM(H510:H521) -> 6263 | R12: 25-29 | S12: 19950 | U12: 7 | V12: 3 | W12: 40-75+ | X12: 7 | Y12: 0
B13: 1 | C13: Male | D13: 8 | E13: 55-59 | F13: 1 | G13: 0-$2,499 | H13: 233 | I13: 3 | J13: 40-75+ | K13: 1 | L13: Male | O13: $5,000-$7,499 | P13: =SUM(H30:H41)+SUM(H522:H533) -> 7658 | R13: 30-34 | S13: 19240 | U13: 8 | V13: 3 | W13: 40-75+ | X13: 8 | Y13: 0
B14: 1 | C14: Male | D14: 9 | E14: 60-64 | F14: 1 | G14: 0-$2,499 | H14: 296 | I14: 3 | J14: 40-75+ | K14: 1 | L14: Male | O14: $7,500-$9,999 | P14: =SUM(H42:H53)+SUM(H534:H545) -> 10552 | R14: 35-39 | S14: 18640 | U14: 9 | V14: 3 | W14: 40-75+ | X14: 9 | Y14: 0
B15: 1 | C15: Male | D15: 10 | E15: 65-69 | F15: 1 | G15: 0-$2,499 | H15: 135 | I15: 3 | J15: 40-75+ | K15: 1 | L15: Male | O15: $10,000-$12,499 | P15: =SUM(H54:H65)+SUM(H546:H557) -> 12474 | R15: 40-44 | S15: 18015 | U15: 10 | V15: 3 | W15: 40-75+ | X15: 10 | Y15: 0
B16: 1 | C16: Male | D16: 11 | E16: 70-74 | F16: 1 | G16: 0-$2,499 | H16: 79 | I16: 3 | J16: 40-75+ | K16: 1 | L16: Male | O16: $12,500-$14,999 | P16: =SUM(H66:H77)+SUM(H558:H569) -> 8996 | R16: 45-49 | S16: 19096 | U16: 11 | V16: 3 | W16: 40-75+ | X16: 11 | Y16: 0
B17: 1 | C17: Male | D17: 12 | E17: 75+ | F17: 1 | G17: 0-$2,499 | H17: 111 | I17: 3 | J17: 40-75+ | K17: 1 | L17: Male | O17: $15,000-$17,499 | P17: =SUM(H78:H89)+SUM(H570:H581) -> 10673 | R17: 50-54 | S17: 20176 | U17: 12 | V17: 3 | W17: 40-75+ | X17: 12 | Y17: 0
B18: 1 | C18: Male | D18: 1 | E18: 15-24 | F18: 2 | G18: $2,500-$4,999 | H18: 1180 | I18: 1 | J18: 15-24 | K18: 1 | L18: Male | O18: $17,500-$19,999 | P18: =SUM(H90:H101)+SUM(H582:H593) -> 7930 | R18: 55-59 | S18: 20341 | X18: 13 | Y18: 0
B19: 1 | C19: Male | D19: 2 | E19: 25-29 | F19: 2 | G19: $2,500-$4,999 | H19: 168 | I19: 2 | J19: 25-39 | K19: 1 | L19: Male | O19: $20,000-$22,499 | P19: =SUM(H102:H113)+SUM(H594:H605) -> 11031 | R19: 60-64 | S19: 17987 | X19: 14 | Y19: 0
B20: 1 | C20: Male | D20: 3 | E20: 30-34 | F20: 2 | G20: $2,500-$4,999 | H20: 144 | I20: 2 | J20: 25-39 | K20: 1 | L20: Male | O20: $22,500-$24,999 | P20: =SUM(H114:H125)+SUM(H606:H617) -> 6962 | R20: 65-69 | S20: 15901 | X20: 15 | Y20: 0
B21: 1 | C21: Male | D21: 4 | E21: 35-39 | F21: 2 | G21: $2,500-$4,999 | H21: 95 | I21: 2 | J21: 25-39 | K21: 1 | L21: Male | O21: $25,000-$27,499 | P21: =SUM(H126:H137)+SUM(H618:H629) -> 9623 | R21: 70-74 | S21: 11001 | X21: 16 | Y21: 0
B22: 1 | C22: Male | D22: 5 | E22: 40-44 | F22: 2 | G22: $2,500-$4,999 | H22: 81 | I22: 3 | J22: 40-75+ | K22: 1 | L22: Male | O22: $27,500-$29,999 | P22: =SUM(H138:H149)+SUM(H630:H641) -> 5534 | R22: 75+ | S22: 19015 | X22: 17 | Y22: 0
B23: 1 | C23: Male | D23: 6 | E23: 45-49 | F23: 2 | G23: $2,500-$4,999 | H23: 87 | I23: 3 | J23: 40-75+ | K23: 1 | L23: Male | O23: $30,000-$32,499 | P23: =SUM(H150:H161)+SUM(H642:H653) -> 10400 | R23: Total: | S23: =SUM(S11:S22) -> 226754 | X23: 18 | Y23: 0
B24: 1 | C24: Male | D24: 7 | E24: 50-54 | F24: 2 | G24: $2,500-$4,999 | H24: 93 | I24: 3 | J24: 40-75+ | K24: 1 | L24: Male | O24: $32,500-$34,999 | P24: =SUM(H162:H173)+SUM(H654:H665) -> 4427 | X24: 19 | Y24: 0
B25: 1 | C25: Male | D25: 8 | E25: 55-59 | F25: 2 | G25: $2,500-$4,999 | H25: 130 | I25: 3 | J25: 40-75+ | K25: 1 | L25: Male | O25: $35,000-$37,499 | P25: =SUM(H174:H185)+SUM(H666:H677) -> 7970 | X25: 20 | Y25: 0
B26: 1 | C26: Male | D26: 9 | E26: 60-64 | F26: 2 | G26: $2,500-$4,999 | H26: 136 | I26: 3 | J26: 40-75+ | K26: 1 | L26: Male | O26: $37,500-$39,999 | P26: =SUM(H186:H197)+SUM(H678:H689) -> 3931 | X26: 21 | Y26: 0
B27: 1 | C27: Male | D27: 10 | E27: 65-69 | F27: 2 | G27: $2,500-$4,999 | H27: 62 | I27: 3 | J27: 40-75+ | K27: 1 | L27: Male | O27: $40,000-$42,499 | P27: =SUM(H198:H209)+SUM(H690:H701) -> 8091 | X27: 22 | Y27: 0
B28: 1 | C28: Male | D28: 11 | E28: 70-74 | F28: 2 | G28: $2,500-$4,999 | H28: 50 | I28: 3 | J28: 40-75+ | K28: 1 | L28: Male | O28: $42,500-$44,999 | P28: =SUM(H210:H221)+SUM(H702:H713) -> 3114 | X28: 23 | Y28: 0
B29: 1 | C29: Male | D29: 12 | E29: 75+ | F29: 2 | G29: $2,500-$4,999 | H29: 104 | I29: 3 | J29: 40-75+ | K29: 1 | L29: Male | O29: $45,000-$47,499 | P29: =SUM(H222:H233)+SUM(H714:H725) -> 5719 | X29: 24 | Y29: 0
B30: 1 | C30: Male | D30: 1 | E30: 15-24 | F30: 3 | G30: $5,000-$7,499 | H30: 1223 | I30: 1 | J30: 15-24 | K30: 1 | L30: Male | O30: $47,500-$49,999 | P30: =SUM(H234:H245)+SUM(H726:H737) -> 3223 | X30: 25 | Y30: 0
B31: 1 | C31: Male | D31: 2 | E31: 25-29 | F31: 3 | G31: $5,000-$7,499 | H31: 231 | I31: 2 | J31: 25-39 | K31: 1 | L31: Male | O31: $50,000-$52,499 | P31: =SUM(H246:H257)+SUM(H738:H749) -> 7128 | X31: 26 | Y31: 0
B32: 1 | C32: Male | D32: 3 | E32: 30-34 | F32: 3 | G32: $5,000-$7,499 | H32: 132 | I32: 2 | J32: 25-39 | K32: 1 | L32: Male | O32: $52,500-$54,999 | P32: =SUM(H258:H269)+SUM(H750:H761) -> 2488 | X32: 27 | Y32: 0
B33: 1 | C33: Male | D33: 4 | E33: 35-39 | F33: 3 | G33: $5,000-$7,499 | H33: 130 | I33: 2 | J33: 25-39 | K33: 1 | L33: Male | O33: $55,000-$57,499 | P33: =SUM(H270:H281)+SUM(H762:H773) -> 3833 | X33: 28 | Y33: 0
B34: 1 | C34: Male | D34: 5 | E34: 40-44 | F34: 3 | G34: $5,000-$7,499 | H34: 102 | I34: 3 | J34: 40-75+ | K34: 1 | L34: Male | O34: $57,500-$59,999 | P34: =SUM(H282:H293)+SUM(H774:H785) -> 2063 | X34: 29 | Y34: 0
B35: 1 | C35: Male | D35: 6 | E35: 45-49 | F35: 3 | G35: $5,000-$7,499 | H35: 116 | I35: 3 | J35: 40-75+ | K35: 1 | L35: Male | O35: $60,000-$62,499 | P35: =SUM(H294:H305)+SUM(H786:H797) -> 5045 | X35: 30 | Y35: 0
B36: 1 | C36: Male | D36: 7 | E36: 50-54 | F36: 3 | G36: $5,000-$7,499 | H36: 111 | I36: 3 | J36: 40-75+ | K36: 1 | L36: Male | O36: $62,500-$64,999 | P36: =SUM(H306:H317)+SUM(H798:H809) -> 1892 | X36: 31 | Y36: 0
B37: 1 | C37: Male | D37: 8 | E37: 55-59 | F37: 3 | G37: $5,000-$7,499 | H37: 120 | I37: 3 | J37: 40-75+ | K37: 1 | L37: Male | O37: $65,000-$67,499 | P37: =SUM(H318:H329)+SUM(H810:H821) -> 3288 | X37: 32 | Y37: 0
B38: 1 | C38: Male | D38: 9 | E38: 60-64 | F38: 3 | G38: $5,000-$7,499 | H38: 140 | I38: 3 | J38: 40-75+ | K38: 1 | L38: Male | O38: $67,500-$69,999 | P38: =SUM(H330:H341)+SUM(H822:H833) -> 1495 | X38: 33 | Y38: 0
B39: 1 | C39: Male | D39: 10 | E39: 65-69 | F39: 3 | G39: $5,000-$7,499 | H39: 106 | I39: 3 | J39: 40-75+ | K39: 1 | L39: Male | O39: $70,000-$72,499 | P39: =SUM(H342:H353)+SUM(H834:H845) -> 3264 | X39: 34 | Y39: 0
B40: 1 | C40: Male | D40: 11 | E40: 70-74 | F40: 3 | G40: $5,000-$7,499 | H40: 60 | I40: 3 | J40: 40-75+ | K40: 1 | L40: Male | O40: $72,500-$74,999 | P40: =SUM(H354:H365)+SUM(H846:H857) -> 1374 | X40: 35 | Y40: 0
B41: 1 | C41: Male | D41: 12 | E41: 75+ | F41: 3 | G41: $5,000-$7,499 | H41: 183 | I41: 3 | J41: 40-75+ | K41: 1 | L41: Male | O41: $75,000-$77,499 | P41: =SUM(H366:H377)+SUM(H858:H869) -> 2920 | X41: 36 | Y41: 0
B42: 1 | C42: Male | D42: 1 | E42: 15-24 | F42: 4 | G42: $7,500-$9,999 | H42: 1051 | I42: 1 | J42: 15-24 | K42: 1 | L42: Male | O42: $77,500-$79,999 | P42: =SUM(H378:H389)+SUM(H870:H881) -> 1306 | X42: 37 | Y42: 0
B43: 1 | C43: Male | D43: 2 | E43: 25-29 | F43: 4 | G43: $7,500-$9,999 | H43: 320 | I43: 2 | J43: 25-39 | K43: 1 | L43: Male | O43: $80,000-$82,499 | P43: =SUM(H390:H401)+SUM(H882:H893) -> 2724 | X43: 38 | Y43: 0
B44: 1 | C44: Male | D44: 3 | E44: 30-34 | F44: 4 | G44: $7,500-$9,999 | H44: 223 | I44: 2 | J44: 25-39 | K44: 1 | L44: Male | O44: $82,500-$84,999 | P44: =SUM(H402:H413)+SUM(H894:H905) -> 1022 | X44: 39 | Y44: 0
B45: 1 | C45: Male | D45: 4 | E45: 35-39 | F45: 4 | G45: $7,500-$9,999 | H45: 204 | I45: 2 | J45: 25-39 | K45: 1 | L45: Male | O45: $85,000-$87,499 | P45: =SUM(H414:H425)+SUM(H906:H917) -> 1508 | X45: 40 | Y45: 0
B46: 1 | C46: Male | D46: 5 | E46: 40-44 | F46: 4 | G46: $7,500-$9,999 | H46: 209 | I46: 3 | J46: 40-75+ | K46: 1 | L46: Male | O46: $87,500-$89,999 | P46: =SUM(H426:H437)+SUM(H918:H929) -> 858 | X46: 41 | Y46: 0
B47: 1 | C47: Male | D47: 6 | E47: 45-49 | F47: 4 | G47: $7,500-$9,999 | H47: 170 | I47: 3 | J47: 40-75+ | K47: 1 | L47: Male | O47: $90,000-$92,499 | P47: =SUM(H438:H449)+SUM(H930:H941) -> 1965
B48: 1 | C48: Male | D48: 7 | E48: 50-54 | F48: 4 | G48: $7,500-$9,999 | H48: 289 | I48: 3 | J48: 40-75+ | K48: 1 | L48: Male | O48: $92,500-$94,999 | P48: =SUM(H450:H461)+SUM(H942:H953) -> 712
B49: 1 | C49: Male | D49: 8 | E49: 55-59 | F49: 4 | G49: $7,500-$9,999 | H49: 305 | I49: 3 | J49: 40-75+ | K49: 1 | L49: Male | O49: $95,000-$97,499 | P49: =SUM(H462:H473)+SUM(H954:H965) -> 1089
B50: 1 | C50: Male | D50: 9 | E50: 60-64 | F50: 4 | G50: $7,500-$9,999 | H50: 252 | I50: 3 | J50: 40-75+ | K50: 1 | L50: Male | O50: $97,500-$99,999 | P50: =SUM(H474:H485)+SUM(H966:H977) -> 768
B51: 1 | C51: Male | D51: 10 | E51: 65-69 | F51: 4 | G51: $7,500-$9,999 | H51: 279 | I51: 3 | J51: 40-75+ | K51: 1 | L51: Male | O51: $100,000+ | P51: =SUM(H486:H497)+SUM(H978:H989) -> 20755
B52: 1 | C52: Male | D52: 11 | E52: 70-74 | F52: 4 | G52: $7,500-$9,999 | H52: 171 | I52: 3 | J52: 40-75+ | K52: 1 | L52: Male | O52: Total: | P52: =SUM(P11:P51) -> 226754
B53: 1 | C53: Male | D53: 12 | E53: 75+ | F53: 4 | G53: $7,500-$9,999 | H53: 318 | I53: 3 | J53: 40-75+ | K53: 1 | L53: Male
B54: 1 | C54: Male | D54: 1 | E54: 15-24 | F54: 5 | G54: $10,000-$12,499 | H54: 1194 | I54: 1 | J54: 15-24 | K54: 1 | L54: Male | N54: Sum of Persons
B55: 1 | C55: Male | D55: 2 | E55: 25-29 | F55: 5 | G55: $10,000-$12,499 | H55: 400 | I55: 2 | J55: 25-39 | K55: 1 | L55: Male | N55: New Age Order | O55: Age Bin | P55: New Gender Order | Q55: Gender Bin | R55: Total
B56: 1 | C56: Male | D56: 3 | E56: 30-34 | F56: 5 | G56: $10,000-$12,499 | H56: 277 | I56: 2 | J56: 25-39 | K56: 1 | L56: Male | N56: 1 | O56: 15-24 | P56: 1 | Q56: Male | R56: 13956 | S56: =$R$56/$R$62 -> 0.06154687459
B57: 1 | C57: Male | D57: 4 | E57: 35-39 | F57: 5 | G57: $10,000-$12,499 | H57: 266 | I57: 2 | J57: 25-39 | K57: 1 | L57: Male | P57: 2 | Q57: Female | R57: 13436 | S57: =$R$57/$R$62 -> 0.05925364051
B58: 1 | C58: Male | D58: 5 | E58: 40-44 | F58: 5 | G58: $10,000-$12,499 | H58: 241 | I58: 3 | J58: 40-75+ | K58: 1 | L58: Male | N58: 2 | O58: 25-39 | P58: 1 | Q58: Male | R58: 29865 | S58: =$R$58/$R$62 -> 0.1317066072
B59: 1 | C59: Male | D59: 6 | E59: 45-49 | F59: 5 | G59: $10,000-$12,499 | H59: 262 | I59: 3 | J59: 40-75+ | K59: 1 | L59: Male | P59: 2 | Q59: Female | R59: 27965 | S59: =$R$59/$R$62 -> 0.1233274826
B60: 1 | C60: Male | D60: 7 | E60: 50-54 | F60: 5 | G60: $10,000-$12,499 | H60: 272 | I60: 3 | J60: 40-75+ | K60: 1 | L60: Male | N60: 3 | O60: 40-75+ | P60: 1 | Q60: Male | R60: 68496 | S60: =$R$60/$R$62 -> 0.3020718488
B61: 1 | C61: Male | D61: 8 | E61: 55-59 | F61: 5 | G61: $10,000-$12,499 | H61: 385 | I61: 3 | J61: 40-75+ | K61: 1 | L61: Male | P61: 2 | Q61: Female | R61: 73036 | S61: =$R$61/$R$62 -> 0.3220935463
B62: 1 | C62: Male | D62: 9 | E62: 60-64 | F62: 5 | G62: $10,000-$12,499 | H62: 270 | I62: 3 | J62: 40-75+ | K62: 1 | L62: Male | N62: Grand Total | R62: 226754 | S62: =SUM($S$56:$S$61) -> 1
B63: 1 | C63: Male | D63: 10 | E63: 65-69 | F63: 5 | G63: $10,000-$12,499 | H63: 324 | I63: 3 | J63: 40-75+ | K63: 1 | L63: Male
B64: 1 | C64: Male | D64: 11 | E64: 70-74 | F64: 5 | G64: $10,000-$12,499 | H64: 251 | I64: 3 | J64: 40-75+ | K64: 1 | L64: Male
B65: 1 | C65: Male | D65: 12 | E65: 75+ | F65: 5 | G65: $10,000-$12,499 | H65: 451 | I65: 3 | J65: 40-75+ | K65: 1 | L65: Male
B66: 1 | C66: Male | D66: 1 | E66: 15-24 | F66: 6 | G66: $12,500-$14,999 | H66: 573 | I66: 1 | J66: 15-24 | K66: 1 | L66: Male
B67: 1 | C67: Male | D67: 2 | E67: 25-29 | F67: 6 | G67: $12,500-$14,999 | H67: 216 | I67: 2 | J67: 25-39 | K67: 1 | L67: Male
B68: 1 | C68: Male | D68: 3 | E68: 30-34 | F68: 6 | G68: $12,500-$14,999 | H68: 160 | I68: 2 | J68: 25-39 | K68: 1 | L68: Male
B69: 1 | C69: Male | D69: 4 | E69: 35-39 | F69: 6 | G69: $12,500-$14,999 | H69: 145 | I69: 2 | J69: 25-39 | K69: 1 | L69: Male
B70: 1 | C70: Male | D70: 5 | E70: 40-44 | F70: 6 | G70: $12,500-$14,999 | H70: 186 | I70: =VLOOKUP(D70,AgeOrderTable,2) -> 3 | J70: =VLOOKUP(D70,AgeOrderTable,3) -> 40-75+ | K70: =VLOOKUP(B70,GenderOrderTable,2) -> 1 | L70: =VLOOKUP(B70,GenderOrderTable,3) -> Male
B71: 1 | C71: Male | D71: 6 | E71: 45-49 | F71: 6 | G71: $12,500-$14,999 | H71: 131 | I71: 3 | J71: 40-75+ | K71: 1 | L71: Male
B72: 1 | C72: Male | D72: 7 | E72: 50-54 | F72: 6 | G72: $12,500-$14,999 | H72: 198 | I72: 3 | J72: 40-75+ | K72: 1 | L72: Male
B73: 1 | C73: Male | D73: 8 | E73: 55-59 | F73: 6 | G73: $12,500-$14,999 | H73: 246 | I73: 3 | J73: 40-75+ | K73: 1 | L73: Male
B74: 1 | C74: Male | D74: 9 | E74: 60-64 | F74: 6 | G74: $12,500-$14,999 | H74: 283 | I74: 3 | J74: 40-75+ | K74: 1 | L74: Male
B75: 1 | C75: Male | D75: 10 | E75: 65-69 | F75: 6 | G75: $12,500-$14,999 | H75: 387 | I75: 3 | J75: 40-75+ | K75: 1 | L75: Male
B76: 1 | C76: Male | D76: 11 | E76: 70-74 | F76: 6 | G76: $12,500-$14,999 | H76: 300 | I76: 3 | J76: 40-75+ | K76: 1 | L76: Male
B77: 1 | C77: Male | D77: 12 | E77: 75+ | F77: 6 | G77: $12,500-$14,999 | H77: 587 | I77: 3 | J77: 40-75+ | K77: 1 | L77: Male
B78: 1 | C78: Male | D78: 1 | E78: 15-24 | F78: 7 | G78: $15,000-$17,499 | H78: 863 | I78: 1 | J78: 15-24 | K78: 1 | L78: Male
B79: 1 | C79: Male | D79: 2 | E79: 25-29 | F79: 7 | G79: $15,000-$17,499 | H79: 478 | I79: 2 | J79: 25-39 | K79: 1 | L79: Male
B80: 1 | C80: Male | D80: 3 | E80: 30-34 | F80: 7 | G80: $15,000-$17,499 | H80: 346 | I80: 2 | J80: 25-39 | K80: 1 | L80: Male
B81: 1 | C81: Male | D81: 4 | E81: 35-39 | F81: 7 | G81: $15,000-$17,499 | H81: 288 | I81: 2 | J81: 25-39 | K81: 1 | L81: Male
B82: 1 | C82: Male | D82: 5 | E82: 40-44 | F82: 7 | G82: $15,000-$17,499 | H82: 255 | I82: 3 | J82: 40-75+ | K82: 1 | L82: Male
B83: 1 | C83: Male | D83: 6 | E83: 45-49 | F83: 7 | G83: $15,000-$17,499 | H83: 252 | I83: 3 | J83: 40-75+ | K83: 1 | L83: Male
B84: 1 | C84: Male | D84: 7 | E84: 50-54 | F84: 7 | G84: $15,000-$17,499 | H84: 268 | I84: 3 | J84: 40-75+ | K84: 1 | L84: Male
B85: 1 | C85: Male | D85: 8 | E85: 55-59 | F85: 7 | G85: $15,000-$17,499 | H85: 274 | I85: 3 | J85: 40-75+ | K85: 1 | L85: Male
B86: 1 | C86: Male | D86: 9 | E86: 60-64 | F86: 7 | G86: $15,000-$17,499 | H86: 383 | I86: 3 | J86: 40-75+ | K86: 1 | L86: Male
B87: 1 | C87: Male | D87: 10 | E87: 65-69 | F87: 7 | G87: $15,000-$17,499 | H87: 379 | I87: 3 | J87: 40-75+ | K87: 1 | L87: Male
B88: 1 | C88: Male | D88: 11 | E88: 70-74 | F88: 7 | G88: $15,000-$17,499 | H88: 324 | I88: 3 | J88: 40-75+ | K88: 1 | L88: Male
B89: 1 | C89: Male | D89: 12 | E89: 75+ | F89: 7 | G89: $15,000-$17,499 | H89: 533 | I89: 3 | J89: 40-75+ | K89: 1 | L89: Male
B90: 1 | C90: Male | D90: 1 | E90: 15-24 | F90: 8 | G90: $17,500-$19,999 | H90: 535 | I90: 1 | J90: 15-24 | K90: 1 | L90: Male
B91: 1 | C91: Male | D91: 2 | E91: 25-29 | F91: 8 | G91: $17,500-$19,999 | H91: 306 | I91: 2 | J91: 25-39 | K91: 1 | L91: Male
B92: 1 | C92: Male | D92: 3 | E92: 30-34 | F92: 8 | G92: $17,500-$19,999 | H92: 237 | I92: 2 | J92: 25-39 | K92: 1 | L92: Male
B93: 1 | C93: Male | D93: 4 | E93: 35-39 | F93: 8 | G93: $17,500-$19,999 | H93: 212 | I93: 2 | J93: 25-39 | K93: 1 | L93: Male
B94: 1 | C94: Male | D94: 5 | E94: 40-44 | F94: 8 | G94: $17,500-$19,999 | H94: 184 | I94: 3 | J94: 40-75+ | K94: 1 | L94: Male
B95: 1 | C95: Male | D95: 6 | E95: 45-49 | F95: 8 | G95: $17,500-$19,999 | H95: 217 | I95: 3 | J95: 40-75+ | K95: 1 | L95: Male
B96: 1 | C96: Male | D96: 7 | E96: 50-54 | F96: 8 | G96: $17,500-$19,999 | H96: 237 | I96: 3 | J96: 40-75+ | K96: 1 | L96: Male
B97: 1 | C97: Male | D97: 8 | E97: 55-59 | F97: 8 | G97: $17,500-$19,999 | H97: 230 | I97: 3 | J97: 40-75+ | K97: 1 | L97: Male
B98: 1 | C98: Male | D98: 9 | E98: 60-64 | F98: 8 | G98: $17,500-$19,999 | H98: 289 | I98: 3 | J98: 40-75+ | K98: 1 | L98: Male
B99: 1 | C99: Male | D99: 10 | E99: 65-69 | F99: 8 | G99: $17,500-$19,999 | H99: 329 | I99: 3 | J99: 40-75+ | K99: 1 | L99: Male
B100: 1 | C100: Male | D100: 11 | E100: 70-74 | F100: 8 | G100: $17,500-$19,999 | H100: 273 | I100: 3 | J100: 40-75+ | K100: 1 | L100: Male
B101: 1 | C101: Male | D101: 12 | E101: 75+ | F101: 8 | G101: $17,500-$19,999 | H101: 566 | I101: 3 | J101: 40-75+ | K101: 1 | L101: Male
B102: 1 | C102: Male | D102: 1 | E102: 15-24 | F102: 9 | G102: $20,000-$22,499 | H102: 887 | I102: 1 | J102: 15-24 | K102: 1 | L102: Male
B103: 1 | C103: Male | D103: 2 | E103: 25-29 | F103: 9 | G103: $20,000-$22,499 | H103: 621 | I103: 2 | J103: 25-39 | K103: 1 | L103: Male
B104: 1 | C104: Male | D104: 3 | E104: 30-34 | F104: 9 | G104: $20,000-$22,499 | H104: 456 | I104: 2 | J104: 25-39 | K104: 1 | L104: Male
B105: 1 | C105: Male | D105: 4 | E105: 35-39 | F105: 9 | G105: $20,000-$22,499 | H105: 336 | I105: 2 | J105: 25-39 | K105: 1 | L105: Male
B106: 1 | C106: Male | D106: 5 | E106: 40-44 | F106: 9 | G106: $20,000-$22,499 | H106: 312 | I106: 3 | J106: 40-75+ | K106: 1 | L106: Male
B107: 1 | C107: Male | D107: 6 | E107: 45-49 | F107: 9 | G107: $20,000-$22,499 | H107: 320 | I107: 3 | J107: 40-75+ | K107: 1 | L107: Male
B108: 1 | C108: Male | D108: 7 | E108: 50-54 | F108: 9 | G108: $20,000-$22,499 | H108: 329 | I108: 3 | J108: 40-75+ | K108: 1 | L108: Male
B109: 1 | C109: Male | D109: 8 | E109: 55-59 | F109: 9 | G109: $20,000-$22,499 | H109: 374 | I109: 3 | J109: 40-75+ | K109: 1 | L109: Male
B110: 1 | C110: Male | D110: 9 | E110: 60-64 | F110: 9 | G110: $20,000-$22,499 | H110: 344 | I110: 3 | J110: 40-75+ | K110: 1 | L110: Male
B111: 1 | C111: Male | D111: 10 | E111: 65-69 | F111: 9 | G111: $20,000-$22,499 | H111: 303 | I111: 3 | J111: 40-75+ | K111: 1 | L111: Male
B112: 1 | C112: Male | D112: 11 | E112: 70-74 | F112: 9 | G112: $20,000-$22,499 | H112: 255 | I112: 3 | J112: 40-75+ | K112: 1 | L112: Male
B113: 1 | C113: Male | D113: 12 | E113: 75+ | F113: 9 | G113: $20,000-$22,499 | H113: 490 | I113: 3 | J113: 40-75+ | K113: 1 | L113: Male
B114: 1 | C114: Male | D114: 1 | E114: 15-24 | F114: 10 | G114: $22,500-$24,999 | H114: 380 | I114: 1 | J114: 15-24 | K114: 1 | L114: Male
B115: 1 | C115: Male | D115: 2 | E115: 25-29 | F115: 10 | G115: $22,500-$24,999 | H115: 332 | I115: 2 | J115: 25-39 | K115: 1 | L115: Male
B116: 1 | C116: Male | D116: 3 | E116: 30-34 | F116: 10 | G116: $22,500-$24,999 | H116: 211 | I116: 2 | J116: 25-39 | K116: 1 | L116: Male
B117: 1 | C117: Male | D117: 4 | E117: 35-39 | F117: 10 | G117: $22,500-$24,999 | H117: 182 | I117: 2 | J117: 25-39 | K117: 1 | L117: Male
B118: 1 | C118: Male | D118: 5 | E118: 40-44 | F118: 10 | G118: $22,500-$24,999 | H118: 151 | I118: 3 | J118: 40-75+ | K118: 1 | L118: Male
B119: 1 | C119: Male | D119: 6 | E119: 45-49 | F119: 10 | G119: $22,500-$24,999 | H119: 188 | I119: 3 | J119: 40-75+ | K119: 1 | L119: Male
B120: 1 | C120: Male | D120: 7 | E120: 50-54 | F120: 10 | G120: $22,500-$24,999 | H120: 201 | I120: 3 | J120: 40-75+ | K120: 1 | L120: Male
B121: 1 | C121: Male | D121: 8 | E121: 55-59 | F121: 10 | G121: $22,500-$24,999 | H121: 263 | I121: 3 | J121: 40-75+ | K121: 1 | L121: Male
B122: 1 | C122: Male | D122: 9 | E122: 60-64 | F122: 10 | G122: $22,500-$24,999 | H122: 260 | I122: 3 | J122: 40-75+ | K122: 1 | L122: Male
B123: 1 | C123: Male | D123: 10 | E123: 65-69 | F123: 10 | G123: $22,500-$24,999 | H123: 319 | I123: 3 | J123: 40-75+ | K123: 1 | L123: Male
B124: 1 | C124: Male | D124: 11 | E124: 70-74 | F124: 10 | G124: $22,500-$24,999 | H124: 228 | I124: 3 | J124: 40-75+ | K124: 1 | L124: Male
B125: 1 | C125: Male | D125: 12 | E125: 75+ | F125: 10 | G125: $22,500-$24,999 | H125: 491 | I125: 3 | J125: 40-75+ | K125: 1 | L125: Male
B126: 1 | C126: Male | D126: 1 | E126: 15-24 | F126: 11 | G126: $25,000-$27,499 | H126: 615 | I126: 1 | J126: 15-24 | K126: 1 | L126: Male
B127: 1 | C127: Male | D127: 2 | E127: 25-29 | F127: 11 | G127: $25,000-$27,499 | H127: 638 | I127: 2 | J127: 25-39 | K127: 1 | L127: Male
B128: 1 | C128: Male | D128: 3 | E128: 30-34 | F128: 11 | G128: $25,000-$27,499 | H128: 495 | I128: 2 | J128: 25-39 | K128: 1 | L128: Male
B129: 1 | C129: Male | D129: 4 | E129: 35-39 | F129: 11 | G129: $25,000-$27,499 | H129: 393 | I129: 2 | J129: 25-39 | K129: 1 | L129: Male
B130: 1 | C130: Male | D130: 5 | E130: 40-44 | F130: 11 | G130: $25,000-$27,499 | H130: 336 | I130: 3 | J130: 40-75+ | K130: 1 | L130: Male
B131: 1 | C131: Male | D131: 6 | E131: 45-49 | F131: 11 | G131: $25,000-$27,499 | H131: 380 | I131: 3 | J131: 40-75+ | K131: 1 | L131: Male
B132: 1 | C132: Male | D132: 7 | E132: 50-54 | F132: 11 | G132: $25,000-$27,499 | H132: 329 | I132: 3 | J132: 40-75+ | K132: 1 | L132: Male
B133: 1 | C133: Male | D133: 8 | E133: 55-59 | F133: 11 | G133: $25,000-$27,499 | H133: 318 | I133: 3 | J133: 40-75+ | K133: 1 | L133: Male
B134: 1 | C134: Male | D134: 9 | E134: 60-64 | F134: 11 | G134: $25,000-$27,499 | H134: 289 | I134: =VLOOKUP(D134,AgeOrderTable,2) -> 3 | J134: =VLOOKUP(D134,AgeOrderTable,3) -> 40-75+ | K134: =VLOOKUP(B134,GenderOrderTable,2) -> 1 | L134: =VLOOKUP(B134,GenderOrderTable,3) -> Male
B135: 1 | C135: Male | D135: 10 | E135: 65-69 | F135: 11 | G135: $25,000-$27,499 | H135: 219 | I135: 3 | J135: 40-75+ | K135: 1 | L135: Male
B136: 1 | C136: Male | D136: 11 | E136: 70-74 | F136: 11 | G136: $25,000-$27,499 | H136: 179 | I136: 3 | J136: 40-75+ | K136: 1 | L136: Male
B137: 1 | C137: Male | D137: 12 | E137: 75+ | F137: 11 | G137: $25,000-$27,499 | H137: 402 | I137: 3 | J137: 40-75+ | K137: 1 | L137: Male
B138: 1 | C138: Male | D138: 1 | E138: 15-24 | F138: 12 | G138: $27,500-$29,999 | H138: 293 | I138: 1 | J138: 15-24 | K138: 1 | L138: Male
B139: 1 | C139: Male | D139: 2 | E139: 25-29 | F139: 12 | G139: $27,500-$29,999 | H139: 325 | I139: 2 | J139: 25-39 | K139: 1 | L139: Male
B140: 1 | C140: Male | D140: 3 | E140: 30-34 | F140: 12 | G140: $27,500-$29,999 | H140: 260 | I140: 2 | J140: 25-39 | K140: 1 | L140: Male
B141: 1 | C141: Male | D141: 4 | E141: 35-39 | F141: 12 | G141: $27,500-$29,999 | H141: 211 | I141: 2 | J141: 25-39 | K141: 1 | L141: Male
B142: 1 | C142: Male | D142: 5 | E142: 40-44 | F142: 12 | G142: $27,500-$29,999 | H142: 169 | I142: 3 | J142: 40-75+ | K142: 1 | L142: Male
B143: 1 | C143: Male | D143: 6 | E143: 45-49 | F143: 12 | G143: $27,500-$29,999 | H143: 152 | I143: 3 | J143: 40-75+ | K143: 1 | L143: Male
B144: 1 | C144: Male | D144: 7 | E144: 50-54 | F144: 12 | G144: $27,500-$29,999 | H144: 170 | I144: 3 | J144: 40-75+ | K144: 1 | L144: Male
B145: 1 | C145: Male | D145: 8 | E145: 55-59 | F145: 12 | G145: $27,500-$29,999 | H145: 217 | I145: 3 | J145: 40-75+ | K145: 1 | L145: Male
B146: 1 | C146: Male | D146: 9 | E146: 60-64 | F146: 12 | G146: $27,500-$29,999 | H146: 207 | I146: 3 | J146: 40-75+ | K146: 1 | L146: Male
B147: 1 | C147: Male | D147: 10 | E147: 65-69 | F147: 12 | G147: $27,500-$29,999 | H147: 198 | I147: 3 | J147: 40-75+ | K147: 1 | L147: Male
B148: 1 | C148: Male | D148: 11 | E148: 70-74 | F148: 12 | G148: $27,500-$29,999 | H148: 174 | I148: 3 | J148: 40-75+ | K148: 1 | L148: Male
B149: 1 | C149: Male | D149: 12 | E149: 75+ | F149: 12 | G149: $27,500-$29,999 | H149: 247 | I149: 3 | J149: 40-75+ | K149: 1 | L149: Male
B150: 1 | C150: Male | D150: 1 | E150: 15-24 | F150: 13 | G150: $30,000-$32,499 | H150: 509 | I150: 1 | J150: 15-24 | K150: 1 | L150: Male
B151: 1 | C151: Male | D151: 2 | E151: 25-29 | F151: 13 | G151: $30,000-$32,499 | H151: 704 | I151: 2 | J151: 25-39 | K151: 1 | L151: Male
B152: 1 | C152: Male | D152: 3 | E152: 30-34 | F152: 13 | G152: $30,000-$32,499 | H152: 535 | I152: 2 | J152: 25-39 | K152: 1 | L152: Male
B153: 1 | C153: Male | D153: 4 | E153: 35-39 | F153: 13 | G153: $30,000-$32,499 | H153: 434 | I153: 2 | J153: 25-39 | K153: 1 | L153: Male
B154: 1 | C154: Male | D154: 5 | E154: 40-44 | F154: 13 | G154: $30,000-$32,499 | H154: 493 | I154: 3 | J154: 40-75+ | K154: 1 | L154: Male
B155: 1 | C155: Male | D155: 6 | E155: 45-49 | F155: 13 | G155: $30,000-$32,499 | H155: 474 | I155: 3 | J155: 40-75+ | K155: 1 | L155: Male
B156: 1 | C156: Male | D156: 7 | E156: 50-54 | F156: 13 | G156: $30,000-$32,499 | H156: 468 | I156: 3 | J156: 40-75+ | K156: 1 | L156: Male
B157: 1 | C157: Male | D157: 8 | E157: 55-59 | F157: 13 | G157: $30,000-$32,499 | H157: 410 | I157: 3 | J157: 40-75+ | K157: 1 | L157: Male
B158: 1 | C158: Male | D158: 9 | E158: 60-64 | F158: 13 | G158: $30,000-$32,499 | H158: 287 | I158: 3 | J158: 40-75+ | K158: 1 | L158: Male
B159: 1 | C159: Male | D159: 10 | E159: 65-69 | F159: 13 | G159: $30,000-$32,499 | H159: 244 | I159: 3 | J159: 40-75+ | K159: 1 | L159: Male
B160: 1 | C160: Male | D160: 11 | E160: 70-74 | F160: 13 | G160: $30,000-$32,499 | H160: 201 | I160: 3 | J160: 40-75+ | K160: 1 | L160: Male
B161: 1 | C161: Male | D161: 12 | E161: 75+ | F161: 13 | G161: $30,000-$32,499 | H161: 394 | I161: 3 | J161: 40-75+ | K161: 1 | L161: Male
B162: 1 | C162: Male | D162: 1 | E162: 15-24 | F162: 14 | G162: $32,500-$34,999 | H162: 156 | I162: 1 | J162: 15-24 | K162: 1 | L162: Male
B163: 1 | C163: Male | D163: 2 | E163: 25-29 | F163: 14 | G163: $32,500-$34,999 | H163: 253 | I163: 2 | J163: 25-39 | K163: 1 | L163: Male
B164: 1 | C164: Male | D164: 3 | E164: 30-34 | F164: 14 | G164: $32,500-$34,999 | H164: 167 | I164: 2 | J164: 25-39 | K164: 1 | L164: Male
B165: 1 | C165: Male | D165: 4 | E165: 35-39 | F165: 14 | G165: $32,500-$34,999 | H165: 168 | I165: 2 | J165: 25-39 | K165: 1 | L165: Male
B166: 1 | C166: Male | D166: 5 | E166: 40-44 | F166: 14 | G166: $32,500-$34,999 | H166: 165 | I166: 3 | J166: 40-75+ | K166: 1 | L166: Male
B167: 1 | C167: Male | D167: 6 | E167: 45-49 | F167: 14 | G167: $32,500-$34,999 | H167: 172 | I167: 3 | J167: 40-75+ | K167: 1 | L167: Male
B168: 1 | C168: Male | D168: 7 | E168: 50-54 | F168: 14 | G168: $32,500-$34,999 | H168: 193 | I168: 3 | J168: 40-75+ | K168: 1 | L168: Male
B169: 1 | C169: Male | D169: 8 | E169: 55-59 | F169: 14 | G169: $32,500-$34,999 | H169: 151 | I169: 3 | J169: 40-75+ | K169: 1 | L169: Male
B170: 1 | C170: Male | D170: 9 | E170: 60-64 | F170: 14 | G170: $32,500-$34,999 | H170: 139 | I170: 3 | J170: 40-75+ | K170: 1 | L170: Male
B171: 1 | C171: Male | D171: 10 | E171: 65-69 | F171: 14 | G171: $32,500-$34,999 | H171: 177 | I171: 3 | J171: 40-75+ | K171: 1 | L171: Male
B172: 1 | C172: Male | D172: 11 | E172: 70-74 | F172: 14 | G172: $32,500-$34,999 | H172: 131 | I172: 3 | J172: 40-75+ | K172: 1 | L172: Male
B173: 1 | C173: Male | D173: 12 | E173: 75+ | F173: 14 | G173: $32,500-$34,999 | H173: 257 | I173: 3 | J173: 40-75+ | K173: 1 | L173: Male
B174: 1 | C174: Male | D174: 1 | E174: 15-24 | F174: 15 | G174: $35,000-$37,499 | H174: 297 | I174: 1 | J174: 15-24 | K174: 1 | L174: Male
B175: 1 | C175: Male | D175: 2 | E175: 25-29 | F175: 15 | G175: $35,000-$37,499 | H175: 593 | I175: 2 | J175: 25-39 | K175: 1 | L175: Male
B176: 1 | C176: Male | D176: 3 | E176: 30-34 | F176: 15 | G176: $35,000-$37,499 | H176: 502 | I176: 2 | J176: 25-39 | K176: 1 | L176: Male
B177: 1 | C177: Male | D177: 4 | E177: 35-39 | F177: 15 | G177: $35,000-$37,499 | H177: 368 | I177: 2 | J177: 25-39 | K177: 1 | L177: Male
B178: 1 | C178: Male | D178: 5 | E178: 40-44 | F178: 15 | G178: $35,000-$37,499 | H178: 346 | I178: 3 | J178: 40-75+ | K178: 1 | L178: Male
B179: 1 | C179: Male | D179: 6 | E179: 45-49 | F179: 15 | G179: $35,000-$37,499 | H179: 329 | I179: 3 | J179: 40-75+ | K179: 1 | L179: Male
B180: 1 | C180: Male | D180: 7 | E180: 50-54 | F180: 15 | G180: $35,000-$37,499 | H180: 399 | I180: 3 | J180: 40-75+ | K180: 1 | L180: Male
B181: 1 | C181: Male | D181: 8 | E181: 55-59 | F181: 15 | G181: $35,000-$37,499 | H181: 315 | I181: 3 | J181: 40-75+ | K181: 1 | L181: Male
B182: 1 | C182: Male | D182: 9 | E182: 60-64 | F182: 15 | G182: $35,000-$37,499 | H182: 253 | I182: 3 | J182: 40-75+ | K182: 1 | L182: Male
B183: 1 | C183: Male | D183: 10 | E183: 65-69 | F183: 15 | G183: $35,000-$37,499 | H183: 245 | I183: 3 | J183: 40-75+ | K183: 1 | L183: Male
B184: 1 | C184: Male | D184: 11 | E184: 70-74 | F184: 15 | G184: $35,000-$37,499 | H184: 180 | I184: 3 | J184: 40-75+ | K184: 1 | L184: Male
B185: 1 | C185: Male | D185: 12 | E185: 75+ | F185: 15 | G185: $35,000-$37,499 | H185: 272 | I185: 3 | J185: 40-75+ | K185: 1 | L185: Male
B186: 1 | C186: Male | D186: 1 | E186: 15-24 | F186: 16 | G186: $37,500-$39,999 | H186: 69 | I186: 1 | J186: 15-24 | K186: 1 | L186: Male
B187: 1 | C187: Male | D187: 2 | E187: 25-29 | F187: 16 | G187: $37,500-$39,999 | H187: 199 | I187: 2 | J187: 25-39 | K187: 1 | L187: Male
B188: 1 | C188: Male | D188: 3 | E188: 30-34 | F188: 16 | G188: $37,500-$39,999 | H188: 176 | I188: 2 | J188: 25-39 | K188: 1 | L188: Male
B189: 1 | C189: Male | D189: 4 | E189: 35-39 | F189: 16 | G189: $37,500-$39,999 | H189: 176 | I189: 2 | J189: 25-39 | K189: 1 | L189: Male
B190: 1 | C190: Male | D190: 5 | E190: 40-44 | F190: 16 | G190: $37,500-$39,999 | H190: 133 | I190: 3 | J190: 40-75+ | K190: 1 | L190: Male
B191: 1 | C191: Male | D191: 6 | E191: 45-49 | F191: 16 | G191: $37,500-$39,999 | H191: 150 | I191: 3 | J191: 40-75+ | K191: 1 | L191: Male
B192: 1 | C192: Male | D192: 7 | E192: 50-54 | F192: 16 | G192: $37,500-$39,999 | H192: 168 | I192: 3 | J192: 40-75+ | K192: 1 | L192: Male
B193: 1 | C193: Male | D193: 8 | E193: 55-59 | F193: 16 | G193: $37,500-$39,999 | H193: 146 | I193: 3 | J193: 40-75+ | K193: 1 | L193: Male
B194: 1 | C194: Male | D194: 9 | E194: 60-64 | F194: 16 | G194: $37,500-$39,999 | H194: 136 | I194: 3 | J194: 40-75+ | K194: 1 | L194: Male
B195: 1 | C195: Male | D195: 10 | E195: 65-69 | F195: 16 | G195: $37,500-$39,999 | H195: 163 | I195: 3 | J195: 40-75+ | K195: 1 | L195: Male
B196: 1 | C196: Male | D196: 11 | E196: 70-74 | F196: 16 | G196: $37,500-$39,999 | H196: 120 | I196: 3 | J196: 40-75+ | K196: 1 | L196: Male
B197: 1 | C197: Male | D197: 12 | E197: 75+ | F197: 16 | G197: $37,500-$39,999 | H197: 195 | I197: 3 | J197: 40-75+ | K197: 1 | L197: Male
B198: 1 | C198: Male | D198: 1 | E198: 15-24 | F198: 17 | G198: $40,000-$42,499 | H198: 266 | I198: =VLOOKUP(D198,AgeOrderTable,2) -> 1 | J198: =VLOOKUP(D198,AgeOrderTable,3) -> 15-24 | K198: =VLOOKUP(B198,GenderOrderTable,2) -> 1 | L198: =VLOOKUP(B198,GenderOrderTable,3) -> Male
B199: 1 | C199: Male | D199: 2 | E199: 25-29 | F199: 17 | G199: $40,000-$42,499 | H199: 663 | I199: 2 | J199: 25-39 | K199: 1 | L199: Male
B200: 1 | C200: Male | D200: 3 | E200: 30-34 | F200: 17 | G200: $40,000-$42,499 | H200: 531 | I200: 2 | J200: 25-39 | K200: 1 | L200: Male
B201: 1 | C201: Male | D201: 4 | E201: 35-39 | F201: 17 | G201: $40,000-$42,499 | H201: 433 | I201: 2 | J201: 25-39 | K201: 1 | L201: Male
... 788 more rows

Sheet Feature importance
A1: Directions: | B1: Click the button to create or update tables and charts. Calculations are based on the Main sheet's current scenario. Only variables with validation criteria are included.
